Body Name,Body,Service Area Catergorisation,Service Division Catergorisation,Responsible Unit,Expenses Type,Detailed Expenses Type,Expenses Code,Date,Transaction Number,Amount,Supplier Name,Capital / Revenue,Supplier ID
NORTH EAST LINCOLNSHIRE COUNCIL,http://statistics.data.gov.uk/id/local-authority/00FC,Resources,Commission & Business Support,Information System,Cap Intangible Assets,Cap Intangible Assets,YH101,8/13/2014,298249,450,JOHN BURWELL EDUCATION CONSULTANT LTD,CAPITAL,123758
NORTH EAST LINCOLNSHIRE COUNCIL,http://statistics.data.gov.uk/id/local-authority/00FC,Resources,Commission & Business Support,Replacement/Refurbishment  It,Cap Veh Plt Eqp-Purchase,Cap Veh Plt Eqp-Purchase,YB101,8/18/2014,299223,317.34,MATRIX SCM LTD,CAPITAL,108117
NORTH EAST LINCOLNSHIRE COUNCIL,http://statistics.data.gov.uk/id/local-authority/00FC,Resources,Commission & Business Support,Replacement/Refurbishment  It,Cap Veh Plt Eqp-Purchase,Cap Veh Plt Eqp-Purchase,YB101,8/5/2014,297156,977.55,MATRIX SCM LTD,CAPITAL,108117
NORTH EAST LINCOLNSHIRE COUNCIL,http://statistics.data.gov.uk/id/local-authority/00FC,Resources,Commission & Business Support,Replacement/Refurbishment  It,Cap Veh Plt Eqp-Purchase,Cap Veh Plt Eqp-Purchase,YB101,8/18/2014,299753,803.49,MATRIX SCM LTD,CAPITAL,108117
NORTH EAST LINCOLNSHIRE COUNCIL,http://statistics.data.gov.uk/id/local-authority/00FC,Resources,Cap Governance & Bus Support,Ice Project - Capital,Cap Land/Build-Build Enh Wrk,Cap Land/Build-Build Enh Wrk,YA102,8/7/2014,297385,480,GRADE 3 LIMITED,CAPITAL,101924
NORTH EAST LINCOLNSHIRE COUNCIL,http://statistics.data.gov.uk/id/local-authority/00FC,Place,Environment,Fleet Replacement Programme,Cap Veh Plt Eqp-Purchase,Cap Veh Plt Eqp-Purchase,YB101,8/13/2014,286050,17970,F G ADAMSON & SON,CAPITAL,100752
NORTH EAST LINCOLNSHIRE COUNCIL,http://statistics.data.gov.uk/id/local-authority/00FC,Place,Environment,Fleet Replacement Programme,Cap Veh Plt Eqp-Purchase,Cap Veh Plt Eqp-Purchase,YB101,8/19/2014,296231,34560,FARMSTAR LTD,CAPITAL,121818
NORTH EAST LINCOLNSHIRE COUNCIL,http://statistics.data.gov.uk/id/local-authority/00FC,Place,Environment,Fleet Replacement Programme,Cap Veh Plt Eqp-Purchase,Cap Veh Plt Eqp-Purchase,YB101,8/14/2014,298709,38425,F G ADAMSON & SON,CAPITAL,100752
NORTH EAST LINCOLNSHIRE COUNCIL,http://statistics.data.gov.uk/id/local-authority/00FC,Place,Environment,Fleet Replacement Programme,Cap Veh Plt Eqp-Purchase,Cap Veh Plt Eqp-Purchase,YB101,8/14/2014,298710,5450,F G ADAMSON & SON,CAPITAL,100752
NORTH EAST LINCOLNSHIRE COUNCIL,http://statistics.data.gov.uk/id/local-authority/00FC,Place,Environment,Fleet Replacement Programme,Cap Veh Plt Eqp-Purchase,Cap Veh Plt Eqp-Purchase,YB101,8/19/2014,297260,47926,LINCOLNSHIRE MOTORS LTD,CAPITAL,100538
NORTH EAST LINCOLNSHIRE COUNCIL,http://statistics.data.gov.uk/id/local-authority/00FC,Place,Environment,Fleet Replacement Programme,Cap Veh Plt Eqp-Purchase,Cap Veh Plt Eqp-Purchase,YB101,8/19/2014,297261,34713,LINCOLNSHIRE MOTORS LTD,CAPITAL,100538
NORTH EAST LINCOLNSHIRE COUNCIL,http://statistics.data.gov.uk/id/local-authority/00FC,Place,Economy,Hps-Disabled Fac. Grants,Cap Grants To O/Side Sources,Cap Grants To O/Side Sources,YJ101,8/13/2014,298725,4487,CLEVELAND JOINERY,CAPITAL,102580
NORTH EAST LINCOLNSHIRE COUNCIL,http://statistics.data.gov.uk/id/local-authority/00FC,Place,Economy,Hps-Disabled Fac. Grants,Cap Grants To O/Side Sources,Cap Grants To O/Side Sources,YJ101,8/11/2014,288968,5110,M J QUICKFALL,CAPITAL,102499
NORTH EAST LINCOLNSHIRE COUNCIL,http://statistics.data.gov.uk/id/local-authority/00FC,Place,Economy,Hps-Disabled Fac. Grants,Cap Grants To O/Side Sources,Cap Grants To O/Side Sources,YJ101,8/26/2014,301091,5883,MARK BENNETT,CAPITAL,101838
NORTH EAST LINCOLNSHIRE COUNCIL,http://statistics.data.gov.uk/id/local-authority/00FC,Place,Economy,Hps-Disabled Fac. Grants,Cap Grants To O/Side Sources,Cap Grants To O/Side Sources,YJ101,8/5/2014,296438,415.8,MANTA BRC LTD,CAPITAL,102230
NORTH EAST LINCOLNSHIRE COUNCIL,http://statistics.data.gov.uk/id/local-authority/00FC,Place,Economy,Hps-Disabled Fac. Grants,Cap Grants To O/Side Sources,Cap Grants To O/Side Sources,YJ101,8/14/2014,298720,4545,M J QUICKFALL,CAPITAL,102499
NORTH EAST LINCOLNSHIRE COUNCIL,http://statistics.data.gov.uk/id/local-authority/00FC,Place,Economy,Hps-Disabled Fac. Grants,Cap Grants To O/Side Sources,Cap Grants To O/Side Sources,YJ101,8/6/2014,296483,6557,MARK BENNETT,CAPITAL,101838
NORTH EAST LINCOLNSHIRE COUNCIL,http://statistics.data.gov.uk/id/local-authority/00FC,Place,Economy,Hps-Disabled Fac. Grants,Cap Grants To O/Side Sources,Cap Grants To O/Side Sources,YJ101,8/7/2014,298208,4061,M J QUICKFALL,CAPITAL,102499
NORTH EAST LINCOLNSHIRE COUNCIL,http://statistics.data.gov.uk/id/local-authority/00FC,Place,Economy,Hps-Disabled Fac. Grants,Cap Grants To O/Side Sources,Cap Grants To O/Side Sources,YJ101,8/1/2014,296630,7506.52,MEARS LTD,CAPITAL,102433
NORTH EAST LINCOLNSHIRE COUNCIL,http://statistics.data.gov.uk/id/local-authority/00FC,Place,Economy,Hps-Disabled Fac. Grants,Cap Grants To O/Side Sources,Cap Grants To O/Side Sources,YJ101,8/15/2014,299445,6500,BLAKES BUILDING SERVICES,CAPITAL,101805
NORTH EAST LINCOLNSHIRE COUNCIL,http://statistics.data.gov.uk/id/local-authority/00FC,Place,Economy,Hps-Disabled Fac. Grants,Cap Grants To O/Side Sources,Cap Grants To O/Side Sources,YJ101,8/13/2014,298261,4495,HANDICARE ACCESSIIBILITY LTD,CAPITAL,102647
NORTH EAST LINCOLNSHIRE COUNCIL,http://statistics.data.gov.uk/id/local-authority/00FC,Place,Economy,Hps-Disabled Fac. Grants,Cap Grants To O/Side Sources,Cap Grants To O/Side Sources,YJ101,8/7/2014,298282,5414.03,ABLE4U ENTERPRISES LTD,CAPITAL,120159
NORTH EAST LINCOLNSHIRE COUNCIL,http://statistics.data.gov.uk/id/local-authority/00FC,Place,Economy,Hps-Disabled Fac. Grants,Cap Grants To O/Side Sources,Cap Grants To O/Side Sources,YJ101,8/14/2014,298971,2537.33,MEARS LTD,CAPITAL,102433
NORTH EAST LINCOLNSHIRE COUNCIL,http://statistics.data.gov.uk/id/local-authority/00FC,Place,Economy,Hps-Disabled Fac. Grants,Cap Grants To O/Side Sources,Cap Grants To O/Side Sources,YJ101,8/26/2014,300851,9220,DOLPHIN MOBILITY EAST MIDLANDS LTD,CAPITAL,101317
NORTH EAST LINCOLNSHIRE COUNCIL,http://statistics.data.gov.uk/id/local-authority/00FC,Place,Economy,Hps-Disabled Fac. Grants,Cap Grants To O/Side Sources,Cap Grants To O/Side Sources,YJ101,8/26/2014,300911,3910.75,BECKETT CONTRACTING,CAPITAL,122683
NORTH EAST LINCOLNSHIRE COUNCIL,http://statistics.data.gov.uk/id/local-authority/00FC,Place,Economy,Hps-Disabled Fac. Grants,Cap Grants To O/Side Sources,Cap Grants To O/Side Sources,YJ101,8/13/2014,298724,2593.3,OBAM LIFT SERVICES LTD,CAPITAL,112666
NORTH EAST LINCOLNSHIRE COUNCIL,http://statistics.data.gov.uk/id/local-authority/00FC,Place,Economy,Hps-Disabled Fac. Grants,Cap Grants To O/Side Sources,Cap Grants To O/Side Sources,YJ101,8/13/2014,298259,2971,HANDICARE ACCESSIIBILITY LTD,CAPITAL,102647
NORTH EAST LINCOLNSHIRE COUNCIL,http://statistics.data.gov.uk/id/local-authority/00FC,Place,Economy,Local Transport Plan Schemes,Cap Land/Build-Build Enh Wrk,Cap Land/Build-Build Enh Wrk,YA102,8/19/2014,296736,488.02,J MCCANN & CO LTD,CAPITAL,100841
NORTH EAST LINCOLNSHIRE COUNCIL,http://statistics.data.gov.uk/id/local-authority/00FC,Place,Economy,Local Transport Plan Schemes,Cap Infrastr-Build Enh Wrk,Cap Infrastr-Build Enh Wrk,YC102,8/11/2014,298350,405.77,J MCCANN & CO LTD,CAPITAL,100841
NORTH EAST LINCOLNSHIRE COUNCIL,http://statistics.data.gov.uk/id/local-authority/00FC,Place,Economy,Local Transport Plan Schemes,Cap Land/Build-Build Enh Wrk,Cap Land/Build-Build Enh Wrk,YA102,8/13/2014,298260,964.25,RIGGOTT & CO LTD,CAPITAL,104915
NORTH EAST LINCOLNSHIRE COUNCIL,http://statistics.data.gov.uk/id/local-authority/00FC,Place,Economy,Local Transport Plan Schemes,Cap Infrastr-Prof Fees,Cap Infrastr-Prof Fees,YC103,8/15/2014,299440,17656,PARSONS BRINCKERHOFF,CAPITAL,122408
NORTH EAST LINCOLNSHIRE COUNCIL,http://statistics.data.gov.uk/id/local-authority/00FC,Place,Economy,Local Transport Plan Schemes,Cap Land/Build-Build Enh Wrk,Cap Land/Build-Build Enh Wrk,YA102,8/7/2014,298225,7818.73,EC SURFACING LTD,CAPITAL,125951
NORTH EAST LINCOLNSHIRE COUNCIL,http://statistics.data.gov.uk/id/local-authority/00FC,Place,Economy,Local Transport Plan Schemes,Cap Land/Build-Build Enh Wrk,Cap Land/Build-Build Enh Wrk,YA102,8/21/2014,300119,6612.58,J MCCANN & CO LTD,CAPITAL,100841
NORTH EAST LINCOLNSHIRE COUNCIL,http://statistics.data.gov.uk/id/local-authority/00FC,Place,Economy,Local Transport Plan Schemes,Cap Infrastr-Build Enh Wrk,Cap Infrastr-Build Enh Wrk,YC102,8/21/2014,299678,12814.82,PELL AND BALDWIN FABRICATIONS LTD,CAPITAL,118853
NORTH EAST LINCOLNSHIRE COUNCIL,http://statistics.data.gov.uk/id/local-authority/00FC,Place,Economy,Local Transport Plan Schemes,Cap Land/Build-Build Enh Wrk,Cap Land/Build-Build Enh Wrk,YA102,8/5/2014,296747,696.42,NORTHERN POWERGRID (YORKSHIRE) PLC,CAPITAL,108328
NORTH EAST LINCOLNSHIRE COUNCIL,http://statistics.data.gov.uk/id/local-authority/00FC,Place,Economy,Local Transport Plan Schemes,Cap Land/Build-Build Enh Wrk,Cap Land/Build-Build Enh Wrk,YA102,8/5/2014,296746,1044.63,NORTHERN POWERGRID (YORKSHIRE) PLC,CAPITAL,108328
NORTH EAST LINCOLNSHIRE COUNCIL,http://statistics.data.gov.uk/id/local-authority/00FC,Place,Economy,Local Transport Plan Schemes,Cap Land/Build-Build Enh Wrk,Cap Land/Build-Build Enh Wrk,YA102,8/5/2014,296748,409.09,NORTHERN POWERGRID (YORKSHIRE) PLC,CAPITAL,108328
NORTH EAST LINCOLNSHIRE COUNCIL,http://statistics.data.gov.uk/id/local-authority/00FC,Place,Economy,Local Transport Plan Schemes,Cap Land/Build-Build Enh Wrk,Cap Land/Build-Build Enh Wrk,YA102,8/11/2014,298350,57241.65,J MCCANN & CO LTD,CAPITAL,100841
NORTH EAST LINCOLNSHIRE COUNCIL,http://statistics.data.gov.uk/id/local-authority/00FC,Place,Economy,Local Transport Plan Schemes,Cap Land/Build-Build Enh Wrk,Cap Land/Build-Build Enh Wrk,YA102,8/21/2014,300119,8183,J MCCANN & CO LTD,CAPITAL,100841
NORTH EAST LINCOLNSHIRE COUNCIL,http://statistics.data.gov.uk/id/local-authority/00FC,Place,Economy,Local Transport Plan Schemes,Cap Infrastr-Purchase,Cap Infrastr-Purchase,YC101,8/26/2014,300857,1140,SYSTEMATIC PRINT MANAGEMENT LTD,CAPITAL,101147
NORTH EAST LINCOLNSHIRE COUNCIL,http://statistics.data.gov.uk/id/local-authority/00FC,Place,Economy,Local Transport Plan Schemes,Cap Infrastr-Purchase,Cap Infrastr-Purchase,YC101,8/26/2014,301049,300,LOCK IT SAFE LTD,CAPITAL,101779
NORTH EAST LINCOLNSHIRE COUNCIL,http://statistics.data.gov.uk/id/local-authority/00FC,Place,Economy,Local Transport Plan Schemes,Cap Infrastr-Prof Fees,Cap Infrastr-Prof Fees,YC103,8/14/2014,298686,2480,JMP CONSULTANTS LTD,CAPITAL,104098
NORTH EAST LINCOLNSHIRE COUNCIL,http://statistics.data.gov.uk/id/local-authority/00FC,Place,Economy,Local Transport Plan Schemes,Cap Infrastr-Build Enh Wrk,Cap Infrastr-Build Enh Wrk,YC102,8/14/2014,299459,53153.5,SPECIALIST SURFACING LIMITED,CAPITAL,100579
NORTH EAST LINCOLNSHIRE COUNCIL,http://statistics.data.gov.uk/id/local-authority/00FC,Place,Economy,Local Transport Plan Schemes,Cap Infrastr-Build Enh Wrk,Cap Infrastr-Build Enh Wrk,YC102,8/7/2014,298225,112197.31,EC SURFACING LTD,CAPITAL,125951
NORTH EAST LINCOLNSHIRE COUNCIL,http://statistics.data.gov.uk/id/local-authority/00FC,Place,Economy,Local Transport Plan Schemes,Cap Land/Build-Build Enh Wrk,Cap Land/Build-Build Enh Wrk,YA102,8/29/2014,295357,1582.5,PELL FRISCHMANN CONSULTANTS,CAPITAL,100880
NORTH EAST LINCOLNSHIRE COUNCIL,http://statistics.data.gov.uk/id/local-authority/00FC,Place,Economy,Local Transport Plan Schemes,Cap Infrastr-Build Enh Wrk,Cap Infrastr-Build Enh Wrk,YC102,8/11/2014,298237,2100,DOTTED EYES LTD,CAPITAL,102296
NORTH EAST LINCOLNSHIRE COUNCIL,http://statistics.data.gov.uk/id/local-authority/00FC,Place,Economy,Local Transport Plan Schemes,Cap Infrastr-Prof Fees,Cap Infrastr-Prof Fees,YC103,8/18/2014,299799,12000,SIAS LIMITED,CAPITAL,102445
NORTH EAST LINCOLNSHIRE COUNCIL,http://statistics.data.gov.uk/id/local-authority/00FC,Place,Economy,Local Transport Plan Schemes,Cap Infrastr-Prof Fees,Cap Infrastr-Prof Fees,YC103,8/21/2014,300491,19462.5,SIAS LIMITED,CAPITAL,102445
NORTH EAST LINCOLNSHIRE COUNCIL,http://statistics.data.gov.uk/id/local-authority/00FC,Place,Economy,Freeman Street Regeneration,Cap Land/Build-Build Enh Wrk,Cap Land/Build-Build Enh Wrk,YA102,8/7/2014,297745,4414.05,COFELY WORKPLACE LIMITED,CAPITAL,123983
NORTH EAST LINCOLNSHIRE COUNCIL,http://statistics.data.gov.uk/id/local-authority/00FC,Place,Economy,Freeman Street Regeneration,Cap Invest Prop-Build Enh Wrk,Cap Invest Prop-Build Enh Wrk,YE102,8/26/2014,300845,2500,FORESIGHT NORTH EAST LINCOLNSHIRE,CAPITAL,102869
NORTH EAST LINCOLNSHIRE COUNCIL,http://statistics.data.gov.uk/id/local-authority/00FC,Place,Economy,Freeman Street Regeneration,Cap Invest Prop-Build Enh Wrk,Cap Invest Prop-Build Enh Wrk,YE102,8/1/2014,296442,2500,REDACTED PERSONAL INFORMATION,CAPITAL,REDACTED PERSONAL INFORMATION
NORTH EAST LINCOLNSHIRE COUNCIL,http://statistics.data.gov.uk/id/local-authority/00FC,Place,Economy,Freeman Street Regeneration,Cap Invest Prop-Build Enh Wrk,Cap Invest Prop-Build Enh Wrk,YE102,8/1/2014,296454,2500,REDACTED PERSONAL INFORMATION,CAPITAL,REDACTED PERSONAL INFORMATION
NORTH EAST LINCOLNSHIRE COUNCIL,http://statistics.data.gov.uk/id/local-authority/00FC,Place,Economy,Freeman Street Regeneration,Cap Invest Prop-Build Enh Wrk,Cap Invest Prop-Build Enh Wrk,YE102,8/12/2014,298183,4570.65,REDACTED PERSONAL INFORMATION,CAPITAL,REDACTED PERSONAL INFORMATION
NORTH EAST LINCOLNSHIRE COUNCIL,http://statistics.data.gov.uk/id/local-authority/00FC,Place,Economy,Freeman Street Regeneration,Cap Invest Prop-Build Enh Wrk,Cap Invest Prop-Build Enh Wrk,YE102,8/28/2014,301058,2500,EAST LANCASHIRE MONEYLINE (IPS) LTD,CAPITAL,127139
NORTH EAST LINCOLNSHIRE COUNCIL,http://statistics.data.gov.uk/id/local-authority/00FC,Place,Economy,Freeman Street Regeneration,Cap Invest Prop-Build Enh Wrk,Cap Invest Prop-Build Enh Wrk,YE102,8/7/2014,298209,6026.83,REDACTED PERSONAL INFORMATION,CAPITAL,REDACTED PERSONAL INFORMATION
NORTH EAST LINCOLNSHIRE COUNCIL,http://statistics.data.gov.uk/id/local-authority/00FC,Place,Economy,Housing Assist Grants And Loan,Cap Grants To O/Side Sources,Cap Grants To O/Side Sources,YJ101,8/14/2014,298722,10933.33,VALAM BUILDERS LTD,CAPITAL,100566
NORTH EAST LINCOLNSHIRE COUNCIL,http://statistics.data.gov.uk/id/local-authority/00FC,Place,Economy,Housing Assist Grants And Loan,Cap Grants To O/Side Sources,Cap Grants To O/Side Sources,YJ101,8/21/2014,300283,6250,NEWVIC PROPERTY SERVICES LTD,CAPITAL,123637
NORTH EAST LINCOLNSHIRE COUNCIL,http://statistics.data.gov.uk/id/local-authority/00FC,Place,Economy,Housing Assist Grants And Loan,Cap Grants To O/Side Sources,Cap Grants To O/Side Sources,YJ101,8/14/2014,298825,1761.12,SHEFFIELD CITY COUNCIL,CAPITAL,119344
NORTH EAST LINCOLNSHIRE COUNCIL,http://statistics.data.gov.uk/id/local-authority/00FC,Place,Economy,Housing Assist Grants And Loan,Cap Grants To O/Side Sources,Cap Grants To O/Side Sources,YJ101,8/14/2014,298826,5395.14,SHEFFIELD CITY COUNCIL,CAPITAL,119344
NORTH EAST LINCOLNSHIRE COUNCIL,http://statistics.data.gov.uk/id/local-authority/00FC,Place,Economy,Local Sustainable Trans Fund,Cap Land/Build-Build Enh Wrk,Cap Land/Build-Build Enh Wrk,YA102,8/5/2014,297175,9911.85,COMPLETE OFFICE SOLUTIONS (UK) LTD,CAPITAL,123664
NORTH EAST LINCOLNSHIRE COUNCIL,http://statistics.data.gov.uk/id/local-authority/00FC,Place,Economy,Local Sustainable Trans Fund,Cap Land/Build-Build Enh Wrk,Cap Land/Build-Build Enh Wrk,YA102,8/19/2014,299725,45678.29,MANTA BRC LTD,CAPITAL,102230
NORTH EAST LINCOLNSHIRE COUNCIL,http://statistics.data.gov.uk/id/local-authority/00FC,Place,Economy,Local Sustainable Trans Fund,Cap Infrastr-Build Enh Wrk,Cap Infrastr-Build Enh Wrk,YC102,8/11/2014,298350,291.05,J MCCANN & CO LTD,CAPITAL,100841
NORTH EAST LINCOLNSHIRE COUNCIL,http://statistics.data.gov.uk/id/local-authority/00FC,Place,Economy,Street Light Low Energy Scheme,Cap Land/Build-Build Enh Wrk,Cap Land/Build-Build Enh Wrk,YA102,8/5/2014,296751,1392.84,NORTHERN POWERGRID (YORKSHIRE) PLC,CAPITAL,108328
NORTH EAST LINCOLNSHIRE COUNCIL,http://statistics.data.gov.uk/id/local-authority/00FC,Place,Economy,Street Light Low Energy Scheme,Cap Land/Build-Build Enh Wrk,Cap Land/Build-Build Enh Wrk,YA102,8/12/2014,298667,143164,COFELY WORKPLACE LIMITED,CAPITAL,123983
NORTH EAST LINCOLNSHIRE COUNCIL,http://statistics.data.gov.uk/id/local-authority/00FC,Place,Economy,Street Light Low Energy Scheme,Cap Land/Build-Build Enh Wrk,Cap Land/Build-Build Enh Wrk,YA102,8/12/2014,298670,8278.11,COFELY WORKPLACE LIMITED,CAPITAL,123983
NORTH EAST LINCOLNSHIRE COUNCIL,http://statistics.data.gov.uk/id/local-authority/00FC,Place,Economy,Street Light Low Energy Scheme,Cap Land/Build-Build Enh Wrk,Cap Land/Build-Build Enh Wrk,YA102,8/14/2014,298668,4390.7,COFELY WORKPLACE LIMITED,CAPITAL,123983
NORTH EAST LINCOLNSHIRE COUNCIL,http://statistics.data.gov.uk/id/local-authority/00FC,Place,Economy,Street Light Low Energy Scheme,Cap Land/Build-Build Enh Wrk,Cap Land/Build-Build Enh Wrk,YA102,8/14/2014,298669,262.56,COFELY WORKPLACE LIMITED,CAPITAL,123983
NORTH EAST LINCOLNSHIRE COUNCIL,http://statistics.data.gov.uk/id/local-authority/00FC,Place,Economy,Street Light Low Energy Scheme,Cap Land/Build-Build Enh Wrk,Cap Land/Build-Build Enh Wrk,YA102,8/22/2014,300236,6101,COFELY WORKPLACE LIMITED,CAPITAL,123983
NORTH EAST LINCOLNSHIRE COUNCIL,http://statistics.data.gov.uk/id/local-authority/00FC,Place,Economy,Street Light Low Energy Scheme,Cap Land/Build-Build Enh Wrk,Cap Land/Build-Build Enh Wrk,YA102,8/21/2014,300217,106525.08,J MCCANN & CO LTD,CAPITAL,100841
NORTH EAST LINCOLNSHIRE COUNCIL,http://statistics.data.gov.uk/id/local-authority/00FC,Place,Economy,Street Light Low Energy Scheme,Cap Land/Build-Build Enh Wrk,Cap Land/Build-Build Enh Wrk,YA102,8/5/2014,296758,348.21,NORTHERN POWERGRID (YORKSHIRE) PLC,CAPITAL,108328
NORTH EAST LINCOLNSHIRE COUNCIL,http://statistics.data.gov.uk/id/local-authority/00FC,Place,Economy,Street Light Low Energy Scheme,Cap Land/Build-Build Enh Wrk,Cap Land/Build-Build Enh Wrk,YA102,8/5/2014,296745,348.21,NORTHERN POWERGRID (YORKSHIRE) PLC,CAPITAL,108328
NORTH EAST LINCOLNSHIRE COUNCIL,http://statistics.data.gov.uk/id/local-authority/00FC,Place,Economy,Cartergate Development,Cap Infrastr-Build Enh Wrk,Cap Infrastr-Build Enh Wrk,YC102,8/15/2014,299441,1110.4,HUMBERSIDE MATERIALS LABORATORY LTD,CAPITAL,122103
NORTH EAST LINCOLNSHIRE COUNCIL,http://statistics.data.gov.uk/id/local-authority/00FC,Place,Economy,Cartergate Development,Cap Infrastr-Build Enh Wrk,Cap Infrastr-Build Enh Wrk,YC102,8/27/2014,300297,2990,SKY HIGH TECHNOLOGY LTD,CAPITAL,122840
NORTH EAST LINCOLNSHIRE COUNCIL,http://statistics.data.gov.uk/id/local-authority/00FC,Place,Economy,Pinchpoint Scheme,Cap Land/Build-Build Enh Wrk,Cap Land/Build-Build Enh Wrk,YA102,8/21/2014,300281,32630.07,VOLKERLASER LTD,CAPITAL,126094
NORTH EAST LINCOLNSHIRE COUNCIL,http://statistics.data.gov.uk/id/local-authority/00FC,Place,Economy,Pinchpoint Scheme,Cap Land/Build-Build Enh Wrk,Cap Land/Build-Build Enh Wrk,YA102,8/5/2014,291363,4220,CLUGSTON SURVEY SERVICES,CAPITAL,105668
NORTH EAST LINCOLNSHIRE COUNCIL,http://statistics.data.gov.uk/id/local-authority/00FC,Place,Economy,Pinchpoint Scheme,Cap Land/Build-Build Enh Wrk,Cap Land/Build-Build Enh Wrk,YA102,8/28/2014,300606,8802,NORTHERN POWERGRID (YORKSHIRE) PLC,CAPITAL,108328
NORTH EAST LINCOLNSHIRE COUNCIL,http://statistics.data.gov.uk/id/local-authority/00FC,Place,Economy,Pinchpoint Scheme,Cap Land/Build-Build Enh Wrk,Cap Land/Build-Build Enh Wrk,YA102,8/7/2014,298225,13264.04,EC SURFACING LTD,CAPITAL,125951
NORTH EAST LINCOLNSHIRE COUNCIL,http://statistics.data.gov.uk/id/local-authority/00FC,Place,Economy,Pinchpoint Scheme,Cap Land/Build-Build Enh Wrk,Cap Land/Build-Build Enh Wrk,YA102,8/21/2014,300542,8592,NORTHERN POWERGRID (YORKSHIRE) PLC,CAPITAL,108328
NORTH EAST LINCOLNSHIRE COUNCIL,http://statistics.data.gov.uk/id/local-authority/00FC,Place,Economy,Pinchpoint Scheme,Cap Land/Build-Build Enh Wrk,Cap Land/Build-Build Enh Wrk,YA102,8/12/2014,296184,2246.5,ROAD TRAFFIC SOLUTIONS LIMITED,CAPITAL,110409
NORTH EAST LINCOLNSHIRE COUNCIL,http://statistics.data.gov.uk/id/local-authority/00FC,Place,Economy,Pinchpoint Scheme,Cap Land/Build-Build Enh Wrk,Cap Land/Build-Build Enh Wrk,YA102,8/5/2014,296028,297.96,TRAFFIC SYSTEMS CO-OPERATIVE,CAPITAL,100844
NORTH EAST LINCOLNSHIRE COUNCIL,http://statistics.data.gov.uk/id/local-authority/00FC,Place,Culture Leisure And Sport,New Leisure Centre At Grimsby,Cap Land/Build-Build Enh Wrk,Cap Land/Build-Build Enh Wrk,YA102,8/21/2014,299724,26983.22,TOPCON CONSTRUCTION LTD,CAPITAL,108462
NORTH EAST LINCOLNSHIRE COUNCIL,http://statistics.data.gov.uk/id/local-authority/00FC,Place,Culture Leisure And Sport,New Leisure Centre At Grimsby,Cap Land/Build-Build Enh Wrk,Cap Land/Build-Build Enh Wrk,YA102,8/18/2014,299107,980,REDHILL ANALYSTS LTD,CAPITAL,109169
NORTH EAST LINCOLNSHIRE COUNCIL,http://statistics.data.gov.uk/id/local-authority/00FC,Place,Culture Leisure And Sport,New Leisure Centre At Grimsby,Cap Land/Build-Build Enh Wrk,Cap Land/Build-Build Enh Wrk,YA102,8/18/2014,299104,408,REDHILL ANALYSTS LTD,CAPITAL,109169
NORTH EAST LINCOLNSHIRE COUNCIL,http://statistics.data.gov.uk/id/local-authority/00FC,Place,Culture Leisure And Sport,Cleethorpes Leis Cent Refurb,Cap Land/Build-Build Enh Wrk,Cap Land/Build-Build Enh Wrk,YA102,8/18/2014,299723,419,SEYMOUR & CASTLE LTD,CAPITAL,125536
NORTH EAST LINCOLNSHIRE COUNCIL,http://statistics.data.gov.uk/id/local-authority/00FC,Place,Culture Leisure And Sport,Cleethorpes Leis Cent Refurb,Cap Land/Build-Build Enh Wrk,Cap Land/Build-Build Enh Wrk,YA102,8/14/2014,299091,695,SAFE STEP (UK) LTD,CAPITAL,125682
NORTH EAST LINCOLNSHIRE COUNCIL,http://statistics.data.gov.uk/id/local-authority/00FC,Place,Culture Leisure And Sport,Cleethorpes Leis Cent Refurb,Cap Land/Build-Build Enh Wrk,Cap Land/Build-Build Enh Wrk,YA102,8/18/2014,299109,495,SAFE STEP (UK) LTD,CAPITAL,125682
NORTH EAST LINCOLNSHIRE COUNCIL,http://statistics.data.gov.uk/id/local-authority/00FC,Place,Culture Leisure And Sport,Immingham Pool,Cap Land/Build-Build Enh Wrk,Cap Land/Build-Build Enh Wrk,YA102,8/18/2014,299082,1440,REDHILL ANALYSTS LTD,CAPITAL,109169
NORTH EAST LINCOLNSHIRE COUNCIL,http://statistics.data.gov.uk/id/local-authority/00FC,Place,Culture Leisure And Sport,Immingham Pool,Cap Land/Build-Prof Fees,Cap Land/Build-Prof Fees,YA103,8/22/2014,300238,15000,COFELY WORKPLACE LIMITED,CAPITAL,123983
NORTH EAST LINCOLNSHIRE COUNCIL,http://statistics.data.gov.uk/id/local-authority/00FC,Place,Culture Leisure And Sport,Immingham Pool,Cap Land/Build-Prof Fees,Cap Land/Build-Prof Fees,YA103,8/21/2014,300235,5000,COFELY WORKPLACE LIMITED,CAPITAL,123983
NORTH EAST LINCOLNSHIRE COUNCIL,http://statistics.data.gov.uk/id/local-authority/00FC,Place,Culture Leisure And Sport,Immingham Muga,Cap Land/Build-Build Enh Wrk,Cap Land/Build-Build Enh Wrk,YA102,8/21/2014,300237,1500,COFELY WORKPLACE LIMITED,CAPITAL,123983
NORTH EAST LINCOLNSHIRE COUNCIL,http://statistics.data.gov.uk/id/local-authority/00FC,Place,Culture Leisure And Sport,Immingham Muga,Cap Land/Build-Build Enh Wrk,Cap Land/Build-Build Enh Wrk,YA102,8/5/2014,297360,45620.31,THORNTON CONTRACTS LTD,CAPITAL,126929
NORTH EAST LINCOLNSHIRE COUNCIL,http://statistics.data.gov.uk/id/local-authority/00FC,Place,Assets,Backlog Maintenance,Cap Land/Build-Build Enh Wrk,Cap Land/Build-Build Enh Wrk,YA102,8/27/2014,297786,5800,HODSON & KAUSS,CAPITAL,100620
NORTH EAST LINCOLNSHIRE COUNCIL,http://statistics.data.gov.uk/id/local-authority/00FC,Place,Assets,Backlog Maintenance,Cap Land/Build-Build Enh Wrk,Cap Land/Build-Build Enh Wrk,YA102,8/7/2014,297393,2218.8,CARE PLUS GROUP,CAPITAL,106467
NORTH EAST LINCOLNSHIRE COUNCIL,http://statistics.data.gov.uk/id/local-authority/00FC,Place,Assets,Backlog Maintenance,Cap Land/Build-Build Enh Wrk,Cap Land/Build-Build Enh Wrk,YA102,8/18/2014,299727,2744,HIRST CONSERVATION,CAPITAL,108145
NORTH EAST LINCOLNSHIRE COUNCIL,http://statistics.data.gov.uk/id/local-authority/00FC,Place,Assets,Backlog Maintenance,Cap Land/Build-Build Enh Wrk,Cap Land/Build-Build Enh Wrk,YA102,8/7/2014,297386,606,JAMES BRATTON & CO LTD,CAPITAL,100714
NORTH EAST LINCOLNSHIRE COUNCIL,http://statistics.data.gov.uk/id/local-authority/00FC,Place,Assets,Backlog Maintenance,Cap Land/Build-Prof Fees,Cap Land/Build-Prof Fees,YA103,8/7/2014,297392,3000,BALFOUR BEATTY,CAPITAL,102595
NORTH EAST LINCOLNSHIRE COUNCIL,http://statistics.data.gov.uk/id/local-authority/00FC,Place,Assets,Backlog Maintenance,Cap Land/Build-Prof Fees,Cap Land/Build-Prof Fees,YA103,8/7/2014,297391,3025.21,BALFOUR BEATTY,CAPITAL,102595
NORTH EAST LINCOLNSHIRE COUNCIL,http://statistics.data.gov.uk/id/local-authority/00FC,Place,Assets,Saltings Allotments Developmt,Cap Land/Build-Build Enh Wrk,Cap Land/Build-Build Enh Wrk,YA102,8/26/2014,300939,9012.95,P G INGOLDBY & SONS LTD,CAPITAL,100591
NORTH EAST LINCOLNSHIRE COUNCIL,http://statistics.data.gov.uk/id/local-authority/00FC,Place,Assets,Property Rationalisation Prog,Cap Infrastr-Purchase,Cap Infrastr-Purchase,YC101,8/11/2014,295375,3645,DELL COMPUTER CORPORATION LTD,CAPITAL,100892
NORTH EAST LINCOLNSHIRE COUNCIL,http://statistics.data.gov.uk/id/local-authority/00FC,Place,Assets,Property Rationalisation Prog,Cap Infrastr-Purchase,Cap Infrastr-Purchase,YC101,8/15/2014,298838,460.46,COMPUTACENTER UK LTD,CAPITAL,101303
NORTH EAST LINCOLNSHIRE COUNCIL,http://statistics.data.gov.uk/id/local-authority/00FC,Place,Assets,Property Rationalisation Prog,Cap Infrastr-Purchase,Cap Infrastr-Purchase,YC101,8/13/2014,298751,1731.8,INSIGHT DIRECT (UK) LTD,CAPITAL,101011
NORTH EAST LINCOLNSHIRE COUNCIL,http://statistics.data.gov.uk/id/local-authority/00FC,Place,Assets,Property Rationalisation Prog,Cap Infrastr-Purchase,Cap Infrastr-Purchase,YC101,8/21/2014,299802,5001.81,SPECIALIST COMPUTER CENTRES PLC,CAPITAL,110715
NORTH EAST LINCOLNSHIRE COUNCIL,http://statistics.data.gov.uk/id/local-authority/00FC,Place,Assets,Property Rationalisation Prog,Cap Infrastr-Purchase,Cap Infrastr-Purchase,YC101,8/21/2014,299802,466.7,SPECIALIST COMPUTER CENTRES PLC,CAPITAL,110715
NORTH EAST LINCOLNSHIRE COUNCIL,http://statistics.data.gov.uk/id/local-authority/00FC,Place,Assets,Property Rationalisation Prog,Cap Infrastr-Purchase,Cap Infrastr-Purchase,YC101,8/18/2014,298672,368.85,INSIGHT DIRECT (UK) LTD,CAPITAL,101011
NORTH EAST LINCOLNSHIRE COUNCIL,http://statistics.data.gov.uk/id/local-authority/00FC,Place,Assets,Property Rationalisation Prog,Cap Infrastr-Purchase,Cap Infrastr-Purchase,YC101,8/14/2014,299018,1440,VIGLEN LIMITED,CAPITAL,100883
NORTH EAST LINCOLNSHIRE COUNCIL,http://statistics.data.gov.uk/id/local-authority/00FC,Place,Assets,Property Rationalisation Prog,Cap Infrastr-Build Enh Wrk,Cap Infrastr-Build Enh Wrk,YC102,8/18/2014,299761,259.92,INFO TECHNOLOGY SUPPLY LIMITED,CAPITAL,101771
NORTH EAST LINCOLNSHIRE COUNCIL,http://statistics.data.gov.uk/id/local-authority/00FC,Place,Assets,Property Rationalisation Prog,Cap Land/Build-Build Enh Wrk,Cap Land/Build-Build Enh Wrk,YA102,8/28/2014,301483,570,SIGNS EXPRESS (N & NE LINCS),CAPITAL,100983
NORTH EAST LINCOLNSHIRE COUNCIL,http://statistics.data.gov.uk/id/local-authority/00FC,Place,Assets,Property Rationalisation Prog,Cap Infrastr-Build Enh Wrk,Cap Infrastr-Build Enh Wrk,YC102,8/28/2014,301473,1425,W R CULLUM,CAPITAL,100811
NORTH EAST LINCOLNSHIRE COUNCIL,http://statistics.data.gov.uk/id/local-authority/00FC,Place,Assets,Property Rationalisation Prog,Cap Infrastr-Build Enh Wrk,Cap Infrastr-Build Enh Wrk,YC102,8/14/2014,299281,250,W R CULLUM,CAPITAL,100811
NORTH EAST LINCOLNSHIRE COUNCIL,http://statistics.data.gov.uk/id/local-authority/00FC,Place,Assets,Property Rationalisation Prog,Cap Infrastr-Build Enh Wrk,Cap Infrastr-Build Enh Wrk,YC102,8/14/2014,299282,450,W R CULLUM,CAPITAL,100811
NORTH EAST LINCOLNSHIRE COUNCIL,http://statistics.data.gov.uk/id/local-authority/00FC,Place,Assets,Property Rationalisation Prog,Cap Infrastr-Purchase,Cap Infrastr-Purchase,YC101,8/11/2014,296244,418.6,COMPUTACENTER UK LTD,CAPITAL,101303
NORTH EAST LINCOLNSHIRE COUNCIL,http://statistics.data.gov.uk/id/local-authority/00FC,Place,Assets,Property Rationalisation Prog,Cap Infrastr-Purchase,Cap Infrastr-Purchase,YC101,8/14/2014,293360,454.71,SPECIALIST COMPUTER CENTRES PLC,CAPITAL,110715
NORTH EAST LINCOLNSHIRE COUNCIL,http://statistics.data.gov.uk/id/local-authority/00FC,Place,Assets,Property Rationalisation Prog,Cap Infrastr-Purchase,Cap Infrastr-Purchase,YC101,8/1/2014,296634,711.62,COMPUTACENTER UK LTD,CAPITAL,101303
NORTH EAST LINCOLNSHIRE COUNCIL,http://statistics.data.gov.uk/id/local-authority/00FC,Place,Assets,Property Rationalisation Prog,Cap Land/Build-Build Enh Wrk,Cap Land/Build-Build Enh Wrk,YA102,8/19/2014,299949,15698.18,MANTA BRC LTD,CAPITAL,102230
NORTH EAST LINCOLNSHIRE COUNCIL,http://statistics.data.gov.uk/id/local-authority/00FC,Place,Assets,Property Rationalisation Prog,Cap Infrastr-Purchase,Cap Infrastr-Purchase,YC101,8/13/2014,298728,4092.39,SPECIALIST COMPUTER CENTRES PLC,CAPITAL,110715
NORTH EAST LINCOLNSHIRE COUNCIL,http://statistics.data.gov.uk/id/local-authority/00FC,Place,Assets,Property Rationalisation Prog,Cap Infrastr-Build Enh Wrk,Cap Infrastr-Build Enh Wrk,YC102,8/14/2014,299237,1550,W R CULLUM,CAPITAL,100811
NORTH EAST LINCOLNSHIRE COUNCIL,http://statistics.data.gov.uk/id/local-authority/00FC,Place,Assets,Property Rationalisation Prog,Cap Infrastr-Build Enh Wrk,Cap Infrastr-Build Enh Wrk,YC102,8/18/2014,299284,1155.5,W R CULLUM,CAPITAL,100811
NORTH EAST LINCOLNSHIRE COUNCIL,http://statistics.data.gov.uk/id/local-authority/00FC,Place,Assets,Property Rationalisation Prog,Cap Infrastr-Build Enh Wrk,Cap Infrastr-Build Enh Wrk,YC102,8/28/2014,301472,1388,W R CULLUM,CAPITAL,100811
NORTH EAST LINCOLNSHIRE COUNCIL,http://statistics.data.gov.uk/id/local-authority/00FC,Place,Assets,Depot Investment,Cap Land/Build-Build Enh Wrk,Cap Land/Build-Build Enh Wrk,YA102,8/27/2014,301412,839,RIGGOTT & CO LTD,CAPITAL,104915
NORTH EAST LINCOLNSHIRE COUNCIL,http://statistics.data.gov.uk/id/local-authority/00FC,Public Health,Public Health,Director Public Health,Direct Employee Expenses,Agency Staff,EA105,8/1/2014,297244,1640.6,VOLUNTARY ACTION NORTH EAST LINCOLNSHIRE,REVENUE,103631
NORTH EAST LINCOLNSHIRE COUNCIL,http://statistics.data.gov.uk/id/local-authority/00FC,Public Health,Public Health,Director Public Health,Equip / Furniture / Materials,Promotions,LA124,8/5/2014,296525,6931.41,CARE PLUS GROUP,REVENUE,106467
NORTH EAST LINCOLNSHIRE COUNCIL,http://statistics.data.gov.uk/id/local-authority/00FC,Public Health,Public Health,Director Public Health,Equip / Furniture / Materials,Promotions,LA124,8/28/2014,301362,8213.54,CENTRE4 LIMITED,REVENUE,126893
NORTH EAST LINCOLNSHIRE COUNCIL,http://statistics.data.gov.uk/id/local-authority/00FC,Public Health,Public Health,Director Public Health,Equip / Furniture / Materials,Promotions,LA124,8/5/2014,296366,22500,TERTIA TRUST HUMBERSTON,REVENUE,114719
NORTH EAST LINCOLNSHIRE COUNCIL,http://statistics.data.gov.uk/id/local-authority/00FC,Public Health,Public Health,Director Public Health,Expenses,Course/Conf Accom - Employees,LH102,8/13/2014,299006,400,PUBLIC HEALTH ENGLAND,REVENUE,120819
NORTH EAST LINCOLNSHIRE COUNCIL,http://statistics.data.gov.uk/id/local-authority/00FC,Public Health,Public Health,Director Public Health,Consultancy,Consultancy,PL101,8/5/2014,296795,1700,UK HEALTH FORUM,REVENUE,122205
NORTH EAST LINCOLNSHIRE COUNCIL,http://statistics.data.gov.uk/id/local-authority/00FC,Public Health,Public Health,Sexual Health,Contributions To Provisions,Contributions - Communities,LK101,8/7/2014,297822,3810.04,VIRGIN CARE SERVICES LTD,REVENUE,120538
NORTH EAST LINCOLNSHIRE COUNCIL,http://statistics.data.gov.uk/id/local-authority/00FC,Public Health,Public Health,Sexual Health,Contributions To Provisions,Contributions - Communities,LK101,8/11/2014,298174,2777.36,VIRGIN CARE SERVICES LTD,REVENUE,120538
NORTH EAST LINCOLNSHIRE COUNCIL,http://statistics.data.gov.uk/id/local-authority/00FC,Public Health,Public Health,Sexual Health,Contributions To Provisions,Contributions - Communities,LK101,8/19/2014,299878,3902.32,VIRGIN CARE SERVICES LTD,REVENUE,120538
NORTH EAST LINCOLNSHIRE COUNCIL,http://statistics.data.gov.uk/id/local-authority/00FC,Public Health,Public Health,Sexual Health,Contributions To Provisions,Contributions - Communities,LK101,8/21/2014,299877,2683.84,VIRGIN CARE SERVICES LTD,REVENUE,120538
NORTH EAST LINCOLNSHIRE COUNCIL,http://statistics.data.gov.uk/id/local-authority/00FC,Public Health,Public Health,Sexual Health,Voluntary Associations,Third Pp - Third Sector,PF101,8/12/2014,298181,2331.69,POSITIVE HEALTH,REVENUE,125235
NORTH EAST LINCOLNSHIRE COUNCIL,http://statistics.data.gov.uk/id/local-authority/00FC,Public Health,Public Health,Sexual Health,Private Contractors,Contract Payments,PH105,8/7/2014,298202,13894.2,VIRGIN CARE SERVICES LTD,REVENUE,120538
NORTH EAST LINCOLNSHIRE COUNCIL,http://statistics.data.gov.uk/id/local-authority/00FC,Public Health,Public Health,Sexual Health,Private Contractors,Contract Payments,PH105,8/12/2014,298175,55401,VIRGIN CARE SERVICES LTD,REVENUE,120538
NORTH EAST LINCOLNSHIRE COUNCIL,http://statistics.data.gov.uk/id/local-authority/00FC,Public Health,Public Health,Sexual Health,Private Contractors,Third Party Prov - Private,PH101,8/12/2014,297436,420,ASDA PHARMACY,REVENUE,104011
NORTH EAST LINCOLNSHIRE COUNCIL,http://statistics.data.gov.uk/id/local-authority/00FC,Public Health,Public Health,Sexual Health,Private Contractors,Third Party Prov - Private,PH101,8/21/2014,299854,285,EA BROADBURN DISPENSING CHEMIST,REVENUE,101135
NORTH EAST LINCOLNSHIRE COUNCIL,http://statistics.data.gov.uk/id/local-authority/00FC,Public Health,Public Health,Sexual Health,Other Agencies,Health Charges,PJ131,8/7/2014,298200,522,SHEFFIELD TEACHING HOSPITALS NHS TRUST,REVENUE,101211
NORTH EAST LINCOLNSHIRE COUNCIL,http://statistics.data.gov.uk/id/local-authority/00FC,Public Health,Public Health,Sexual Health,Other Agencies,Health Charges,PJ131,8/18/2014,299769,938,VIRGIN CARE SERVICES LTD,REVENUE,120538
NORTH EAST LINCOLNSHIRE COUNCIL,http://statistics.data.gov.uk/id/local-authority/00FC,Public Health,Public Health,Sexual Health,Other Agencies,Health Charges,PJ131,8/21/2014,300490,326.42,VIRGIN CARE SERVICES LTD,REVENUE,120538
NORTH EAST LINCOLNSHIRE COUNCIL,http://statistics.data.gov.uk/id/local-authority/00FC,Public Health,Public Health,Sexual Health,Other Agencies,Health Charges,PJ131,8/28/2014,301041,255,WARRINGTON & HALTON NHS FOUNDATION TRUST,REVENUE,127186
NORTH EAST LINCOLNSHIRE COUNCIL,http://statistics.data.gov.uk/id/local-authority/00FC,Public Health,Public Health,Sexual Health,Other Agencies,Health Charges,PJ131,8/12/2014,297821,379,CITY HEALTH CARE PARTNERSHIP CIC,REVENUE,110889
NORTH EAST LINCOLNSHIRE COUNCIL,http://statistics.data.gov.uk/id/local-authority/00FC,Public Health,Public Health,Sexual Health,Other Agencies,Health Charges,PJ131,8/13/2014,297826,268,VIRGIN CARE SERVICES LTD,REVENUE,120538
NORTH EAST LINCOLNSHIRE COUNCIL,http://statistics.data.gov.uk/id/local-authority/00FC,Public Health,Public Health,Sexual Health,Other Agencies,Other,PJ121,8/14/2014,298789,640,DR HOPPER & PARTNERS,REVENUE,103900
NORTH EAST LINCOLNSHIRE COUNCIL,http://statistics.data.gov.uk/id/local-authority/00FC,Public Health,Public Health,Sexual Health,Other Agencies,Other,PJ121,8/7/2014,298203,1280,THE CHANTRY HEALTH GROUP,REVENUE,108912
NORTH EAST LINCOLNSHIRE COUNCIL,http://statistics.data.gov.uk/id/local-authority/00FC,Public Health,Public Health,Sexual Health,Other Agencies,Other,PJ121,8/12/2014,297848,960,THE ROXTON PRACTICE,REVENUE,104395
NORTH EAST LINCOLNSHIRE COUNCIL,http://statistics.data.gov.uk/id/local-authority/00FC,Other Corporate Budgets,Other Corp Budgets - Technical,Appropriations,Indirect Employee Expenses,Pension P/Ment Pension Inc Act,EB105,8/18/2014,298270,994.42,LINCOLNSHIRE COUNTY COUNCIL,REVENUE,100389
NORTH EAST LINCOLNSHIRE COUNCIL,http://statistics.data.gov.uk/id/local-authority/00FC,Other Corporate Budgets,Other Corp Budgets - Financing,Borrowing Costs,Other Agencies,Fees Comm Clf Logotech Charges,PJ142,8/7/2014,297824,650,PSLIVE LTD,REVENUE,125043
NORTH EAST LINCOLNSHIRE COUNCIL,http://statistics.data.gov.uk/id/local-authority/00FC,People,Early Intervention,Integrated Youth Services,Equip / Furniture / Materials,Equipment - Purchase,LA101,8/5/2014,297149,256.5,INCENTIVE PLUS LTD,REVENUE,108184
NORTH EAST LINCOLNSHIRE COUNCIL,http://statistics.data.gov.uk/id/local-authority/00FC,People,Early Intervention,Integrated Youth Services,Contributions To Provisions,Contributions - Other,LK103,8/7/2014,298197,765,WESTCLIFF COMMUNITY ASSOCIATION,REVENUE,103393
NORTH EAST LINCOLNSHIRE COUNCIL,http://statistics.data.gov.uk/id/local-authority/00FC,People,Early Intervention,Integrated Youth Services,Miscellaneous Expenses,Activities - Service Users,LL114,8/7/2014,298194,864,STREET BEAT DANCE ACADEMY,REVENUE,122443
NORTH EAST LINCOLNSHIRE COUNCIL,http://statistics.data.gov.uk/id/local-authority/00FC,People,Early Intervention,Integrated Youth Services,Miscellaneous Expenses,Activities - Service Users,LL114,8/12/2014,297559,3200,PEAK MOUNTAIN ADVENTURES LTD,REVENUE,121749
NORTH EAST LINCOLNSHIRE COUNCIL,http://statistics.data.gov.uk/id/local-authority/00FC,People,Early Intervention,Integrated Youth Services,Direct Employee Expenses,Agency Staff,EA105,8/18/2014,299825,1274.64,VOLUNTARY ACTION NORTH EAST LINCOLNSHIRE,REVENUE,103631
NORTH EAST LINCOLNSHIRE COUNCIL,http://statistics.data.gov.uk/id/local-authority/00FC,People,Early Intervention,Integrated Youth Services,Catering,Provisions,LB101,8/7/2014,298191,297.09,KANDYWORLD,REVENUE,107317
NORTH EAST LINCOLNSHIRE COUNCIL,http://statistics.data.gov.uk/id/local-authority/00FC,People,Early Intervention,Integrated Youth Services,Indirect Employee Expenses,Redundancy,EB109,8/4/2014,251223,REDACTED PERSONAL INFORMATION,REDACTED PERSONAL INFORMATION,REVENUE,REDACTED PERSONAL INFORMATION
NORTH EAST LINCOLNSHIRE COUNCIL,http://statistics.data.gov.uk/id/local-authority/00FC,People,Early Intervention,Integrated Youth Services,Voluntary Associations,Third Pp - Third Sector,PF101,8/7/2014,298117,10000,GRIMSBY TOWN FOOTBALL IN THE COMMUNITY,REVENUE,100978
NORTH EAST LINCOLNSHIRE COUNCIL,http://statistics.data.gov.uk/id/local-authority/00FC,People,Early Intervention,Integrated Youth Services,Indirect Employee Expenses,Staff Training,EB122,8/21/2014,300263,390,APAC LTD,REVENUE,126966
NORTH EAST LINCOLNSHIRE COUNCIL,http://statistics.data.gov.uk/id/local-authority/00FC,People,Early Intervention,Integrated Youth Services,Miscellaneous Expenses,Activities - Service Users,LL114,8/5/2014,297804,5000,GET HOOKED ON POSITIVE ACTIVITIES,REVENUE,111758
NORTH EAST LINCOLNSHIRE COUNCIL,http://statistics.data.gov.uk/id/local-authority/00FC,People,Early Intervention,Childrens Health Provision,Equip / Furniture / Materials,Equipment - Purchase,LA101,8/5/2014,295566,720,WILLIAMS MEDICAL SUPPLIES,REVENUE,106409
NORTH EAST LINCOLNSHIRE COUNCIL,http://statistics.data.gov.uk/id/local-authority/00FC,People,Early Intervention,Childrens Health Provision,Communications And Computing,Computer H/Ware - Purchases,LF105,8/13/2014,299000,360,VIGLEN LIMITED,REVENUE,100883
NORTH EAST LINCOLNSHIRE COUNCIL,http://statistics.data.gov.uk/id/local-authority/00FC,People,Early Intervention,Childrens Health Provision,Rents,Rent,GC101,8/6/2014,297737,340,GRIMSBY CENTRAL HALL TRUST,REVENUE,100882
NORTH EAST LINCOLNSHIRE COUNCIL,http://statistics.data.gov.uk/id/local-authority/00FC,People,Early Intervention,Childrens Health Provision,Rents,Rent,GC101,8/6/2014,297737,375,GRIMSBY CENTRAL HALL TRUST,REVENUE,100882
NORTH EAST LINCOLNSHIRE COUNCIL,http://statistics.data.gov.uk/id/local-authority/00FC,People,Early Intervention,Childrens Health Provision,Rents,Rent,GC101,8/12/2014,298281,1138.22,NORTH EAST LINCOLNSHIRE COUNCIL,REVENUE,100894
NORTH EAST LINCOLNSHIRE COUNCIL,http://statistics.data.gov.uk/id/local-authority/00FC,People,Early Intervention,Childrens Health Provision,Communications And Computing,Telephones,LF112,8/21/2014,299828,304.82,ASSURA MEDICAL CENTRES LIMITED,REVENUE,125380
NORTH EAST LINCOLNSHIRE COUNCIL,http://statistics.data.gov.uk/id/local-authority/00FC,People,Early Intervention,Childrens Centre Development,Rep Alterations Maint Building,Buildings - Repairs And Maint,GA102,8/14/2014,299394,1065.5,HAITHS HEATING LTD,REVENUE,101342
NORTH EAST LINCOLNSHIRE COUNCIL,http://statistics.data.gov.uk/id/local-authority/00FC,People,Early Intervention,Childrens Centre Development,Energy Costs,Electricity,GB102,8/1/2014,297271,1507.37,NPOWER LIMITED,REVENUE,101414
NORTH EAST LINCOLNSHIRE COUNCIL,http://statistics.data.gov.uk/id/local-authority/00FC,People,Early Intervention,Childrens Centre Development,Other Agencies,Child Care Payments,PJ104,8/5/2014,296580,980.84,PRE SCHOOL LEARNING ALLIANCE,REVENUE,101437
NORTH EAST LINCOLNSHIRE COUNCIL,http://statistics.data.gov.uk/id/local-authority/00FC,People,Early Intervention,Childrens Centre Development,Rep Alterations Maint Building,Buildings - Repairs And Maint,GA102,8/28/2014,301011,3492,STRAND PRIMARY ACADEMY,REVENUE,111862
NORTH EAST LINCOLNSHIRE COUNCIL,http://statistics.data.gov.uk/id/local-authority/00FC,People,Early Intervention,Childrens Centre Development,Cleaning And Domestic Supplies,Cleaning - Services,GH102,8/26/2014,300961,541,EASY CLEAN MARSHCHAPEL LTD,REVENUE,104531
NORTH EAST LINCOLNSHIRE COUNCIL,http://statistics.data.gov.uk/id/local-authority/00FC,People,Early Intervention,Childrens Centre Development,Cleaning And Domestic Supplies,Cleaning - Services,GH102,8/11/2014,297562,668.2,TULIP HEALTHCARE,REVENUE,101042
NORTH EAST LINCOLNSHIRE COUNCIL,http://statistics.data.gov.uk/id/local-authority/00FC,People,Early Intervention,Childrens Centre Development,Equip / Furniture / Materials,Non-Teaching Resources,LA118,8/15/2014,294373,-42.95,TECHNOLOGY TEACHING SYSTEMS LTD,REVENUE,100996
NORTH EAST LINCOLNSHIRE COUNCIL,http://statistics.data.gov.uk/id/local-authority/00FC,People,Early Intervention,Childrens Centre Development,Catering,Provisions,LB101,8/5/2014,297353,250,TESCO STORES LIMITED,REVENUE,102576
NORTH EAST LINCOLNSHIRE COUNCIL,http://statistics.data.gov.uk/id/local-authority/00FC,People,Early Intervention,Childrens Centre Development,Indirect Employee Expenses,Staff Training,EB122,8/21/2014,299827,880,FAMILY LINKS,REVENUE,101506
NORTH EAST LINCOLNSHIRE COUNCIL,http://statistics.data.gov.uk/id/local-authority/00FC,People,Early Intervention,Childrens Centre Development,Car Allowances,Travel - Employees,JF101,8/15/2014,298620,428.1,REVELLS TAXIS (ED/SOC SERV),REVENUE,100559
NORTH EAST LINCOLNSHIRE COUNCIL,http://statistics.data.gov.uk/id/local-authority/00FC,People,Early Intervention,Childrens Centre Development,Miscellaneous Expenses,Legal Fees - General,LL103,8/5/2014,296810,250,THOMPSONS SOLICITORS,REVENUE,101854
NORTH EAST LINCOLNSHIRE COUNCIL,http://statistics.data.gov.uk/id/local-authority/00FC,People,Early Intervention,Childrens Centre Development,Private Contractors,Third Party Prov - Private,PH101,8/11/2014,297277,1684,N LINCS & GOOLE HOSPITALS NHS,REVENUE,111074
NORTH EAST LINCOLNSHIRE COUNCIL,http://statistics.data.gov.uk/id/local-authority/00FC,People,Early Intervention,Childrens Centre Development,Private Contractors,Third Party Prov - Private,PH101,8/7/2014,297275,8505,N LINCS & GOOLE HOSPITALS NHS,REVENUE,111074
NORTH EAST LINCOLNSHIRE COUNCIL,http://statistics.data.gov.uk/id/local-authority/00FC,People,Early Intervention,Childrens Centre Development,Energy Costs,Electricity,GB102,8/29/2014,301815,707.29,NPOWER LIMITED,REVENUE,101414
NORTH EAST LINCOLNSHIRE COUNCIL,http://statistics.data.gov.uk/id/local-authority/00FC,People,Early Intervention,Childrens Centre Development,Other Agencies,Child Care Payments,PJ104,8/29/2014,301810,712.31,PRE SCHOOL LEARNING ALLIANCE,REVENUE,101437
NORTH EAST LINCOLNSHIRE COUNCIL,http://statistics.data.gov.uk/id/local-authority/00FC,People,Early Intervention,Childrens Centre Development,Other Agencies,Child Care Payments,PJ104,8/29/2014,301687,776.71,PRE SCHOOL LEARNING ALLIANCE,REVENUE,101437
NORTH EAST LINCOLNSHIRE COUNCIL,http://statistics.data.gov.uk/id/local-authority/00FC,People,Early Intervention,Childrens Centre Development,Other Agencies,Child Care Payments,PJ104,8/29/2014,301684,508.83,PRE SCHOOL LEARNING ALLIANCE,REVENUE,101437
NORTH EAST LINCOLNSHIRE COUNCIL,http://statistics.data.gov.uk/id/local-authority/00FC,People,Early Intervention,Childrens Centre Development,Other Agencies,Child Care Payments,PJ104,8/29/2014,301686,453.25,PRE SCHOOL LEARNING ALLIANCE,REVENUE,101437
NORTH EAST LINCOLNSHIRE COUNCIL,http://statistics.data.gov.uk/id/local-authority/00FC,People,Early Intervention,Childrens Centre Development,Other Agencies,Child Care Payments,PJ104,8/29/2014,301685,1033.01,PRE SCHOOL LEARNING ALLIANCE,REVENUE,101437
NORTH EAST LINCOLNSHIRE COUNCIL,http://statistics.data.gov.uk/id/local-authority/00FC,People,Early Intervention,Childrens Centre Development,Other Agencies,Child Care Payments,PJ104,8/29/2014,301688,1400.95,PRE SCHOOL LEARNING ALLIANCE,REVENUE,101437
NORTH EAST LINCOLNSHIRE COUNCIL,http://statistics.data.gov.uk/id/local-authority/00FC,People,Early Intervention,Childrens Centre Development,Rep Alterations Maint Building,Buildings - Repairs And Maint,GA102,8/18/2014,295971,7125,NEWBY LEISURE LTD,REVENUE,101227
NORTH EAST LINCOLNSHIRE COUNCIL,http://statistics.data.gov.uk/id/local-authority/00FC,People,Early Intervention,Childrens Centre Development,Energy Costs,Electricity,GB102,8/1/2014,296613,308.5,EDWARD HENEAGE PRIMARY (ACADEMY),REVENUE,111742
NORTH EAST LINCOLNSHIRE COUNCIL,http://statistics.data.gov.uk/id/local-authority/00FC,People,Early Intervention,Childrens Centre Development,Cleaning And Domestic Supplies,Refuse Collection,GH104,8/14/2014,295639,410.13,BELL WASTE CONTROL,REVENUE,101433
NORTH EAST LINCOLNSHIRE COUNCIL,http://statistics.data.gov.uk/id/local-authority/00FC,People,Early Intervention,Childrens Centre Development,Equip / Furniture / Materials,Non-Teaching Resources,LA118,8/7/2014,297398,250,MILLMAN COACHES,REVENUE,100700
NORTH EAST LINCOLNSHIRE COUNCIL,http://statistics.data.gov.uk/id/local-authority/00FC,People,Early Intervention,Childrens Centre Development,Equip / Furniture / Materials,Non-Teaching Resources,LA118,8/7/2014,297428,250,MILLMAN COACHES,REVENUE,100700
NORTH EAST LINCOLNSHIRE COUNCIL,http://statistics.data.gov.uk/id/local-authority/00FC,People,Early Intervention,Childrens Centre Development,Equip / Furniture / Materials,Non-Teaching Resources,LA118,8/7/2014,297397,250,MILLMAN COACHES,REVENUE,100700
NORTH EAST LINCOLNSHIRE COUNCIL,http://statistics.data.gov.uk/id/local-authority/00FC,People,Early Intervention,Childrens Centre Development,Equip / Furniture / Materials,Non-Teaching Resources,LA118,8/11/2014,297405,250,MILLMAN COACHES,REVENUE,100700
NORTH EAST LINCOLNSHIRE COUNCIL,http://statistics.data.gov.uk/id/local-authority/00FC,People,Early Intervention,Childrens Centre Development,Equip / Furniture / Materials,Non-Teaching Resources,LA118,8/21/2014,299807,580,AMVALE LIMITED,REVENUE,101030
NORTH EAST LINCOLNSHIRE COUNCIL,http://statistics.data.gov.uk/id/local-authority/00FC,People,Early Intervention,Childrens Centre Development,Rep Alterations Maint Building,Buildings - Repairs And Maint,GA102,8/26/2014,300582,370.5,HAITHS HEATING LTD,REVENUE,101342
NORTH EAST LINCOLNSHIRE COUNCIL,http://statistics.data.gov.uk/id/local-authority/00FC,People,Early Intervention,Childrens Centre Development,Energy Costs,Electricity,GB102,8/21/2014,300275,1862.73,REYNOLDS PRIMARY ACADEMY,REVENUE,122175
NORTH EAST LINCOLNSHIRE COUNCIL,http://statistics.data.gov.uk/id/local-authority/00FC,People,Early Intervention,Childrens Centre Development,Energy Costs,Gas,GB101,8/21/2014,300275,647.63,REYNOLDS PRIMARY ACADEMY,REVENUE,122175
NORTH EAST LINCOLNSHIRE COUNCIL,http://statistics.data.gov.uk/id/local-authority/00FC,People,Early Intervention,Childrens Centre Development,Other Agencies,Child Care Payments,PJ104,8/5/2014,296797,395.78,PRE SCHOOL LEARNING ALLIANCE,REVENUE,101437
NORTH EAST LINCOLNSHIRE COUNCIL,http://statistics.data.gov.uk/id/local-authority/00FC,People,Early Intervention,Childrens Centre Development,Rep Alterations Maint Building,Buildings - Repairs And Maint,GA102,8/14/2014,298820,380,HAITHS HEATING LTD,REVENUE,101342
NORTH EAST LINCOLNSHIRE COUNCIL,http://statistics.data.gov.uk/id/local-authority/00FC,People,Early Intervention,Childrens Centre Development,Catering,Provisions,LB101,8/15/2014,298985,-100.64,CO-OPERATIVE GROUP LTD,REVENUE,103377
NORTH EAST LINCOLNSHIRE COUNCIL,http://statistics.data.gov.uk/id/local-authority/00FC,People,Early Intervention,Childrens Centre Development,Other Agencies,Educational Visits,PJ152,8/28/2014,301365,290,AMVALE LIMITED,REVENUE,101030
NORTH EAST LINCOLNSHIRE COUNCIL,http://statistics.data.gov.uk/id/local-authority/00FC,People,Early Intervention,Childrens Centre Development,Other Agencies,Educational Visits,PJ152,8/11/2014,298325,315,AMVALE LIMITED,REVENUE,101030
NORTH EAST LINCOLNSHIRE COUNCIL,http://statistics.data.gov.uk/id/local-authority/00FC,People,Early Intervention,Childrens Centre Development,Rep Alterations Maint Building,Buildings - Repairs And Maint,GA102,8/12/2014,298212,295,NEWBY LEISURE LTD,REVENUE,101227
NORTH EAST LINCOLNSHIRE COUNCIL,http://statistics.data.gov.uk/id/local-authority/00FC,People,Early Intervention,Childrens Centre Development,Rates,Rates,GD101,8/5/2014,296850,19476.15,NORTH EAST LINCOLNSHIRE COUNCIL,REVENUE,100894
NORTH EAST LINCOLNSHIRE COUNCIL,http://statistics.data.gov.uk/id/local-authority/00FC,People,Early Intervention,Childrens Centre Development,Cleaning And Domestic Supplies,Cleaning - Services,GH102,8/12/2014,298779,286.29,THRUNSCOE PRIMARY AND NURSERY ACADEMY,REVENUE,118749
NORTH EAST LINCOLNSHIRE COUNCIL,http://statistics.data.gov.uk/id/local-authority/00FC,People,Early Intervention,Childrens Centre Development,Cleaning And Domestic Supplies,Cleaning - Services,GH102,8/12/2014,298779,545.76,THRUNSCOE PRIMARY AND NURSERY ACADEMY,REVENUE,118749
NORTH EAST LINCOLNSHIRE COUNCIL,http://statistics.data.gov.uk/id/local-authority/00FC,People,Early Intervention,Childrens Centre Development,Rep Alterations Maint Building,Buildings - Repairs And Maint,GA102,8/21/2014,300197,365,BRIAN TYNAN LTD,REVENUE,104834
NORTH EAST LINCOLNSHIRE COUNCIL,http://statistics.data.gov.uk/id/local-authority/00FC,People,Early Intervention,Childrens Centre Development,Cleaning And Domestic Supplies,Cleaning - Services,GH102,8/12/2014,298211,690.08,FUTURE CLEANING SERVICES LTD,REVENUE,102557
NORTH EAST LINCOLNSHIRE COUNCIL,http://statistics.data.gov.uk/id/local-authority/00FC,People,Early Intervention,Childrens Centre Development,Cleaning And Domestic Supplies,Cleaning - Services,GH102,8/12/2014,298210,860,FUTURE CLEANING SERVICES LTD,REVENUE,102557
NORTH EAST LINCOLNSHIRE COUNCIL,http://statistics.data.gov.uk/id/local-authority/00FC,People,Early Intervention,Childrens Centre Development,Other Agencies,Child Care Payments,PJ104,8/19/2014,300116,552.57,PRE SCHOOL LEARNING ALLIANCE,REVENUE,101437
NORTH EAST LINCOLNSHIRE COUNCIL,http://statistics.data.gov.uk/id/local-authority/00FC,People,Early Intervention,Childrens Centre Development,Other Agencies,Child Care Payments,PJ104,8/15/2014,299465,729.56,PRE-SCHOOL LEARNING ALLIANCE,REVENUE,107441
NORTH EAST LINCOLNSHIRE COUNCIL,http://statistics.data.gov.uk/id/local-authority/00FC,People,Early Intervention,Childrens Centre Development,Other Agencies,Child Care Payments,PJ104,8/5/2014,297663,779.7,PRE SCHOOL LEARNING ALLIANCE,REVENUE,101437
NORTH EAST LINCOLNSHIRE COUNCIL,http://statistics.data.gov.uk/id/local-authority/00FC,People,Early Intervention,Childrens Centre Development,Other Agencies,Educational Visits,PJ152,8/21/2014,299943,760,J R DENT COACHES,REVENUE,121435
NORTH EAST LINCOLNSHIRE COUNCIL,http://statistics.data.gov.uk/id/local-authority/00FC,People,Early Intervention,Childrens Centre Development,Communications And Computing,Computer H/Ware - Purchases,LF105,8/13/2014,298342,454.71,SPECIALIST COMPUTER CENTRES PLC,REVENUE,110715
NORTH EAST LINCOLNSHIRE COUNCIL,http://statistics.data.gov.uk/id/local-authority/00FC,People,Early Intervention,Child Protection / Safeguardin,Direct Employee Expenses,Agency Staff,EA105,8/19/2014,299060,1056,NONSTOP RECRUITMENT,REVENUE,120715
NORTH EAST LINCOLNSHIRE COUNCIL,http://statistics.data.gov.uk/id/local-authority/00FC,People,Early Intervention,Child Protection / Safeguardin,Direct Employee Expenses,Agency Staff,EA105,8/18/2014,299223,525.81,MATRIX SCM LTD,REVENUE,108117
NORTH EAST LINCOLNSHIRE COUNCIL,http://statistics.data.gov.uk/id/local-authority/00FC,People,Early Intervention,Child Protection / Safeguardin,Direct Employee Expenses,Agency Staff,EA105,8/11/2014,297787,336,NONSTOP RECRUITMENT,REVENUE,120715
NORTH EAST LINCOLNSHIRE COUNCIL,http://statistics.data.gov.uk/id/local-authority/00FC,People,Early Intervention,Child Protection / Safeguardin,Direct Employee Expenses,Agency Staff,EA105,8/18/2014,299753,1064.31,MATRIX SCM LTD,REVENUE,108117
NORTH EAST LINCOLNSHIRE COUNCIL,http://statistics.data.gov.uk/id/local-authority/00FC,People,Early Intervention,Child Protection / Safeguardin,Direct Employee Expenses,Agency Staff,EA105,8/15/2014,298655,1296.88,ESP LTD,REVENUE,101231
NORTH EAST LINCOLNSHIRE COUNCIL,http://statistics.data.gov.uk/id/local-authority/00FC,People,Early Intervention,Child Protection / Safeguardin,Direct Employee Expenses,Agency Staff,EA105,8/5/2014,296792,2306.95,ESP LTD,REVENUE,101231
NORTH EAST LINCOLNSHIRE COUNCIL,http://statistics.data.gov.uk/id/local-authority/00FC,People,Early Intervention,Child Protection / Safeguardin,Direct Employee Expenses,Agency Staff,EA105,8/11/2014,297788,1176,NONSTOP RECRUITMENT,REVENUE,120715
NORTH EAST LINCOLNSHIRE COUNCIL,http://statistics.data.gov.uk/id/local-authority/00FC,People,Early Intervention,Child Protection / Safeguardin,Direct Employee Expenses,Agency Staff,EA105,8/26/2014,300520,2306.95,ESP LTD,REVENUE,101231
NORTH EAST LINCOLNSHIRE COUNCIL,http://statistics.data.gov.uk/id/local-authority/00FC,People,Early Intervention,Child Protection / Safeguardin,Direct Employee Expenses,Agency Staff,EA105,8/21/2014,299938,2306.95,ESP LTD,REVENUE,101231
NORTH EAST LINCOLNSHIRE COUNCIL,http://statistics.data.gov.uk/id/local-authority/00FC,People,Early Intervention,Child Protection / Safeguardin,Rents,Rent,GC101,8/13/2014,298308,930,GRIMSBY CENTRAL HALL TRUST,REVENUE,100882
NORTH EAST LINCOLNSHIRE COUNCIL,http://statistics.data.gov.uk/id/local-authority/00FC,People,Early Intervention,Child Protection / Safeguardin,Private Contractors,Third Party Prov - Private,PH101,8/11/2014,298326,2413.34,SIMUL LTD,REVENUE,122141
NORTH EAST LINCOLNSHIRE COUNCIL,http://statistics.data.gov.uk/id/local-authority/00FC,People,Early Intervention,Head Of Child Hlth - Fam Supp,Indirect Employee Expenses,Staff Training,EB122,8/19/2014,298182,6250,BEVAN ASSOCIATES LTD,REVENUE,125247
NORTH EAST LINCOLNSHIRE COUNCIL,http://statistics.data.gov.uk/id/local-authority/00FC,People,Early Intervention,Head Of Child Hlth - Fam Supp,Rents,Service Charge,GC102,8/7/2014,297384,911.64,THE ROXTON PRACTICE,REVENUE,104395
NORTH EAST LINCOLNSHIRE COUNCIL,http://statistics.data.gov.uk/id/local-authority/00FC,People,Early Intervention,Head Of Child Hlth - Fam Supp,Rents,Service Charge,GC102,8/7/2014,297384,625.8,THE ROXTON PRACTICE,REVENUE,104395
NORTH EAST LINCOLNSHIRE COUNCIL,http://statistics.data.gov.uk/id/local-authority/00FC,People,Adult Serv & Hlth Improvement,Supporting People,Other Agencies,Third Pp - Block Gross,PJ103,8/22/2014,300899,426.66,ANCHOR TRUST,REVENUE,100327
NORTH EAST LINCOLNSHIRE COUNCIL,http://statistics.data.gov.uk/id/local-authority/00FC,People,Adult Serv & Hlth Improvement,Supporting People,Other Agencies,Third Pp - Block Gross,PJ103,8/22/2014,300894,7745.4,CARE LTD,REVENUE,100314
NORTH EAST LINCOLNSHIRE COUNCIL,http://statistics.data.gov.uk/id/local-authority/00FC,People,Adult Serv & Hlth Improvement,Supporting People,Other Agencies,Third Pp - Block Gross,PJ103,8/22/2014,300907,17510.04,CARE PLUS GROUP,REVENUE,106467
NORTH EAST LINCOLNSHIRE COUNCIL,http://statistics.data.gov.uk/id/local-authority/00FC,People,Adult Serv & Hlth Improvement,Supporting People,Other Agencies,Third Pp - Block Gross,PJ103,8/22/2014,300908,6825.05,CREATIVE SUPPORT LTD,REVENUE,107198
NORTH EAST LINCOLNSHIRE COUNCIL,http://statistics.data.gov.uk/id/local-authority/00FC,People,Adult Serv & Hlth Improvement,Supporting People,Other Agencies,Third Pp - Block Gross,PJ103,8/22/2014,300891,15753.87,DOORSTEP,REVENUE,100310
NORTH EAST LINCOLNSHIRE COUNCIL,http://statistics.data.gov.uk/id/local-authority/00FC,People,Adult Serv & Hlth Improvement,Supporting People,Other Agencies,Third Pp - Block Gross,PJ103,8/22/2014,300888,29598.05,GRIMSBY CLEETHORPES & HUMBER REGION YMCA,REVENUE,100305
NORTH EAST LINCOLNSHIRE COUNCIL,http://statistics.data.gov.uk/id/local-authority/00FC,People,Adult Serv & Hlth Improvement,Supporting People,Other Agencies,Third Pp - Block Gross,PJ103,8/22/2014,300889,295.5,HANOVER HOUSING ASSOCIATION,REVENUE,100307
NORTH EAST LINCOLNSHIRE COUNCIL,http://statistics.data.gov.uk/id/local-authority/00FC,People,Adult Serv & Hlth Improvement,Supporting People,Other Agencies,Third Pp - Block Gross,PJ103,8/22/2014,300897,25111.55,HOUSING & SUPPORT SOLUTIONS,REVENUE,100321
NORTH EAST LINCOLNSHIRE COUNCIL,http://statistics.data.gov.uk/id/local-authority/00FC,People,Adult Serv & Hlth Improvement,Supporting People,Other Agencies,Third Pp - Block Gross,PJ103,8/22/2014,300895,4535.71,HICA,REVENUE,100319
NORTH EAST LINCOLNSHIRE COUNCIL,http://statistics.data.gov.uk/id/local-authority/00FC,People,Adult Serv & Hlth Improvement,Supporting People,Other Agencies,Third Pp - Block Gross,PJ103,8/22/2014,300896,642.34,HOUSING 21,REVENUE,100320
NORTH EAST LINCOLNSHIRE COUNCIL,http://statistics.data.gov.uk/id/local-authority/00FC,People,Adult Serv & Hlth Improvement,Supporting People,Other Agencies,Third Pp - Block Gross,PJ103,8/22/2014,300892,7910.85,HUMBERCARE LTD,REVENUE,100311
NORTH EAST LINCOLNSHIRE COUNCIL,http://statistics.data.gov.uk/id/local-authority/00FC,People,Adult Serv & Hlth Improvement,Supporting People,Other Agencies,Third Pp - Block Gross,PJ103,8/22/2014,300893,5822.23,HUMBERCARE LTD,REVENUE,100311
NORTH EAST LINCOLNSHIRE COUNCIL,http://statistics.data.gov.uk/id/local-authority/00FC,People,Adult Serv & Hlth Improvement,Supporting People,Other Agencies,Third Pp - Block Gross,PJ103,8/22/2014,300902,72018.97,LONGHURST AND HAVELOK HOMES LTD,REVENUE,100342
NORTH EAST LINCOLNSHIRE COUNCIL,http://statistics.data.gov.uk/id/local-authority/00FC,People,Adult Serv & Hlth Improvement,Supporting People,Other Agencies,Third Pp - Block Gross,PJ103,8/22/2014,300903,8063.97,LONGHURST AND HAVELOK HOMES LTD,REVENUE,100342
NORTH EAST LINCOLNSHIRE COUNCIL,http://statistics.data.gov.uk/id/local-authority/00FC,People,Adult Serv & Hlth Improvement,Supporting People,Other Agencies,Third Pp - Block Gross,PJ103,8/22/2014,300906,12790.05,NAVIGO,REVENUE,104262
NORTH EAST LINCOLNSHIRE COUNCIL,http://statistics.data.gov.uk/id/local-authority/00FC,People,Adult Serv & Hlth Improvement,Supporting People,Other Agencies,Third Pp - Block Gross,PJ103,8/22/2014,300904,5612.94,OPEN DOOR,REVENUE,103147
NORTH EAST LINCOLNSHIRE COUNCIL,http://statistics.data.gov.uk/id/local-authority/00FC,People,Adult Serv & Hlth Improvement,Supporting People,Other Agencies,Third Pp - Block Gross,PJ103,8/22/2014,300905,4063.82,SANCTUARY HOUSING ASSOCIATION,REVENUE,103289
NORTH EAST LINCOLNSHIRE COUNCIL,http://statistics.data.gov.uk/id/local-authority/00FC,People,Adult Serv & Hlth Improvement,Supporting People,Other Agencies,Third Pp - Block Gross,PJ103,8/22/2014,300890,13512.09,THE SALVATION ARMY,REVENUE,100309
NORTH EAST LINCOLNSHIRE COUNCIL,http://statistics.data.gov.uk/id/local-authority/00FC,People,Adult Serv & Hlth Improvement,Supporting People,Other Agencies,Third Pp - Block Gross,PJ103,8/22/2014,300898,14677.89,WOMENS AID,REVENUE,100326
NORTH EAST LINCOLNSHIRE COUNCIL,http://statistics.data.gov.uk/id/local-authority/00FC,People,Adult Serv & Hlth Improvement,Supporting People,Other Agencies,Third Pp - Block Gross,PJ103,8/22/2014,300901,3846.08,YORK HOUSING ASSOCIATION LTD,REVENUE,100341
NORTH EAST LINCOLNSHIRE COUNCIL,http://statistics.data.gov.uk/id/local-authority/00FC,People,Adult Serv & Hlth Improvement,Supporting People,Other Agencies,Third Pp - Block Subsidy,PJ102,8/15/2014,298573,4862,NHS NORTH EAST LINCOLNSHIRE CCG,REVENUE,121549
NORTH EAST LINCOLNSHIRE COUNCIL,http://statistics.data.gov.uk/id/local-authority/00FC,People,Adult Serv & Hlth Improvement,Home Options,Private Contractors,Third Party Prov - Private,PH101,8/15/2014,299426,264,CARE PLUS GROUP,REVENUE,106467
NORTH EAST LINCOLNSHIRE COUNCIL,http://statistics.data.gov.uk/id/local-authority/00FC,People,Adult Serv & Hlth Improvement,Home Options,Private Contractors,Third Party Prov - Private,PH101,8/14/2014,298991,475,LOVELLE BACONS,REVENUE,103583
NORTH EAST LINCOLNSHIRE COUNCIL,http://statistics.data.gov.uk/id/local-authority/00FC,People,Adult Serv & Hlth Improvement,Home Options,Rents,Rent,GC101,8/18/2014,299413,1215,LONGHURST AND HAVELOK HOMES LTD,REVENUE,100342
NORTH EAST LINCOLNSHIRE COUNCIL,http://statistics.data.gov.uk/id/local-authority/00FC,People,Adult Serv & Hlth Improvement,Home Options,Rents,Rent,GC101,8/18/2014,299414,1215,LONGHURST AND HAVELOK HOMES LTD,REVENUE,100342
NORTH EAST LINCOLNSHIRE COUNCIL,http://statistics.data.gov.uk/id/local-authority/00FC,People,Adult Serv & Hlth Improvement,Home Options,Rents,Service Charge,GC102,8/21/2014,300449,-1.4,GOODWINS OF LINCOLNSHIRE LTD,REVENUE,102744
NORTH EAST LINCOLNSHIRE COUNCIL,http://statistics.data.gov.uk/id/local-authority/00FC,People,Adult Serv & Hlth Improvement,Home Options,Rents,Service Charge,GC102,8/21/2014,300450,-0.6,GOODWINS OF LINCOLNSHIRE LTD,REVENUE,102744
NORTH EAST LINCOLNSHIRE COUNCIL,http://statistics.data.gov.uk/id/local-authority/00FC,People,Adult Serv & Hlth Improvement,Home Options,Rents,Service Charge,GC102,8/21/2014,300449,-18,GOODWINS OF LINCOLNSHIRE LTD,REVENUE,102744
NORTH EAST LINCOLNSHIRE COUNCIL,http://statistics.data.gov.uk/id/local-authority/00FC,People,Adult Serv & Hlth Improvement,Home Options,Rents,Service Charge,GC102,8/21/2014,300450,-7.71,GOODWINS OF LINCOLNSHIRE LTD,REVENUE,102744
NORTH EAST LINCOLNSHIRE COUNCIL,http://statistics.data.gov.uk/id/local-authority/00FC,People,Adult Serv & Hlth Improvement,Home Options,Rents,Service Charge,GC102,8/14/2014,288743,310,CASH CREATORS,REVENUE,102653
NORTH EAST LINCOLNSHIRE COUNCIL,http://statistics.data.gov.uk/id/local-authority/00FC,People,Adult Serv & Hlth Improvement,Home Options,Rents,Rent,GC101,8/11/2014,298320,436.48,NORTH EAST LINCOLNSHIRE COUNCIL,REVENUE,100894
NORTH EAST LINCOLNSHIRE COUNCIL,http://statistics.data.gov.uk/id/local-authority/00FC,People,Adult Serv & Hlth Improvement,Home Options,Rents,Rent,GC101,8/12/2014,298693,291.66,REDACTED PERSONAL INFORMATION,REVENUE,REDACTED PERSONAL INFORMATION
NORTH EAST LINCOLNSHIRE COUNCIL,http://statistics.data.gov.uk/id/local-authority/00FC,People,Adult Serv & Hlth Improvement,Home Options,Rents,Rent,GC101,8/12/2014,298695,560,REDACTED PERSONAL INFORMATION,REVENUE,REDACTED PERSONAL INFORMATION
NORTH EAST LINCOLNSHIRE COUNCIL,http://statistics.data.gov.uk/id/local-authority/00FC,People,Adult Serv & Hlth Improvement,Home Options,Rents,Rent,GC101,8/12/2014,298692,408.33,REDACTED PERSONAL INFORMATION,REVENUE,REDACTED PERSONAL INFORMATION
NORTH EAST LINCOLNSHIRE COUNCIL,http://statistics.data.gov.uk/id/local-authority/00FC,People,Adult Serv & Hlth Improvement,Home Options,Rents,Rent,GC101,8/12/2014,298690,408.33,REDACTED PERSONAL INFORMATION,REVENUE,REDACTED PERSONAL INFORMATION
NORTH EAST LINCOLNSHIRE COUNCIL,http://statistics.data.gov.uk/id/local-authority/00FC,People,Adult Serv & Hlth Improvement,Home Options,Rents,Rent,GC101,8/14/2014,298731,700,REDACTED PERSONAL INFORMATION,REVENUE,REDACTED PERSONAL INFORMATION
NORTH EAST LINCOLNSHIRE COUNCIL,http://statistics.data.gov.uk/id/local-authority/00FC,People,Adult Serv & Hlth Improvement,Home Options,Rents,Rent,GC101,8/14/2014,298791,666.66,REDACTED PERSONAL INFORMATION,REVENUE,REDACTED PERSONAL INFORMATION
NORTH EAST LINCOLNSHIRE COUNCIL,http://statistics.data.gov.uk/id/local-authority/00FC,People,Adult Serv & Hlth Improvement,Home Options,Rents,Rent,GC101,8/14/2014,298698,360,REDACTED PERSONAL INFORMATION,REVENUE,REDACTED PERSONAL INFORMATION
NORTH EAST LINCOLNSHIRE COUNCIL,http://statistics.data.gov.uk/id/local-authority/00FC,People,Adult Serv & Hlth Improvement,Home Options,Rents,Rent,GC101,8/14/2014,298712,700,REDACTED PERSONAL INFORMATION,REVENUE,REDACTED PERSONAL INFORMATION
NORTH EAST LINCOLNSHIRE COUNCIL,http://statistics.data.gov.uk/id/local-authority/00FC,People,Adult Serv & Hlth Improvement,Home Options,Rents,Rent,GC101,8/14/2014,298721,350,REDACTED PERSONAL INFORMATION,REVENUE,REDACTED PERSONAL INFORMATION
NORTH EAST LINCOLNSHIRE COUNCIL,http://statistics.data.gov.uk/id/local-authority/00FC,People,Adult Serv & Hlth Improvement,Home Options,Rents,Rent,GC101,8/14/2014,298734,840,REDACTED PERSONAL INFORMATION,REVENUE,REDACTED PERSONAL INFORMATION
NORTH EAST LINCOLNSHIRE COUNCIL,http://statistics.data.gov.uk/id/local-authority/00FC,People,Adult Serv & Hlth Improvement,Home Options,Rents,Rent,GC101,8/14/2014,298735,600,REDACTED PERSONAL INFORMATION,REVENUE,REDACTED PERSONAL INFORMATION
NORTH EAST LINCOLNSHIRE COUNCIL,http://statistics.data.gov.uk/id/local-authority/00FC,People,Adult Serv & Hlth Improvement,Home Options,Rents,Rent,GC101,8/14/2014,298788,583.33,REDACTED PERSONAL INFORMATION,REVENUE,REDACTED PERSONAL INFORMATION
NORTH EAST LINCOLNSHIRE COUNCIL,http://statistics.data.gov.uk/id/local-authority/00FC,People,Adult Serv & Hlth Improvement,Home Options,Rents,Rent,GC101,8/14/2014,298688,420,REDACTED PERSONAL INFORMATION,REVENUE,REDACTED PERSONAL INFORMATION
NORTH EAST LINCOLNSHIRE COUNCIL,http://statistics.data.gov.uk/id/local-authority/00FC,People,Adult Serv & Hlth Improvement,Home Options,Rents,Rent,GC101,8/14/2014,298689,420,REDACTED PERSONAL INFORMATION,REVENUE,REDACTED PERSONAL INFORMATION
NORTH EAST LINCOLNSHIRE COUNCIL,http://statistics.data.gov.uk/id/local-authority/00FC,People,Adult Serv & Hlth Improvement,Home Options,Rents,Rent,GC101,8/14/2014,298691,408.33,REDACTED PERSONAL INFORMATION,REVENUE,REDACTED PERSONAL INFORMATION
NORTH EAST LINCOLNSHIRE COUNCIL,http://statistics.data.gov.uk/id/local-authority/00FC,People,Adult Serv & Hlth Improvement,Home Options,Contributions To Provisions,Bad Debt Provision,LK104,8/21/2014,300225,400,WILLOW ESTATES,REVENUE,104156
NORTH EAST LINCOLNSHIRE COUNCIL,http://statistics.data.gov.uk/id/local-authority/00FC,People,Adult Serv & Hlth Improvement,Home Options,Contributions To Provisions,Bad Debt Provision,LK104,8/21/2014,300228,400,WILLOW ESTATES,REVENUE,104156
NORTH EAST LINCOLNSHIRE COUNCIL,http://statistics.data.gov.uk/id/local-authority/00FC,People,Adult Serv & Hlth Improvement,Home Options,Contributions To Provisions,Bad Debt Provision,LK104,8/22/2014,300226,400,WILLOW ESTATES,REVENUE,104156
NORTH EAST LINCOLNSHIRE COUNCIL,http://statistics.data.gov.uk/id/local-authority/00FC,People,Adult Serv & Hlth Improvement,Home Options,Private Contractors,Third Party Prov - Private,PH101,8/12/2014,298699,640,LOVELLE BACONS,REVENUE,103583
NORTH EAST LINCOLNSHIRE COUNCIL,http://statistics.data.gov.uk/id/local-authority/00FC,People,Adult Serv & Hlth Improvement,Home Options,Communications And Computing,Postage,LF111,8/26/2014,300565,322.44,ROYAL MAIL GROUP PLC,REVENUE,101082
NORTH EAST LINCOLNSHIRE COUNCIL,http://statistics.data.gov.uk/id/local-authority/00FC,People,Adult Serv & Hlth Improvement,Home Options,Consultancy,Consultancy,PL101,8/12/2014,298696,520.02,ABRITAS LTD,REVENUE,102476
NORTH EAST LINCOLNSHIRE COUNCIL,http://statistics.data.gov.uk/id/local-authority/00FC,People,Adult Serv & Hlth Improvement,Home Options,Customer And Client Receipts,Fees/Chrgs-Std Vat 7,VC119,8/21/2014,300473,44916.11,COFELY WORKPLACE LIMITED,REVENUE,123983
NORTH EAST LINCOLNSHIRE COUNCIL,http://statistics.data.gov.uk/id/local-authority/00FC,People,Adult Serv & Hlth Improvement,Improved Health Operational,Equip / Furniture / Materials,Health & Safety Supplies,LA116,8/21/2014,299801,292.9,INVACARE (UK) LTD,REVENUE,101008
NORTH EAST LINCOLNSHIRE COUNCIL,http://statistics.data.gov.uk/id/local-authority/00FC,People,Adult Serv & Hlth Improvement,Improved Health Operational,Equip / Furniture / Materials,Health & Safety Supplies,LA116,8/21/2014,299787,744.45,JENX LTD,REVENUE,100833
NORTH EAST LINCOLNSHIRE COUNCIL,http://statistics.data.gov.uk/id/local-authority/00FC,People,Adult Serv & Hlth Improvement,Improved Health Operational,Equip / Furniture / Materials,Health & Safety Supplies,LA116,8/29/2014,300999,387.5,SUNRISE MEDICAL LTD,REVENUE,100990
NORTH EAST LINCOLNSHIRE COUNCIL,http://statistics.data.gov.uk/id/local-authority/00FC,People,Adult Serv & Hlth Improvement,Improved Health Operational,Equip / Furniture / Materials,Health & Safety Supplies,LA116,8/28/2014,301308,379.5,AIDAPT BATHROOMS LTD,REVENUE,101164
NORTH EAST LINCOLNSHIRE COUNCIL,http://statistics.data.gov.uk/id/local-authority/00FC,People,Adult Serv & Hlth Improvement,Improved Health Operational,Equip / Furniture / Materials,Health & Safety Supplies,LA116,8/11/2014,298236,335,DOLPHIN MOBILITY EAST MIDLANDS LTD,REVENUE,101317
NORTH EAST LINCOLNSHIRE COUNCIL,http://statistics.data.gov.uk/id/local-authority/00FC,People,Adult Serv & Hlth Improvement,Improved Health Operational,Equip / Furniture / Materials,Health & Safety Supplies,LA116,8/21/2014,299788,381,JENX LTD,REVENUE,100833
NORTH EAST LINCOLNSHIRE COUNCIL,http://statistics.data.gov.uk/id/local-authority/00FC,People,Adult Serv & Hlth Improvement,Improved Health Operational,Equip / Furniture / Materials,Health & Safety Supplies,LA116,8/21/2014,299788,315,JENX LTD,REVENUE,100833
NORTH EAST LINCOLNSHIRE COUNCIL,http://statistics.data.gov.uk/id/local-authority/00FC,People,Adult Serv & Hlth Improvement,Improved Health Operational,Equip / Furniture / Materials,Health & Safety Supplies,LA116,8/13/2014,297789,432,NOTTINGHAM REHAB LIMITED,REVENUE,101715
NORTH EAST LINCOLNSHIRE COUNCIL,http://statistics.data.gov.uk/id/local-authority/00FC,People,Adult Serv & Hlth Improvement,Improved Health Operational,Equip / Furniture / Materials,Health & Safety Supplies,LA116,8/7/2014,297251,331.25,NOTTINGHAM REHAB LIMITED,REVENUE,101715
NORTH EAST LINCOLNSHIRE COUNCIL,http://statistics.data.gov.uk/id/local-authority/00FC,People,Adult Serv & Hlth Improvement,Improved Health Operational,Equip / Furniture / Materials,Health & Safety Supplies,LA116,8/21/2014,299806,259.58,DIRECT HEALTHCARE,REVENUE,102678
NORTH EAST LINCOLNSHIRE COUNCIL,http://statistics.data.gov.uk/id/local-authority/00FC,People,Adult Serv & Hlth Improvement,Improved Health Operational,Equip / Furniture / Materials,Health & Safety Supplies,LA116,8/26/2014,300909,994,OBAM LIFT SERVICES LTD,REVENUE,112666
NORTH EAST LINCOLNSHIRE COUNCIL,http://statistics.data.gov.uk/id/local-authority/00FC,People,Adult Serv & Hlth Improvement,Improved Health Operational,Equip / Furniture / Materials,Health & Safety Supplies,LA116,8/7/2014,295379,-23.9,DRIVE MEDICAL,REVENUE,101627
NORTH EAST LINCOLNSHIRE COUNCIL,http://statistics.data.gov.uk/id/local-authority/00FC,People,Adult Serv & Hlth Improvement,Improved Health Operational,Equip / Furniture / Materials,Health & Safety Supplies,LA116,8/21/2014,299786,786.45,JENX LTD,REVENUE,100833
NORTH EAST LINCOLNSHIRE COUNCIL,http://statistics.data.gov.uk/id/local-authority/00FC,People,Adult Serv & Hlth Improvement,Improved Health Operational,Equip / Furniture / Materials,Health & Safety Supplies,LA116,8/21/2014,299789,744.45,JENX LTD,REVENUE,100833
NORTH EAST LINCOLNSHIRE COUNCIL,http://statistics.data.gov.uk/id/local-authority/00FC,People,Adult Serv & Hlth Improvement,Improved Health Operational,Equip / Furniture / Materials,Health & Safety Supplies,LA116,8/29/2014,301540,1359,JENX LTD,REVENUE,100833
NORTH EAST LINCOLNSHIRE COUNCIL,http://statistics.data.gov.uk/id/local-authority/00FC,People,Adult Serv & Hlth Improvement,Improved Health Operational,Equip / Furniture / Materials,Health & Safety Supplies,LA116,8/14/2014,298726,878,JENX LTD,REVENUE,100833
NORTH EAST LINCOLNSHIRE COUNCIL,http://statistics.data.gov.uk/id/local-authority/00FC,People,Adult Serv & Hlth Improvement,Improved Health Operational,Equip / Furniture / Materials,Health & Safety Supplies,LA116,8/21/2014,299838,1140.05,JENX LTD,REVENUE,100833
NORTH EAST LINCOLNSHIRE COUNCIL,http://statistics.data.gov.uk/id/local-authority/00FC,People,Adult Serv & Hlth Improvement,Improved Health Operational,Equip / Furniture / Materials,Health & Safety Supplies,LA116,8/26/2014,300973,492.48,SPECIALISED ORTHOTIC SERVICES LTD,REVENUE,110463
NORTH EAST LINCOLNSHIRE COUNCIL,http://statistics.data.gov.uk/id/local-authority/00FC,People,Adult Serv & Hlth Improvement,Improved Health Operational,Equip / Furniture / Materials,Health & Safety Supplies,LA116,8/5/2014,295925,3824.99,KEY MOBILITY,REVENUE,101985
NORTH EAST LINCOLNSHIRE COUNCIL,http://statistics.data.gov.uk/id/local-authority/00FC,People,Adult Serv & Hlth Improvement,Improved Health Operational,Equip / Furniture / Materials,Health & Safety Supplies,LA116,8/5/2014,295915,2465,KEY MOBILITY,REVENUE,101985
NORTH EAST LINCOLNSHIRE COUNCIL,http://statistics.data.gov.uk/id/local-authority/00FC,People,Adult Serv & Hlth Improvement,Improved Health Operational,Equip / Furniture / Materials,Health & Safety Supplies,LA116,8/5/2014,295905,2822.75,KEY MOBILITY,REVENUE,101985
NORTH EAST LINCOLNSHIRE COUNCIL,http://statistics.data.gov.uk/id/local-authority/00FC,People,Adult Serv & Hlth Improvement,Improved Health Operational,Equip / Furniture / Materials,Health & Safety Supplies,LA116,8/7/2014,297533,595,KEY MOBILITY,REVENUE,101985
NORTH EAST LINCOLNSHIRE COUNCIL,http://statistics.data.gov.uk/id/local-authority/00FC,People,Adult Serv & Hlth Improvement,Improved Health Operational,Equip / Furniture / Materials,Health & Safety Supplies,LA116,8/28/2014,301309,734,JAMES LECKEY DESIGN LIMITED,REVENUE,100949
NORTH EAST LINCOLNSHIRE COUNCIL,http://statistics.data.gov.uk/id/local-authority/00FC,People,Adult Serv & Hlth Improvement,Improved Health Operational,Equip / Furniture / Materials,Health & Safety Supplies,LA116,8/5/2014,296397,2921,SEATING MATTERS LTD,REVENUE,123517
NORTH EAST LINCOLNSHIRE COUNCIL,http://statistics.data.gov.uk/id/local-authority/00FC,People,Adult Serv & Hlth Improvement,Improved Health Operational,Equip / Furniture / Materials,Health & Safety Supplies,LA116,8/19/2014,299111,2047,R82 UK LTD,REVENUE,101710
NORTH EAST LINCOLNSHIRE COUNCIL,http://statistics.data.gov.uk/id/local-authority/00FC,People,Adult Serv & Hlth Improvement,Improved Health Operational,Equip / Furniture / Materials,Health & Safety Supplies,LA116,8/15/2014,298558,490,QUEST 88 LIMITED,REVENUE,101257
NORTH EAST LINCOLNSHIRE COUNCIL,http://statistics.data.gov.uk/id/local-authority/00FC,People,Adult Serv & Hlth Improvement,Improved Health Operational,Equip / Furniture / Materials,Health & Safety Supplies,LA116,8/29/2014,300569,2112,R82 UK LTD,REVENUE,101710
NORTH EAST LINCOLNSHIRE COUNCIL,http://statistics.data.gov.uk/id/local-authority/00FC,People,Adult Serv & Hlth Improvement,Improved Health Operational,Equip / Furniture / Materials,Health & Safety Supplies,LA116,8/15/2014,299451,291.24,VIKING HARDWARE LTD,REVENUE,101792
NORTH EAST LINCOLNSHIRE COUNCIL,http://statistics.data.gov.uk/id/local-authority/00FC,People,Adult Serv & Hlth Improvement,Improved Health Operational,Equip / Furniture / Materials,Health & Safety Supplies,LA116,8/26/2014,300953,945,OBAM LIFT SERVICES LTD,REVENUE,112666
NORTH EAST LINCOLNSHIRE COUNCIL,http://statistics.data.gov.uk/id/local-authority/00FC,People,Adult Serv & Hlth Improvement,Improved Health Operational,Equip / Furniture / Materials,Health & Safety Supplies,LA116,8/15/2014,298316,267.2,PICKERINGS EUROPE LIMITED,REVENUE,100897
NORTH EAST LINCOLNSHIRE COUNCIL,http://statistics.data.gov.uk/id/local-authority/00FC,People,Adult Serv & Hlth Improvement,Improved Health Operational,Equip / Furniture / Materials,Health & Safety Supplies,LA116,8/7/2014,296714,398.5,PICKERINGS EUROPE LIMITED,REVENUE,100897
NORTH EAST LINCOLNSHIRE COUNCIL,http://statistics.data.gov.uk/id/local-authority/00FC,People,Adult Serv & Hlth Improvement,Improved Health Operational,Equip / Furniture / Materials,Health & Safety Supplies,LA116,8/11/2014,297812,365.47,DRIVE MEDICAL,REVENUE,101627
NORTH EAST LINCOLNSHIRE COUNCIL,http://statistics.data.gov.uk/id/local-authority/00FC,People,Adult Serv & Hlth Improvement,Improved Health Operational,Equip / Furniture / Materials,Health & Safety Supplies,LA116,8/29/2014,301528,510,INVACARE (UK) LTD,REVENUE,101008
NORTH EAST LINCOLNSHIRE COUNCIL,http://statistics.data.gov.uk/id/local-authority/00FC,People,Adult Serv & Hlth Improvement,Improved Health Operational,Equip / Furniture / Materials,Health & Safety Supplies,LA116,8/19/2014,299354,2750,ULTIMATE CARE GROUP LTD,REVENUE,103469
NORTH EAST LINCOLNSHIRE COUNCIL,http://statistics.data.gov.uk/id/local-authority/00FC,People,Adult Serv & Hlth Improvement,Improved Health Operational,Equip / Furniture / Materials,Health & Safety Supplies,LA116,8/29/2014,301519,2750,ULTIMATE CARE GROUP LTD,REVENUE,103469
NORTH EAST LINCOLNSHIRE COUNCIL,http://statistics.data.gov.uk/id/local-authority/00FC,People,Adult Serv & Hlth Improvement,Improved Health Operational,Equip / Furniture / Materials,Health & Safety Supplies,LA116,8/13/2014,298263,280,ULTIMATE CARE GROUP LTD,REVENUE,103469
NORTH EAST LINCOLNSHIRE COUNCIL,http://statistics.data.gov.uk/id/local-authority/00FC,People,Adult Serv & Hlth Improvement,Improved Health Operational,Equip / Furniture / Materials,Health & Safety Supplies,LA116,8/26/2014,300998,560,ULTIMATE CARE GROUP LTD,REVENUE,103469
NORTH EAST LINCOLNSHIRE COUNCIL,http://statistics.data.gov.uk/id/local-authority/00FC,People,Adult Serv & Hlth Improvement,Improved Health Operational,Equip / Furniture / Materials,Health & Safety Supplies,LA116,8/15/2014,298559,280,ULTIMATE CARE GROUP LTD,REVENUE,103469
NORTH EAST LINCOLNSHIRE COUNCIL,http://statistics.data.gov.uk/id/local-authority/00FC,People,Adult Serv & Hlth Improvement,Improved Health Operational,Equip / Furniture / Materials,Health & Safety Supplies,LA116,8/21/2014,299875,269.8,ULTIMATE CARE GROUP LTD,REVENUE,103469
NORTH EAST LINCOLNSHIRE COUNCIL,http://statistics.data.gov.uk/id/local-authority/00FC,People,Adult Serv & Hlth Improvement,Improved Health Operational,Equip / Furniture / Materials,Health & Safety Supplies,LA116,8/5/2014,295905,564.55,KEY MOBILITY,REVENUE,101985
NORTH EAST LINCOLNSHIRE COUNCIL,http://statistics.data.gov.uk/id/local-authority/00FC,People,Adult Serv & Hlth Improvement,Improved Health Operational,Equip / Furniture / Materials,Health & Safety Supplies,LA116,8/5/2014,295915,493,KEY MOBILITY,REVENUE,101985
NORTH EAST LINCOLNSHIRE COUNCIL,http://statistics.data.gov.uk/id/local-authority/00FC,People,Adult Serv & Hlth Improvement,Improved Health Operational,Equip / Furniture / Materials,Health & Safety Supplies,LA116,8/5/2014,295925,765,KEY MOBILITY,REVENUE,101985
NORTH EAST LINCOLNSHIRE COUNCIL,http://statistics.data.gov.uk/id/local-authority/00FC,People,Adult Serv & Hlth Improvement,Prevention And Wellbeing,Private Contractors,Contract Payments,PH105,8/21/2014,299868,11472.25,CARERS FEDERATION LTD,REVENUE,121719
NORTH EAST LINCOLNSHIRE COUNCIL,http://statistics.data.gov.uk/id/local-authority/00FC,People,Adult Serv & Hlth Improvement,Prevention And Wellbeing,Private Contractors,Third Party Prov - Private,PH101,8/19/2014,299936,1205.59,MP CONSULTING (UK) LTD,REVENUE,123037
NORTH EAST LINCOLNSHIRE COUNCIL,http://statistics.data.gov.uk/id/local-authority/00FC,People,Adult Serv & Hlth Improvement,Lifestyle Services Team,Rents,Room Hire,GC103,8/18/2014,299722,367.5,CARE PLUS GROUP,REVENUE,106467
NORTH EAST LINCOLNSHIRE COUNCIL,http://statistics.data.gov.uk/id/local-authority/00FC,People,Adult Serv & Hlth Improvement,Lifestyle Services Team,Rents,Room Hire,GC103,8/26/2014,301092,262.5,CARE PLUS GROUP,REVENUE,106467
NORTH EAST LINCOLNSHIRE COUNCIL,http://statistics.data.gov.uk/id/local-authority/00FC,People,Adult Serv & Hlth Improvement,Lifestyle Services Team,Print Stationery / Gen Off Exp,Printing And Stationery,LD103,8/18/2014,295329,351,LEE CREATIVE MARKETING LTD,REVENUE,104460
NORTH EAST LINCOLNSHIRE COUNCIL,http://statistics.data.gov.uk/id/local-authority/00FC,People,Adult Serv & Hlth Improvement,Lifestyle Services Team,Print Stationery / Gen Off Exp,Printing And Stationery,LD103,8/18/2014,295303,338,LEE CREATIVE MARKETING LTD,REVENUE,104460
NORTH EAST LINCOLNSHIRE COUNCIL,http://statistics.data.gov.uk/id/local-authority/00FC,People,Adult Serv & Hlth Improvement,Lifestyle Services Team,Print Stationery / Gen Off Exp,Printing And Stationery,LD103,8/18/2014,295322,277,LEE CREATIVE MARKETING LTD,REVENUE,104460
NORTH EAST LINCOLNSHIRE COUNCIL,http://statistics.data.gov.uk/id/local-authority/00FC,People,Adult Serv & Hlth Improvement,Lifestyle Services Team,Miscellaneous Expenses,Medical Supplies And Services,LL109,8/26/2014,300921,307.06,PERIVILLE CHEMIST,REVENUE,103960
NORTH EAST LINCOLNSHIRE COUNCIL,http://statistics.data.gov.uk/id/local-authority/00FC,People,Adult Serv & Hlth Improvement,Lifestyle Services Team,Direct Employee Expenses,Agency Staff,EA105,8/5/2014,297201,786.15,VOLUNTARY ACTION NORTH EAST LINCOLNSHIRE,REVENUE,103631
NORTH EAST LINCOLNSHIRE COUNCIL,http://statistics.data.gov.uk/id/local-authority/00FC,People,Adult Serv & Hlth Improvement,Lifestyle Services Team,Direct Employee Expenses,Agency Staff,EA105,8/26/2014,300955,3265.52,VOLUNTARY ACTION NORTH EAST LINCOLNSHIRE,REVENUE,103631
NORTH EAST LINCOLNSHIRE COUNCIL,http://statistics.data.gov.uk/id/local-authority/00FC,People,Adult Serv & Hlth Improvement,Lifestyle Services Team,Private Contractors,Third Party Prov - Private,PH101,8/5/2014,296765,495.54,CLEE MEDICAL CENTRE,REVENUE,105319
NORTH EAST LINCOLNSHIRE COUNCIL,http://statistics.data.gov.uk/id/local-authority/00FC,People,Adult Serv & Hlth Improvement,Lifestyle Services Team,Private Contractors,Third Party Prov - Private,PH101,8/5/2014,296760,618.44,THE ROXTON PRACTICE,REVENUE,104395
NORTH EAST LINCOLNSHIRE COUNCIL,http://statistics.data.gov.uk/id/local-authority/00FC,People,Adult Serv & Hlth Improvement,Lifestyle Services Team,Private Contractors,Third Party Prov - Private,PH101,8/6/2014,296771,419.93,DR HOPPER & PARTNERS,REVENUE,103900
NORTH EAST LINCOLNSHIRE COUNCIL,http://statistics.data.gov.uk/id/local-authority/00FC,People,Adult Serv & Hlth Improvement,Lifestyle Services Team,Private Contractors,Third Party Prov - Private,PH101,8/6/2014,296766,459.46,PELHAM MEDICAL GROUP,REVENUE,104350
NORTH EAST LINCOLNSHIRE COUNCIL,http://statistics.data.gov.uk/id/local-authority/00FC,People,Adult Serv & Hlth Improvement,Lifestyle Services Team,Private Contractors,Third Party Prov - Private,PH101,8/21/2014,299766,983.49,SCARTHO MEDICAL CENTRE,REVENUE,107570
NORTH EAST LINCOLNSHIRE COUNCIL,http://statistics.data.gov.uk/id/local-authority/00FC,People,Adult Serv & Hlth Improvement,Developing Healthier Comm,Car Allowances,Travel - Employees,JF101,8/28/2014,301423,-32.44,NYS CORPORATE,REVENUE,102444
NORTH EAST LINCOLNSHIRE COUNCIL,http://statistics.data.gov.uk/id/local-authority/00FC,People,Adult Serv & Hlth Improvement,Developing Healthier Comm,Contributions To Provisions,Contributions - Communities,LK101,8/12/2014,298965,1000,WALTHAM LEAS ACADEMY,REVENUE,109486
NORTH EAST LINCOLNSHIRE COUNCIL,http://statistics.data.gov.uk/id/local-authority/00FC,People,Adult Serv & Hlth Improvement,Developing Healthier Comm,Private Contractors,Third Party Prov - Private,PH101,8/26/2014,300957,600,SOUTH GRANGE OVER 50'S CLUB,REVENUE,127230
NORTH EAST LINCOLNSHIRE COUNCIL,http://statistics.data.gov.uk/id/local-authority/00FC,People,Adult Serv & Hlth Improvement,Developing Healthier Comm,Private Contractors,Third Party Prov - Private,PH101,8/26/2014,300956,830,FOR UNDER FIVES (QUEENSWAY),REVENUE,127229
NORTH EAST LINCOLNSHIRE COUNCIL,http://statistics.data.gov.uk/id/local-authority/00FC,People,Adult Serv & Hlth Improvement,Developing Healthier Comm,Private Contractors,Third Party Prov - Private,PH101,8/21/2014,299841,2541.43,HUMBERSIDE POLICE AUTHORITY,REVENUE,100762
NORTH EAST LINCOLNSHIRE COUNCIL,http://statistics.data.gov.uk/id/local-authority/00FC,People,Adult Serv & Hlth Improvement,Developing Healthier Comm,Private Contractors,Third Party Prov - Private,PH101,8/14/2014,298531,2541.43,HUMBERSIDE POLICE AUTHORITY,REVENUE,100762
NORTH EAST LINCOLNSHIRE COUNCIL,http://statistics.data.gov.uk/id/local-authority/00FC,People,Childrens Services,School Access Governor Student,Contract Hire-Operating Leases,Vehicles - Contract Hire,JC101,8/13/2014,297816,778,REDACTED PERSONAL INFORMATION,REVENUE,REDACTED PERSONAL INFORMATION
NORTH EAST LINCOLNSHIRE COUNCIL,http://statistics.data.gov.uk/id/local-authority/00FC,People,Childrens Services,School Access Governor Student,Contract Hire-Operating Leases,Vehicles - Contract Hire,JC101,8/12/2014,298239,280,LINKS TAXIS,REVENUE,100546
NORTH EAST LINCOLNSHIRE COUNCIL,http://statistics.data.gov.uk/id/local-authority/00FC,People,Childrens Services,School Access Governor Student,Contract Hire-Operating Leases,Vehicles - Contract Hire,JC101,8/13/2014,298114,300,LINKS TAXIS,REVENUE,100546
NORTH EAST LINCOLNSHIRE COUNCIL,http://statistics.data.gov.uk/id/local-authority/00FC,People,Childrens Services,School Access Governor Student,Contract Hire-Operating Leases,Vehicles - Contract Hire,JC101,8/26/2014,299043,546,AMVALE LIMITED,REVENUE,101030
NORTH EAST LINCOLNSHIRE COUNCIL,http://statistics.data.gov.uk/id/local-authority/00FC,People,Childrens Services,School Access Governor Student,Contract Hire-Operating Leases,Vehicles - Contract Hire,JC101,8/5/2014,292781,680,COUNTRY CABS,REVENUE,101999
NORTH EAST LINCOLNSHIRE COUNCIL,http://statistics.data.gov.uk/id/local-authority/00FC,People,Childrens Services,School Access Governor Student,Contract Hire-Operating Leases,Vehicles - Contract Hire,JC101,8/7/2014,297807,608.01,REVELLS TAXIS (ED/SOC SERV),REVENUE,100559
NORTH EAST LINCOLNSHIRE COUNCIL,http://statistics.data.gov.uk/id/local-authority/00FC,People,Childrens Services,School Access Governor Student,Contract Hire-Operating Leases,Vehicles - Contract Hire,JC101,8/12/2014,298153,680,LINKS TAXIS,REVENUE,100546
NORTH EAST LINCOLNSHIRE COUNCIL,http://statistics.data.gov.uk/id/local-authority/00FC,People,Childrens Services,School Access Governor Student,Contract Hire-Operating Leases,Vehicles - Contract Hire,JC101,8/12/2014,297825,272,REVELLS TAXIS (ED/SOC SERV),REVENUE,100559
NORTH EAST LINCOLNSHIRE COUNCIL,http://statistics.data.gov.uk/id/local-authority/00FC,People,Childrens Services,School Access Governor Student,Contract Hire-Operating Leases,Vehicles - Contract Hire,JC101,8/12/2014,298148,340,LINKS TAXIS,REVENUE,100546
NORTH EAST LINCOLNSHIRE COUNCIL,http://statistics.data.gov.uk/id/local-authority/00FC,People,Childrens Services,School Access Governor Student,Contract Hire-Operating Leases,Vehicles - Contract Hire,JC101,8/15/2014,297794,350,COUNTRY CABS,REVENUE,101999
NORTH EAST LINCOLNSHIRE COUNCIL,http://statistics.data.gov.uk/id/local-authority/00FC,People,Childrens Services,School Access Governor Student,Contract Hire-Operating Leases,Vehicles - Contract Hire,JC101,8/7/2014,298099,363,LINKS TAXIS,REVENUE,100546
NORTH EAST LINCOLNSHIRE COUNCIL,http://statistics.data.gov.uk/id/local-authority/00FC,People,Childrens Services,School Access Governor Student,Contract Hire-Operating Leases,Vehicles - Contract Hire,JC101,8/11/2014,298255,340,LINKS TAXIS,REVENUE,100546
NORTH EAST LINCOLNSHIRE COUNCIL,http://statistics.data.gov.uk/id/local-authority/00FC,People,Childrens Services,School Access Governor Student,Contract Hire-Operating Leases,Vehicles - Contract Hire,JC101,8/11/2014,298256,944,LINKS TAXIS,REVENUE,100546
NORTH EAST LINCOLNSHIRE COUNCIL,http://statistics.data.gov.uk/id/local-authority/00FC,People,Childrens Services,School Access Governor Student,Contract Hire-Operating Leases,Vehicles - Contract Hire,JC101,8/12/2014,298136,510,LINKS TAXIS,REVENUE,100546
NORTH EAST LINCOLNSHIRE COUNCIL,http://statistics.data.gov.uk/id/local-authority/00FC,People,Childrens Services,School Access Governor Student,Private Contractors,Concessionary Fares,PH104,8/28/2014,301043,298.8,STAGECOACH SERVICES,REVENUE,101404
NORTH EAST LINCOLNSHIRE COUNCIL,http://statistics.data.gov.uk/id/local-authority/00FC,People,Childrens Services,School Access Governor Student,Contract Hire-Operating Leases,Vehicles - Contract Hire,JC101,8/7/2014,297832,765,MINICABS CLEETHORPES (LINCS) LTD,REVENUE,102124
NORTH EAST LINCOLNSHIRE COUNCIL,http://statistics.data.gov.uk/id/local-authority/00FC,People,Childrens Services,School Access Governor Student,Contract Hire-Operating Leases,Vehicles - Contract Hire,JC101,8/11/2014,297834,480,MINICABS CLEETHORPES (LINCS) LTD,REVENUE,102124
NORTH EAST LINCOLNSHIRE COUNCIL,http://statistics.data.gov.uk/id/local-authority/00FC,People,Childrens Services,School Access Governor Student,Contract Hire-Operating Leases,Vehicles - Contract Hire,JC101,8/18/2014,299035,1785,AMVALE LIMITED,REVENUE,101030
NORTH EAST LINCOLNSHIRE COUNCIL,http://statistics.data.gov.uk/id/local-authority/00FC,People,Childrens Services,School Access Governor Student,Contract Hire-Operating Leases,Vehicles - Contract Hire,JC101,8/14/2014,299036,1955,AMVALE LIMITED,REVENUE,101030
NORTH EAST LINCOLNSHIRE COUNCIL,http://statistics.data.gov.uk/id/local-authority/00FC,People,Childrens Services,School Access Governor Student,Contract Hire-Operating Leases,Vehicles - Contract Hire,JC101,8/18/2014,299034,1955,AMVALE LIMITED,REVENUE,101030
NORTH EAST LINCOLNSHIRE COUNCIL,http://statistics.data.gov.uk/id/local-authority/00FC,People,Childrens Services,School Access Governor Student,Contract Hire-Operating Leases,Vehicles - Contract Hire,JC101,8/13/2014,297815,2512,SHERWOOD TRAVEL,REVENUE,100868
NORTH EAST LINCOLNSHIRE COUNCIL,http://statistics.data.gov.uk/id/local-authority/00FC,People,Childrens Services,School Access Governor Student,Contract Hire-Operating Leases,Vehicles - Contract Hire,JC101,8/15/2014,298642,2544,FISHERS OF GRIMSBY,REVENUE,111965
NORTH EAST LINCOLNSHIRE COUNCIL,http://statistics.data.gov.uk/id/local-authority/00FC,People,Childrens Services,School Access Governor Student,Contract Hire-Operating Leases,Vehicles - Contract Hire,JC101,8/19/2014,299026,2480,AMVALE LIMITED,REVENUE,101030
NORTH EAST LINCOLNSHIRE COUNCIL,http://statistics.data.gov.uk/id/local-authority/00FC,People,Childrens Services,School Access Governor Student,Contract Hire-Operating Leases,Vehicles - Contract Hire,JC101,8/12/2014,297851,2520.8,COOPERS TOURS (LINCS) LTD,REVENUE,111878
NORTH EAST LINCOLNSHIRE COUNCIL,http://statistics.data.gov.uk/id/local-authority/00FC,People,Childrens Services,School Access Governor Student,Contract Hire-Operating Leases,Vehicles - Contract Hire,JC101,8/19/2014,299025,2480,AMVALE LIMITED,REVENUE,101030
NORTH EAST LINCOLNSHIRE COUNCIL,http://statistics.data.gov.uk/id/local-authority/00FC,People,Childrens Services,School Access Governor Student,Contract Hire-Operating Leases,Vehicles - Contract Hire,JC101,8/7/2014,298129,416,LINKS TAXIS,REVENUE,100546
NORTH EAST LINCOLNSHIRE COUNCIL,http://statistics.data.gov.uk/id/local-authority/00FC,People,Childrens Services,School Access Governor Student,Contract Hire-Operating Leases,Vehicles - Contract Hire,JC101,8/5/2014,296455,2944,MILLMAN COACHES,REVENUE,100700
NORTH EAST LINCOLNSHIRE COUNCIL,http://statistics.data.gov.uk/id/local-authority/00FC,People,Childrens Services,School Access Governor Student,Private Contractors,Concessionary Fares,PH104,8/28/2014,301043,330.3,STAGECOACH SERVICES,REVENUE,101404
NORTH EAST LINCOLNSHIRE COUNCIL,http://statistics.data.gov.uk/id/local-authority/00FC,People,Childrens Services,School Access Governor Student,Contract Hire-Operating Leases,Vehicles - Contract Hire,JC101,8/18/2014,299037,2346,AMVALE LIMITED,REVENUE,101030
NORTH EAST LINCOLNSHIRE COUNCIL,http://statistics.data.gov.uk/id/local-authority/00FC,People,Childrens Services,School Access Governor Student,Contract Hire-Operating Leases,Vehicles - Contract Hire,JC101,8/7/2014,298111,1029,LINKS TAXIS,REVENUE,100546
NORTH EAST LINCOLNSHIRE COUNCIL,http://statistics.data.gov.uk/id/local-authority/00FC,People,Childrens Services,School Access Governor Student,Contract Hire-Operating Leases,Vehicles - Contract Hire,JC101,8/7/2014,298100,1676,LINKS TAXIS,REVENUE,100546
NORTH EAST LINCOLNSHIRE COUNCIL,http://statistics.data.gov.uk/id/local-authority/00FC,People,Childrens Services,School Access Governor Student,Contract Hire-Operating Leases,Vehicles - Contract Hire,JC101,8/13/2014,297791,840,REDACTED PERSONAL INFORMATION,REVENUE,REDACTED PERSONAL INFORMATION
NORTH EAST LINCOLNSHIRE COUNCIL,http://statistics.data.gov.uk/id/local-authority/00FC,People,Childrens Services,School Access Governor Student,Contract Hire-Operating Leases,Vehicles - Contract Hire,JC101,8/11/2014,298254,1463,LINKS TAXIS,REVENUE,100546
NORTH EAST LINCOLNSHIRE COUNCIL,http://statistics.data.gov.uk/id/local-authority/00FC,People,Childrens Services,School Access Governor Student,Contract Hire-Operating Leases,Vehicles - Contract Hire,JC101,8/7/2014,298128,1400,LINKS TAXIS,REVENUE,100546
NORTH EAST LINCOLNSHIRE COUNCIL,http://statistics.data.gov.uk/id/local-authority/00FC,People,Childrens Services,School Access Governor Student,Contract Hire-Operating Leases,Vehicles - Contract Hire,JC101,8/13/2014,298146,595,LINKS TAXIS,REVENUE,100546
NORTH EAST LINCOLNSHIRE COUNCIL,http://statistics.data.gov.uk/id/local-authority/00FC,People,Childrens Services,School Access Governor Student,Contract Hire-Operating Leases,Vehicles - Contract Hire,JC101,8/6/2014,296453,419.9,AA RADIO CARS LTD,REVENUE,101222
NORTH EAST LINCOLNSHIRE COUNCIL,http://statistics.data.gov.uk/id/local-authority/00FC,People,Childrens Services,School Access Governor Student,Contract Hire-Operating Leases,Vehicles - Contract Hire,JC101,8/6/2014,296456,2550,MILLMAN COACHES,REVENUE,100700
NORTH EAST LINCOLNSHIRE COUNCIL,http://statistics.data.gov.uk/id/local-authority/00FC,People,Childrens Services,School Access Governor Student,Contract Hire-Operating Leases,Vehicles - Contract Hire,JC101,8/5/2014,295822,2065.5,GRIMSBY MINIBUSES LTD,REVENUE,121524
NORTH EAST LINCOLNSHIRE COUNCIL,http://statistics.data.gov.uk/id/local-authority/00FC,People,Childrens Services,School Access Governor Student,Contract Hire-Operating Leases,Vehicles - Contract Hire,JC101,8/5/2014,295821,2040,GRIMSBY MINIBUSES LTD,REVENUE,121524
NORTH EAST LINCOLNSHIRE COUNCIL,http://statistics.data.gov.uk/id/local-authority/00FC,People,Childrens Services,School Access Governor Student,Contract Hire-Operating Leases,Vehicles - Contract Hire,JC101,8/12/2014,297828,336.6,REVELLS TAXIS (ED/SOC SERV),REVENUE,100559
NORTH EAST LINCOLNSHIRE COUNCIL,http://statistics.data.gov.uk/id/local-authority/00FC,People,Childrens Services,School Access Governor Student,Contract Hire-Operating Leases,Vehicles - Contract Hire,JC101,8/7/2014,298127,884,LINKS TAXIS,REVENUE,100546
NORTH EAST LINCOLNSHIRE COUNCIL,http://statistics.data.gov.uk/id/local-authority/00FC,People,Childrens Services,School Access Governor Student,Contract Hire-Operating Leases,Vehicles - Contract Hire,JC101,8/13/2014,298116,442,LINKS TAXIS,REVENUE,100546
NORTH EAST LINCOLNSHIRE COUNCIL,http://statistics.data.gov.uk/id/local-authority/00FC,People,Childrens Services,School Access Governor Student,Contract Hire-Operating Leases,Vehicles - Contract Hire,JC101,8/7/2014,298124,476,LINKS TAXIS,REVENUE,100546
NORTH EAST LINCOLNSHIRE COUNCIL,http://statistics.data.gov.uk/id/local-authority/00FC,People,Childrens Services,School Access Governor Student,Contract Hire-Operating Leases,Vehicles - Contract Hire,JC101,8/7/2014,298109,340,LINKS TAXIS,REVENUE,100546
NORTH EAST LINCOLNSHIRE COUNCIL,http://statistics.data.gov.uk/id/local-authority/00FC,People,Childrens Services,School Access Governor Student,Contract Hire-Operating Leases,Vehicles - Contract Hire,JC101,8/14/2014,299041,2125,AMVALE LIMITED,REVENUE,101030
NORTH EAST LINCOLNSHIRE COUNCIL,http://statistics.data.gov.uk/id/local-authority/00FC,People,Childrens Services,School Access Governor Student,Contract Hire-Operating Leases,Vehicles - Contract Hire,JC101,8/13/2014,297792,1530,HANSONS AIRPORT EXPRESS,REVENUE,111879
NORTH EAST LINCOLNSHIRE COUNCIL,http://statistics.data.gov.uk/id/local-authority/00FC,People,Childrens Services,School Access Governor Student,Contract Hire-Operating Leases,Vehicles - Contract Hire,JC101,8/5/2014,295820,1751,GRIMSBY MINIBUSES LTD,REVENUE,121524
NORTH EAST LINCOLNSHIRE COUNCIL,http://statistics.data.gov.uk/id/local-authority/00FC,People,Childrens Services,School Access Governor Student,Contract Hire-Operating Leases,Vehicles - Contract Hire,JC101,8/7/2014,297836,1343,MINICABS CLEETHORPES (LINCS) LTD,REVENUE,102124
NORTH EAST LINCOLNSHIRE COUNCIL,http://statistics.data.gov.uk/id/local-authority/00FC,People,Childrens Services,School Access Governor Student,Contract Hire-Operating Leases,Vehicles - Contract Hire,JC101,8/7/2014,298283,484.42,AMVALE LIMITED,REVENUE,101030
NORTH EAST LINCOLNSHIRE COUNCIL,http://statistics.data.gov.uk/id/local-authority/00FC,People,Childrens Services,School Access Governor Student,Contract Hire-Operating Leases,Vehicles - Contract Hire,JC101,8/7/2014,298284,510.04,AMVALE LIMITED,REVENUE,101030
NORTH EAST LINCOLNSHIRE COUNCIL,http://statistics.data.gov.uk/id/local-authority/00FC,People,Childrens Services,School Access Governor Student,Contract Hire-Operating Leases,Vehicles - Contract Hire,JC101,8/11/2014,298258,766.8,LINKS TAXIS,REVENUE,100546
NORTH EAST LINCOLNSHIRE COUNCIL,http://statistics.data.gov.uk/id/local-authority/00FC,People,Childrens Services,School Access Governor Student,Contract Hire-Operating Leases,Vehicles - Contract Hire,JC101,8/12/2014,297831,627.3,REVELLS TAXIS (ED/SOC SERV),REVENUE,100559
NORTH EAST LINCOLNSHIRE COUNCIL,http://statistics.data.gov.uk/id/local-authority/00FC,People,Childrens Services,School Access Governor Student,Contract Hire-Operating Leases,Vehicles - Contract Hire,JC101,8/11/2014,297776,1190,MINICABS CLEETHORPES (LINCS) LTD,REVENUE,102124
NORTH EAST LINCOLNSHIRE COUNCIL,http://statistics.data.gov.uk/id/local-authority/00FC,People,Childrens Services,School Access Governor Student,Contract Hire-Operating Leases,Vehicles - Contract Hire,JC101,8/5/2014,295819,884,AA RADIO CARS LTD,REVENUE,101222
NORTH EAST LINCOLNSHIRE COUNCIL,http://statistics.data.gov.uk/id/local-authority/00FC,People,Childrens Services,School Access Governor Student,Contract Hire-Operating Leases,Vehicles - Contract Hire,JC101,8/12/2014,298139,612,LINKS TAXIS,REVENUE,100546
NORTH EAST LINCOLNSHIRE COUNCIL,http://statistics.data.gov.uk/id/local-authority/00FC,People,Childrens Services,School Access Governor Student,Contract Hire-Operating Leases,Vehicles - Contract Hire,JC101,8/13/2014,298121,714,LINKS TAXIS,REVENUE,100546
NORTH EAST LINCOLNSHIRE COUNCIL,http://statistics.data.gov.uk/id/local-authority/00FC,People,Childrens Services,School Access Governor Student,Contract Hire-Operating Leases,Vehicles - Contract Hire,JC101,8/19/2014,299044,3400,AMVALE LIMITED,REVENUE,101030
NORTH EAST LINCOLNSHIRE COUNCIL,http://statistics.data.gov.uk/id/local-authority/00FC,People,Childrens Services,School Access Governor Student,Contract Hire-Operating Leases,Vehicles - Contract Hire,JC101,8/7/2014,298108,765,LINKS TAXIS,REVENUE,100546
NORTH EAST LINCOLNSHIRE COUNCIL,http://statistics.data.gov.uk/id/local-authority/00FC,People,Childrens Services,School Access Governor Student,Contract Hire-Operating Leases,Vehicles - Contract Hire,JC101,8/7/2014,298119,680,LINKS TAXIS,REVENUE,100546
NORTH EAST LINCOLNSHIRE COUNCIL,http://statistics.data.gov.uk/id/local-authority/00FC,People,Childrens Services,School Access Governor Student,Contract Hire-Operating Leases,Vehicles - Contract Hire,JC101,8/12/2014,298131,442,LINKS TAXIS,REVENUE,100546
NORTH EAST LINCOLNSHIRE COUNCIL,http://statistics.data.gov.uk/id/local-authority/00FC,People,Childrens Services,School Access Governor Student,Contract Hire-Operating Leases,Vehicles - Contract Hire,JC101,8/1/2014,296464,272,CABLE RADIO CARS,REVENUE,100933
NORTH EAST LINCOLNSHIRE COUNCIL,http://statistics.data.gov.uk/id/local-authority/00FC,People,Childrens Services,School Access Governor Student,Contract Hire-Operating Leases,Vehicles - Contract Hire,JC101,8/7/2014,298105,462,LINKS TAXIS,REVENUE,100546
NORTH EAST LINCOLNSHIRE COUNCIL,http://statistics.data.gov.uk/id/local-authority/00FC,People,Childrens Services,School Access Governor Student,Contract Hire-Operating Leases,Vehicles - Contract Hire,JC101,8/7/2014,298149,532.1,REVELLS TAXIS (ED/SOC SERV),REVENUE,100559
NORTH EAST LINCOLNSHIRE COUNCIL,http://statistics.data.gov.uk/id/local-authority/00FC,People,Childrens Services,School Access Governor Student,Contract Hire-Operating Leases,Vehicles - Contract Hire,JC101,8/11/2014,297842,660,MINICABS CLEETHORPES (LINCS) LTD,REVENUE,102124
NORTH EAST LINCOLNSHIRE COUNCIL,http://statistics.data.gov.uk/id/local-authority/00FC,People,Childrens Services,School Access Governor Student,Contract Hire-Operating Leases,Vehicles - Contract Hire,JC101,8/11/2014,297838,770,MINICABS CLEETHORPES (LINCS) LTD,REVENUE,102124
NORTH EAST LINCOLNSHIRE COUNCIL,http://statistics.data.gov.uk/id/local-authority/00FC,People,Childrens Services,School Access Governor Student,Contract Hire-Operating Leases,Vehicles - Contract Hire,JC101,8/11/2014,298257,1340,LINKS TAXIS,REVENUE,100546
NORTH EAST LINCOLNSHIRE COUNCIL,http://statistics.data.gov.uk/id/local-authority/00FC,People,Childrens Services,School Access Governor Student,Contract Hire-Operating Leases,Vehicles - Contract Hire,JC101,8/13/2014,297816,1167,REDACTED PERSONAL INFORMATION,REVENUE,REDACTED PERSONAL INFORMATION
NORTH EAST LINCOLNSHIRE COUNCIL,http://statistics.data.gov.uk/id/local-authority/00FC,People,Childrens Services,School Access Governor Student,Contract Hire-Operating Leases,Vehicles - Contract Hire,JC101,8/11/2014,297827,1680.3,MINICABS CLEETHORPES (LINCS) LTD,REVENUE,102124
NORTH EAST LINCOLNSHIRE COUNCIL,http://statistics.data.gov.uk/id/local-authority/00FC,People,Childrens Services,School Access Governor Student,Contract Hire-Operating Leases,Vehicles - Contract Hire,JC101,8/26/2014,299043,2184,AMVALE LIMITED,REVENUE,101030
NORTH EAST LINCOLNSHIRE COUNCIL,http://statistics.data.gov.uk/id/local-authority/00FC,People,Childrens Services,School Access Governor Student,Contract Hire-Operating Leases,Vehicles - Contract Hire,JC101,8/14/2014,299039,2772,AMVALE LIMITED,REVENUE,101030
NORTH EAST LINCOLNSHIRE COUNCIL,http://statistics.data.gov.uk/id/local-authority/00FC,People,Childrens Services,School Access Governor Student,Contract Hire-Operating Leases,Vehicles - Contract Hire,JC101,8/12/2014,298243,340,LINKS TAXIS,REVENUE,100546
NORTH EAST LINCOLNSHIRE COUNCIL,http://statistics.data.gov.uk/id/local-authority/00FC,People,Childrens Services,School Access Governor Student,Contract Hire-Operating Leases,Vehicles - Contract Hire,JC101,8/7/2014,297830,1640,MINICABS CLEETHORPES (LINCS) LTD,REVENUE,102124
NORTH EAST LINCOLNSHIRE COUNCIL,http://statistics.data.gov.uk/id/local-authority/00FC,People,Childrens Services,School Access Governor Student,Contract Hire-Operating Leases,Vehicles - Contract Hire,JC101,8/11/2014,297775,793.8,MINICABS CLEETHORPES (LINCS) LTD,REVENUE,102124
NORTH EAST LINCOLNSHIRE COUNCIL,http://statistics.data.gov.uk/id/local-authority/00FC,People,Childrens Services,School Access Governor Student,Contract Hire-Operating Leases,Vehicles - Contract Hire,JC101,8/19/2014,299032,2159,AMVALE LIMITED,REVENUE,101030
NORTH EAST LINCOLNSHIRE COUNCIL,http://statistics.data.gov.uk/id/local-authority/00FC,People,Childrens Services,School Access Governor Student,Contract Hire-Operating Leases,Vehicles - Contract Hire,JC101,8/12/2014,298138,504,LINKS TAXIS,REVENUE,100546
NORTH EAST LINCOLNSHIRE COUNCIL,http://statistics.data.gov.uk/id/local-authority/00FC,People,Childrens Services,School Access Governor Student,Contract Hire-Operating Leases,Vehicles - Contract Hire,JC101,8/12/2014,298133,612,LINKS TAXIS,REVENUE,100546
NORTH EAST LINCOLNSHIRE COUNCIL,http://statistics.data.gov.uk/id/local-authority/00FC,People,Childrens Services,School Access Governor Student,Contract Hire-Operating Leases,Vehicles - Contract Hire,JC101,8/6/2014,296470,1105,WHEELCHAIR FRIENDLY TAXI SERVICE,REVENUE,101915
NORTH EAST LINCOLNSHIRE COUNCIL,http://statistics.data.gov.uk/id/local-authority/00FC,People,Childrens Services,School Access Governor Student,Contract Hire-Operating Leases,Vehicles - Contract Hire,JC101,8/11/2014,297841,1207,MINICABS CLEETHORPES (LINCS) LTD,REVENUE,102124
NORTH EAST LINCOLNSHIRE COUNCIL,http://statistics.data.gov.uk/id/local-authority/00FC,People,Childrens Services,School Access Governor Student,Contract Hire-Operating Leases,Vehicles - Contract Hire,JC101,8/7/2014,298122,824.5,LINKS TAXIS,REVENUE,100546
NORTH EAST LINCOLNSHIRE COUNCIL,http://statistics.data.gov.uk/id/local-authority/00FC,People,Childrens Services,School Access Governor Student,Contract Hire-Operating Leases,Vehicles - Contract Hire,JC101,8/18/2014,299030,3400,AMVALE LIMITED,REVENUE,101030
NORTH EAST LINCOLNSHIRE COUNCIL,http://statistics.data.gov.uk/id/local-authority/00FC,People,Childrens Services,School Access Governor Student,Contract Hire-Operating Leases,Vehicles - Contract Hire,JC101,8/19/2014,299029,3060,AMVALE LIMITED,REVENUE,101030
NORTH EAST LINCOLNSHIRE COUNCIL,http://statistics.data.gov.uk/id/local-authority/00FC,People,Childrens Services,School Access Governor Student,Contract Hire-Operating Leases,Vehicles - Contract Hire,JC101,8/19/2014,299028,3060,AMVALE LIMITED,REVENUE,101030
NORTH EAST LINCOLNSHIRE COUNCIL,http://statistics.data.gov.uk/id/local-authority/00FC,People,Childrens Services,School Access Governor Student,Contract Hire-Operating Leases,Vehicles - Contract Hire,JC101,8/19/2014,299027,3060,AMVALE LIMITED,REVENUE,101030
NORTH EAST LINCOLNSHIRE COUNCIL,http://statistics.data.gov.uk/id/local-authority/00FC,People,Childrens Services,School Access Governor Student,Contract Hire-Operating Leases,Vehicles - Contract Hire,JC101,8/7/2014,298126,1020,LINKS TAXIS,REVENUE,100546
NORTH EAST LINCOLNSHIRE COUNCIL,http://statistics.data.gov.uk/id/local-authority/00FC,People,Childrens Services,School Access Governor Student,Contract Hire-Operating Leases,Vehicles - Contract Hire,JC101,8/12/2014,298135,1020,LINKS TAXIS,REVENUE,100546
NORTH EAST LINCOLNSHIRE COUNCIL,http://statistics.data.gov.uk/id/local-authority/00FC,People,Childrens Services,School Access Governor Student,Contract Hire-Operating Leases,Vehicles - Contract Hire,JC101,8/5/2014,295818,672,AA RADIO CARS LTD,REVENUE,101222
NORTH EAST LINCOLNSHIRE COUNCIL,http://statistics.data.gov.uk/id/local-authority/00FC,People,Childrens Services,School Access Governor Student,Contract Hire-Operating Leases,Vehicles - Contract Hire,JC101,8/12/2014,298143,406,LINKS TAXIS,REVENUE,100546
NORTH EAST LINCOLNSHIRE COUNCIL,http://statistics.data.gov.uk/id/local-authority/00FC,People,Childrens Services,School Access Governor Student,Contract Hire-Operating Leases,Vehicles - Contract Hire,JC101,8/7/2014,298106,500,LINKS TAXIS,REVENUE,100546
NORTH EAST LINCOLNSHIRE COUNCIL,http://statistics.data.gov.uk/id/local-authority/00FC,People,Childrens Services,School Access Governor Student,Contract Hire-Operating Leases,Vehicles - Contract Hire,JC101,8/5/2014,295816,560,AA RADIO CARS LTD,REVENUE,101222
NORTH EAST LINCOLNSHIRE COUNCIL,http://statistics.data.gov.uk/id/local-authority/00FC,People,Childrens Services,School Access Governor Student,Contract Hire-Operating Leases,Vehicles - Contract Hire,JC101,8/7/2014,298118,340,LINKS TAXIS,REVENUE,100546
NORTH EAST LINCOLNSHIRE COUNCIL,http://statistics.data.gov.uk/id/local-authority/00FC,People,Childrens Services,School Access Governor Student,Contract Hire-Operating Leases,Vehicles - Contract Hire,JC101,8/7/2014,298110,645,LINKS TAXIS,REVENUE,100546
NORTH EAST LINCOLNSHIRE COUNCIL,http://statistics.data.gov.uk/id/local-authority/00FC,People,Childrens Services,School Access Governor Student,Contract Hire-Operating Leases,Vehicles - Contract Hire,JC101,8/7/2014,298113,638,LINKS TAXIS,REVENUE,100546
NORTH EAST LINCOLNSHIRE COUNCIL,http://statistics.data.gov.uk/id/local-authority/00FC,People,Childrens Services,School Access Governor Student,Contract Hire-Operating Leases,Vehicles - Contract Hire,JC101,8/7/2014,298115,840,LINKS TAXIS,REVENUE,100546
NORTH EAST LINCOLNSHIRE COUNCIL,http://statistics.data.gov.uk/id/local-authority/00FC,People,Childrens Services,Strategic Management,Indirect Employee Expenses,Allowances - Employees,EB110,8/11/2014,297847,756,GRIMSBY & DISTRICT TEACHERS ASSOCIATION,REVENUE,107358
NORTH EAST LINCOLNSHIRE COUNCIL,http://statistics.data.gov.uk/id/local-authority/00FC,People,Childrens Services,Sen/Inclusion,Direct Employee Expenses,Agency Staff,EA105,8/14/2014,299409,7625,ALAN STEWART,REVENUE,126468
NORTH EAST LINCOLNSHIRE COUNCIL,http://statistics.data.gov.uk/id/local-authority/00FC,People,Childrens Services,Sen/Inclusion,Direct Employee Expenses,Agency Staff,EA105,8/7/2014,297560,2695.83,IDM CONSULTING,REVENUE,119926
NORTH EAST LINCOLNSHIRE COUNCIL,http://statistics.data.gov.uk/id/local-authority/00FC,People,Childrens Services,Sen/Inclusion,Consultancy,Consultancy,PL101,8/27/2014,301070,2400,GLENN ALLGOOD,REVENUE,109255
NORTH EAST LINCOLNSHIRE COUNCIL,http://statistics.data.gov.uk/id/local-authority/00FC,People,Childrens Services,Sen/Inclusion,Consultancy,Consultancy,PL101,8/27/2014,301071,2700,GLENN ALLGOOD,REVENUE,109255
NORTH EAST LINCOLNSHIRE COUNCIL,http://statistics.data.gov.uk/id/local-authority/00FC,People,Childrens Services,Sen/Inclusion,Other Local Authorities,Third Pp - Other Local Auth,PC101,8/5/2014,296848,7724,REDACTED PERSONAL INFORMATION,REVENUE,REDACTED PERSONAL INFORMATION
NORTH EAST LINCOLNSHIRE COUNCIL,http://statistics.data.gov.uk/id/local-authority/00FC,People,Childrens Services,Sen/Inclusion,Other Local Authorities,Third Pp - Other Local Auth,PC101,8/12/2014,297426,5184,LINCOLNSHIRE COUNTY COUNCIL,REVENUE,100389
NORTH EAST LINCOLNSHIRE COUNCIL,http://statistics.data.gov.uk/id/local-authority/00FC,People,Childrens Services,Sen/Inclusion,Other Local Authorities,Third Pp - Other Local Auth,PC101,8/13/2014,298347,3077.85,REFLEXION CARE GROUP LIMITED,REVENUE,106975
NORTH EAST LINCOLNSHIRE COUNCIL,http://statistics.data.gov.uk/id/local-authority/00FC,People,Childrens Services,Sen/Inclusion,Other Local Authorities,Third Pp - Other Local Auth,PC101,8/6/2014,297176,17797,REDACTED PERSONAL INFORMATION,REVENUE,REDACTED PERSONAL INFORMATION
NORTH EAST LINCOLNSHIRE COUNCIL,http://statistics.data.gov.uk/id/local-authority/00FC,People,Childrens Services,Sen/Inclusion,Other Local Authorities,Third Pp - Other Local Auth,PC101,8/11/2014,298331,7750,PHYSIS QUANTUM,REVENUE,118777
NORTH EAST LINCOLNSHIRE COUNCIL,http://statistics.data.gov.uk/id/local-authority/00FC,People,Childrens Services,Sen/Inclusion,Other Local Authorities,Third Pp - Other Local Auth,PC101,8/28/2014,301033,6000,REDACTED PERSONAL INFORMATION,REVENUE,REDACTED PERSONAL INFORMATION
NORTH EAST LINCOLNSHIRE COUNCIL,http://statistics.data.gov.uk/id/local-authority/00FC,People,Childrens Services,Sen/Inclusion,Other Local Authorities,Third Pp - Other Local Auth,PC101,8/13/2014,298333,3046.83,REFLEXION CARE GROUP LIMITED,REVENUE,106975
NORTH EAST LINCOLNSHIRE COUNCIL,http://statistics.data.gov.uk/id/local-authority/00FC,People,Childrens Services,Sen/Inclusion,Other Local Authorities,Third Pp - Other Local Auth,PC101,8/1/2014,296388,16775.33,REDACTED PERSONAL INFORMATION,REVENUE,REDACTED PERSONAL INFORMATION
NORTH EAST LINCOLNSHIRE COUNCIL,http://statistics.data.gov.uk/id/local-authority/00FC,People,Childrens Services,Sen/Inclusion,Private Contractors,Third Party Prov - Private,PH101,8/13/2014,298347,3100,REFLEXION CARE GROUP LIMITED,REVENUE,106975
NORTH EAST LINCOLNSHIRE COUNCIL,http://statistics.data.gov.uk/id/local-authority/00FC,People,Childrens Services,Sen/Inclusion,Private Contractors,Third Party Prov - Private,PH101,8/13/2014,298347,13285.71,REFLEXION CARE GROUP LIMITED,REVENUE,106975
NORTH EAST LINCOLNSHIRE COUNCIL,http://statistics.data.gov.uk/id/local-authority/00FC,People,Childrens Services,Sen/Inclusion,Private Contractors,Third Party Prov - Private,PH101,8/1/2014,296390,450,LINKAGE COMMUNITY TRUST LTD,REVENUE,104471
NORTH EAST LINCOLNSHIRE COUNCIL,http://statistics.data.gov.uk/id/local-authority/00FC,People,Childrens Services,Sen/Inclusion,Private Contractors,Third Party Prov - Private,PH101,8/11/2014,298331,13728.66,PHYSIS QUANTUM,REVENUE,118777
NORTH EAST LINCOLNSHIRE COUNCIL,http://statistics.data.gov.uk/id/local-authority/00FC,People,Childrens Services,Sen/Inclusion,Private Contractors,Third Party Prov - Private,PH101,8/13/2014,298330,17160,MEADOWS CARE LTD,REVENUE,120773
NORTH EAST LINCOLNSHIRE COUNCIL,http://statistics.data.gov.uk/id/local-authority/00FC,People,Childrens Services,Sen/Inclusion,Private Contractors,Third Party Prov - Private,PH101,8/13/2014,298526,-5496.66,MEADOWS CARE LTD,REVENUE,120773
NORTH EAST LINCOLNSHIRE COUNCIL,http://statistics.data.gov.uk/id/local-authority/00FC,People,Childrens Services,Sen/Inclusion,Private Contractors,Third Party Prov - Private,PH101,8/12/2014,297448,975,ROCK FOUNDATION UK LTD,REVENUE,100481
NORTH EAST LINCOLNSHIRE COUNCIL,http://statistics.data.gov.uk/id/local-authority/00FC,People,Childrens Services,Sen/Inclusion,Private Contractors,Third Party Prov - Private,PH101,8/14/2014,299453,51300.67,KISIMUL SCHOOL,REVENUE,100406
NORTH EAST LINCOLNSHIRE COUNCIL,http://statistics.data.gov.uk/id/local-authority/00FC,People,Childrens Services,Sen/Inclusion,Private Contractors,Third Party Prov - Private,PH101,8/13/2014,298333,18852.65,REFLEXION CARE GROUP LIMITED,REVENUE,106975
NORTH EAST LINCOLNSHIRE COUNCIL,http://statistics.data.gov.uk/id/local-authority/00FC,People,Childrens Services,Sen/Inclusion,Private Contractors,Third Party Prov - Private,PH101,8/21/2014,299848,34315.07,NUGENT HOUSE SCHOOL,REVENUE,126029
NORTH EAST LINCOLNSHIRE COUNCIL,http://statistics.data.gov.uk/id/local-authority/00FC,People,Childrens Services,Sen/Inclusion,Private Contractors,Third Party Prov - Private,PH101,8/12/2014,297420,16071.5,TIMEOUT HOMES LTD,REVENUE,110615
NORTH EAST LINCOLNSHIRE COUNCIL,http://statistics.data.gov.uk/id/local-authority/00FC,People,Childrens Services,Sen/Inclusion,Direct Employee Expenses,Agency Staff,EA105,8/13/2014,298245,2728,INCLUSIVE SOLUTIONS UK LTD,REVENUE,126756
NORTH EAST LINCOLNSHIRE COUNCIL,http://statistics.data.gov.uk/id/local-authority/00FC,People,Childrens Services,Sen/Inclusion,Direct Employee Expenses,Agency Staff,EA105,8/15/2014,298580,1705,INCLUSIVE SOLUTIONS UK LTD,REVENUE,126756
NORTH EAST LINCOLNSHIRE COUNCIL,http://statistics.data.gov.uk/id/local-authority/00FC,People,Childrens Services,Sen/Inclusion,Direct Employee Expenses,Agency Staff,EA105,8/26/2014,301069,4650,THE EDUCATIONAL GUIDANCE SERVICE,REVENUE,123054
NORTH EAST LINCOLNSHIRE COUNCIL,http://statistics.data.gov.uk/id/local-authority/00FC,People,Childrens Services,Sen/Inclusion,Direct Employee Expenses,Agency Staff,EA105,8/26/2014,301068,5425,THE EDUCATIONAL GUIDANCE SERVICE,REVENUE,123054
NORTH EAST LINCOLNSHIRE COUNCIL,http://statistics.data.gov.uk/id/local-authority/00FC,People,Childrens Services,Sen/Inclusion,Consultancy,Consultancy,PL101,8/28/2014,301403,3900,MONICA UDEN SEN CONSULTANT,REVENUE,127088
NORTH EAST LINCOLNSHIRE COUNCIL,http://statistics.data.gov.uk/id/local-authority/00FC,People,Childrens Services,Sen/Inclusion,Consultancy,Consultancy,PL101,8/28/2014,301404,4521,PAUL NICKLIN,REVENUE,127089
NORTH EAST LINCOLNSHIRE COUNCIL,http://statistics.data.gov.uk/id/local-authority/00FC,People,Childrens Services,Sen/Inclusion,Contributions To Provisions,Contributions - Other,LK103,8/12/2014,297840,940,CONNEVANS LIMITED,REVENUE,100898
NORTH EAST LINCOLNSHIRE COUNCIL,http://statistics.data.gov.uk/id/local-authority/00FC,People,Childrens Services,Sen/Inclusion,Contributions To Provisions,Contributions - Other,LK103,8/12/2014,297840,1800,CONNEVANS LIMITED,REVENUE,100898
NORTH EAST LINCOLNSHIRE COUNCIL,http://statistics.data.gov.uk/id/local-authority/00FC,People,Childrens Services,Sen/Inclusion,Contributions To Provisions,Contributions - Other,LK103,8/21/2014,300487,600,SOUNDBYTE SOLUTIONS UK LTD,REVENUE,126901
NORTH EAST LINCOLNSHIRE COUNCIL,http://statistics.data.gov.uk/id/local-authority/00FC,People,Childrens Services,Sen/Inclusion,Contributions To Provisions,Contributions - Other,LK103,8/12/2014,297840,282.8,CONNEVANS LIMITED,REVENUE,100898
NORTH EAST LINCOLNSHIRE COUNCIL,http://statistics.data.gov.uk/id/local-authority/00FC,People,Childrens Services,Sen/Inclusion,Contributions To Provisions,Contributions - Other,LK103,8/21/2014,300487,300,SOUNDBYTE SOLUTIONS UK LTD,REVENUE,126901
NORTH EAST LINCOLNSHIRE COUNCIL,http://statistics.data.gov.uk/id/local-authority/00FC,People,Childrens Services,Sen/Inclusion,Contributions To Provisions,Contributions - Other,LK103,8/21/2014,300487,2500,SOUNDBYTE SOLUTIONS UK LTD,REVENUE,126901
NORTH EAST LINCOLNSHIRE COUNCIL,http://statistics.data.gov.uk/id/local-authority/00FC,People,Childrens Services,Sen/Inclusion,Direct Employee Expenses,Agency Staff,EA105,8/7/2014,296238,3780,FIONA MACAULAY EDUCATION CONSULTANT -SEN,REVENUE,112087
NORTH EAST LINCOLNSHIRE COUNCIL,http://statistics.data.gov.uk/id/local-authority/00FC,People,Childrens Services,Sen/Inclusion,Direct Employee Expenses,Agency Staff,EA105,8/6/2014,297739,4235.52,NORTH LINCOLNSHIRE COUNCIL,REVENUE,101186
NORTH EAST LINCOLNSHIRE COUNCIL,http://statistics.data.gov.uk/id/local-authority/00FC,People,Childrens Services,Sen/Inclusion,Equip / Furniture / Materials,Teaching Materials,LA117,8/11/2014,297454,300,THE GL EDUCATION GROUP,REVENUE,112437
NORTH EAST LINCOLNSHIRE COUNCIL,http://statistics.data.gov.uk/id/local-authority/00FC,People,Childrens Services,Sen/Inclusion,Private Contractors,Concessionary Fares,PH104,8/26/2014,300521,489.5,LINKS TAXIS,REVENUE,100546
NORTH EAST LINCOLNSHIRE COUNCIL,http://statistics.data.gov.uk/id/local-authority/00FC,People,Childrens Services,Sen/Inclusion,Private Contractors,Concessionary Fares,PH104,8/1/2014,296393,340,DKM ASSESSMENT & VERIFICATION LTD,REVENUE,101643
NORTH EAST LINCOLNSHIRE COUNCIL,http://statistics.data.gov.uk/id/local-authority/00FC,People,Childrens Services,Sen/Inclusion,Private Contractors,Concessionary Fares,PH104,8/1/2014,296396,340,DKM ASSESSMENT & VERIFICATION LTD,REVENUE,101643
NORTH EAST LINCOLNSHIRE COUNCIL,http://statistics.data.gov.uk/id/local-authority/00FC,People,Childrens Services,Sen/Inclusion,Private Contractors,Third Party Prov - Private,PH101,8/4/2014,251074,255,REDACTED PERSONAL INFORMATION,REVENUE,REDACTED PERSONAL INFORMATION
NORTH EAST LINCOLNSHIRE COUNCIL,http://statistics.data.gov.uk/id/local-authority/00FC,People,Childrens Services,Sen/Inclusion,Private Contractors,Third Party Prov - Private,PH101,8/5/2014,296794,17217.8,PLAYSPORTS,REVENUE,107535
NORTH EAST LINCOLNSHIRE COUNCIL,http://statistics.data.gov.uk/id/local-authority/00FC,People,Childrens Services,Sen/Inclusion,Private Contractors,Third Party Prov - Private,PH101,8/1/2014,296614,850,DKM ASSESSMENT & VERIFICATION LTD,REVENUE,101643
NORTH EAST LINCOLNSHIRE COUNCIL,http://statistics.data.gov.uk/id/local-authority/00FC,People,Childrens Services,Sen/Inclusion,Private Contractors,Third Party Prov - Private,PH101,8/1/2014,296407,850,DKM ASSESSMENT & VERIFICATION LTD,REVENUE,101643
NORTH EAST LINCOLNSHIRE COUNCIL,http://statistics.data.gov.uk/id/local-authority/00FC,People,Childrens Services,Sen/Inclusion,Private Contractors,Third Party Prov - Private,PH101,8/1/2014,296409,400,DKM ASSESSMENT & VERIFICATION LTD,REVENUE,101643
NORTH EAST LINCOLNSHIRE COUNCIL,http://statistics.data.gov.uk/id/local-authority/00FC,People,Childrens Services,Sen/Inclusion,Private Contractors,Third Party Prov - Private,PH101,8/1/2014,296412,650,DKM ASSESSMENT & VERIFICATION LTD,REVENUE,101643
NORTH EAST LINCOLNSHIRE COUNCIL,http://statistics.data.gov.uk/id/local-authority/00FC,People,Childrens Services,Sen/Inclusion,Private Contractors,Third Party Prov - Private,PH101,8/1/2014,296420,2380,DKM ASSESSMENT & VERIFICATION LTD,REVENUE,101643
NORTH EAST LINCOLNSHIRE COUNCIL,http://statistics.data.gov.uk/id/local-authority/00FC,People,Childrens Services,Sen/Inclusion,Private Contractors,Third Party Prov - Private,PH101,8/4/2014,296421,850,DKM ASSESSMENT & VERIFICATION LTD,REVENUE,101643
NORTH EAST LINCOLNSHIRE COUNCIL,http://statistics.data.gov.uk/id/local-authority/00FC,People,Childrens Services,Sen/Inclusion,Private Contractors,Third Party Prov - Private,PH101,8/4/2014,296411,850,DKM ASSESSMENT & VERIFICATION LTD,REVENUE,101643
NORTH EAST LINCOLNSHIRE COUNCIL,http://statistics.data.gov.uk/id/local-authority/00FC,People,Childrens Services,Sen/Inclusion,Private Contractors,Third Party Prov - Private,PH101,8/4/2014,296413,250,DKM ASSESSMENT & VERIFICATION LTD,REVENUE,101643
NORTH EAST LINCOLNSHIRE COUNCIL,http://statistics.data.gov.uk/id/local-authority/00FC,People,Childrens Services,Sen/Inclusion,Private Contractors,Third Party Prov - Private,PH101,8/4/2014,296414,850,DKM ASSESSMENT & VERIFICATION LTD,REVENUE,101643
NORTH EAST LINCOLNSHIRE COUNCIL,http://statistics.data.gov.uk/id/local-authority/00FC,People,Childrens Services,Sen/Inclusion,Private Contractors,Third Party Prov - Private,PH101,8/4/2014,296415,850,DKM ASSESSMENT & VERIFICATION LTD,REVENUE,101643
NORTH EAST LINCOLNSHIRE COUNCIL,http://statistics.data.gov.uk/id/local-authority/00FC,People,Childrens Services,Sen/Inclusion,Private Contractors,Third Party Prov - Private,PH101,8/4/2014,296416,2380,DKM ASSESSMENT & VERIFICATION LTD,REVENUE,101643
NORTH EAST LINCOLNSHIRE COUNCIL,http://statistics.data.gov.uk/id/local-authority/00FC,People,Childrens Services,Sen/Inclusion,Private Contractors,Third Party Prov - Private,PH101,8/4/2014,296417,850,DKM ASSESSMENT & VERIFICATION LTD,REVENUE,101643
NORTH EAST LINCOLNSHIRE COUNCIL,http://statistics.data.gov.uk/id/local-authority/00FC,People,Childrens Services,Sen/Inclusion,Private Contractors,Third Party Prov - Private,PH101,8/4/2014,296418,850,DKM ASSESSMENT & VERIFICATION LTD,REVENUE,101643
NORTH EAST LINCOLNSHIRE COUNCIL,http://statistics.data.gov.uk/id/local-authority/00FC,People,Childrens Services,Sen/Inclusion,Private Contractors,Third Party Prov - Private,PH101,8/4/2014,296419,850,DKM ASSESSMENT & VERIFICATION LTD,REVENUE,101643
NORTH EAST LINCOLNSHIRE COUNCIL,http://statistics.data.gov.uk/id/local-authority/00FC,People,Childrens Services,Sen/Inclusion,Private Contractors,Third Party Prov - Private,PH101,8/4/2014,296423,2380,DKM ASSESSMENT & VERIFICATION LTD,REVENUE,101643
NORTH EAST LINCOLNSHIRE COUNCIL,http://statistics.data.gov.uk/id/local-authority/00FC,People,Childrens Services,Sen/Inclusion,Private Contractors,Third Party Prov - Private,PH101,8/4/2014,296574,840,DKM ASSESSMENT & VERIFICATION LTD,REVENUE,101643
NORTH EAST LINCOLNSHIRE COUNCIL,http://statistics.data.gov.uk/id/local-authority/00FC,People,Childrens Services,Sen/Inclusion,Private Contractors,Third Party Prov - Private,PH101,8/4/2014,296638,-450,DKM ASSESSMENT & VERIFICATION LTD,REVENUE,101643
NORTH EAST LINCOLNSHIRE COUNCIL,http://statistics.data.gov.uk/id/local-authority/00FC,People,Childrens Services,Sen/Inclusion,Private Contractors,Third Party Prov - Private,PH101,8/18/2014,298786,20426.6,CPO MEDIA,REVENUE,102186
NORTH EAST LINCOLNSHIRE COUNCIL,http://statistics.data.gov.uk/id/local-authority/00FC,People,Childrens Services,Sen/Inclusion,Private Contractors,Third Party Prov - Private,PH101,8/5/2014,296633,2806,NORTH EAST LINCS MOTOR PROJECT,REVENUE,101121
NORTH EAST LINCOLNSHIRE COUNCIL,http://statistics.data.gov.uk/id/local-authority/00FC,People,Childrens Services,Sen/Inclusion,Direct Employee Expenses,Agency Staff,EA105,8/12/2014,298976,560,TEACHING PERSONNEL LTD,REVENUE,101305
NORTH EAST LINCOLNSHIRE COUNCIL,http://statistics.data.gov.uk/id/local-authority/00FC,People,Childrens Services,Sen/Inclusion,Direct Employee Expenses,Agency Staff,EA105,8/12/2014,298980,563.75,TEACHING PERSONNEL LTD,REVENUE,101305
NORTH EAST LINCOLNSHIRE COUNCIL,http://statistics.data.gov.uk/id/local-authority/00FC,People,Childrens Services,Sen/Inclusion,Direct Employee Expenses,Agency Staff,EA105,8/12/2014,298982,563.75,TEACHING PERSONNEL LTD,REVENUE,101305
NORTH EAST LINCOLNSHIRE COUNCIL,http://statistics.data.gov.uk/id/local-authority/00FC,People,Childrens Services,Sen/Inclusion,Equip / Furniture / Materials,Non-Teaching Resources,LA118,8/21/2014,300121,-12.1,EAST RIDING OF YORKSHIRE COUNCIL,REVENUE,100654
NORTH EAST LINCOLNSHIRE COUNCIL,http://statistics.data.gov.uk/id/local-authority/00FC,People,Childrens Services,Sen/Inclusion,Equip / Furniture / Materials,Non-Teaching Resources,LA118,8/19/2014,296502,-2.76,EAST RIDING OF YORKSHIRE COUNCIL,REVENUE,100654
NORTH EAST LINCOLNSHIRE COUNCIL,http://statistics.data.gov.uk/id/local-authority/00FC,People,Childrens Services,Sen/Inclusion,Private Contractors,Third Party Prov - Private,PH101,8/6/2014,253513,593.68,REDACTED PERSONAL INFORMATION,REVENUE,REDACTED PERSONAL INFORMATION
NORTH EAST LINCOLNSHIRE COUNCIL,http://statistics.data.gov.uk/id/local-authority/00FC,People,Childrens Services,Sen/Inclusion,Private Contractors,Third Party Prov - Private,PH101,8/12/2014,297553,15656,LINKAGE COMMUNITY TRUST LTD,REVENUE,104471
NORTH EAST LINCOLNSHIRE COUNCIL,http://statistics.data.gov.uk/id/local-authority/00FC,People,Childrens Services,Sen/Inclusion,Private Contractors,Third Party Prov - Private,PH101,8/11/2014,297549,20580.53,THE GRIMSBY INSTITUTE OF FURTHER,REVENUE,102742
NORTH EAST LINCOLNSHIRE COUNCIL,http://statistics.data.gov.uk/id/local-authority/00FC,People,Childrens Services,Sen/Inclusion,Contributions To Provisions,Contributions - Other,LK103,8/15/2014,299812,1727,EDWARD HENEAGE PRIMARY (ACADEMY),REVENUE,111742
NORTH EAST LINCOLNSHIRE COUNCIL,http://statistics.data.gov.uk/id/local-authority/00FC,People,Childrens Services,Sen/Inclusion,Contributions To Provisions,Contributions - Other,LK103,8/15/2014,299815,2300,HOLY FAMILY CATHOLIC ACADEMY,REVENUE,122121
NORTH EAST LINCOLNSHIRE COUNCIL,http://statistics.data.gov.uk/id/local-authority/00FC,People,Childrens Services,Sen/Inclusion,Contributions To Provisions,Contributions - Other,LK103,8/15/2014,299810,895,HUMBERSTON ACADEMY,REVENUE,106067
NORTH EAST LINCOLNSHIRE COUNCIL,http://statistics.data.gov.uk/id/local-authority/00FC,People,Childrens Services,Sen/Inclusion,Contributions To Provisions,Contributions - Other,LK103,8/15/2014,299811,6241,LISLE MARSDEN C OF E PRIMARY ACADEMY,REVENUE,107922
NORTH EAST LINCOLNSHIRE COUNCIL,http://statistics.data.gov.uk/id/local-authority/00FC,People,Childrens Services,Sen/Inclusion,Contributions To Provisions,Contributions - Other,LK103,8/15/2014,299809,1000,ORMISTON MARITIME ACADEMY,REVENUE,106066
NORTH EAST LINCOLNSHIRE COUNCIL,http://statistics.data.gov.uk/id/local-authority/00FC,People,Childrens Services,Sen/Inclusion,Contributions To Provisions,Contributions - Other,LK103,8/15/2014,299814,5048,THRUNSCOE PRIMARY AND NURSERY ACADEMY,REVENUE,118749
NORTH EAST LINCOLNSHIRE COUNCIL,http://statistics.data.gov.uk/id/local-authority/00FC,People,Childrens Services,Sen/Inclusion,Contributions To Provisions,Contributions - Other,LK103,8/15/2014,299808,4141,OASIS ACADEMY WINTRINGHAM,REVENUE,101939
NORTH EAST LINCOLNSHIRE COUNCIL,http://statistics.data.gov.uk/id/local-authority/00FC,People,Childrens Services,Sen/Inclusion,Miscellaneous Expenses,Contingency Reserve,LL123,8/21/2014,300545,131143,THE CAMBRIDGE PARK ACADEMY,REVENUE,107472
NORTH EAST LINCOLNSHIRE COUNCIL,http://statistics.data.gov.uk/id/local-authority/00FC,People,Childrens Services,Sen/Inclusion,Miscellaneous Expenses,Contingency Reserve,LL123,8/21/2014,300544,98713,HUMBERSTON PARK SPECIAL SCHOOL,REVENUE,107911
NORTH EAST LINCOLNSHIRE COUNCIL,http://statistics.data.gov.uk/id/local-authority/00FC,People,Childrens Services,Placement & Support,Rents,Rent,GC101,8/5/2014,296725,5621.76,SHORELINE HOUSING PARTNERSHIP LTD,REVENUE,100139
NORTH EAST LINCOLNSHIRE COUNCIL,http://statistics.data.gov.uk/id/local-authority/00FC,People,Childrens Services,Placement & Support,Equip / Furniture / Materials,Equipment - Hire,LA102,8/12/2014,298986,387.24,LARCO LTD,REVENUE,100542
NORTH EAST LINCOLNSHIRE COUNCIL,http://statistics.data.gov.uk/id/local-authority/00FC,People,Childrens Services,Placement & Support,Equip / Furniture / Materials,Equipment - Purchase,LA101,8/7/2014,297432,525,PORTLOCK PAINTING,REVENUE,101144
NORTH EAST LINCOLNSHIRE COUNCIL,http://statistics.data.gov.uk/id/local-authority/00FC,People,Childrens Services,Placement & Support,Miscellaneous Expenses,Activities - Service Users,LL114,8/11/2014,297487,1185,WALTHAM TRAVEL,REVENUE,126166
NORTH EAST LINCOLNSHIRE COUNCIL,http://statistics.data.gov.uk/id/local-authority/00FC,People,Childrens Services,Placement & Support,Miscellaneous Expenses,Activities - Service Users,LL114,8/14/2014,298958,332.74,VULNERABLE YOUNG PEOPLE PROJECT HENEAGE,REVENUE,110637
NORTH EAST LINCOLNSHIRE COUNCIL,http://statistics.data.gov.uk/id/local-authority/00FC,People,Childrens Services,Placement & Support,Other Agencies,Child Care Payments,PJ104,8/7/2014,298286,674.12,ABACUS HEALTHCARE,REVENUE,104334
NORTH EAST LINCOLNSHIRE COUNCIL,http://statistics.data.gov.uk/id/local-authority/00FC,People,Childrens Services,Placement & Support,Private Contractors,Third Party Prov - Private,PH101,8/5/2014,296468,336,REVELLS TAXIS (ED/SOC SERV),REVENUE,100559
NORTH EAST LINCOLNSHIRE COUNCIL,http://statistics.data.gov.uk/id/local-authority/00FC,People,Childrens Services,Placement & Support,Private Contractors,Third Party Prov - Private,PH101,8/26/2014,301055,285,REVELLS TAXIS (ED/SOC SERV),REVENUE,100559
NORTH EAST LINCOLNSHIRE COUNCIL,http://statistics.data.gov.uk/id/local-authority/00FC,People,Childrens Services,Placement & Support,Other Agencies,Additional Cost,PJ114,8/12/2014,254846,4000,REDACTED PERSONAL INFORMATION,REVENUE,REDACTED PERSONAL INFORMATION
NORTH EAST LINCOLNSHIRE COUNCIL,http://statistics.data.gov.uk/id/local-authority/00FC,People,Childrens Services,Placement & Support,Other Agencies,Additional Cost,PJ114,8/12/2014,254777,250,REDACTED PERSONAL INFORMATION,REVENUE,REDACTED PERSONAL INFORMATION
NORTH EAST LINCOLNSHIRE COUNCIL,http://statistics.data.gov.uk/id/local-authority/00FC,People,Childrens Services,Placement & Support,Other Agencies,Additional Cost,PJ114,8/19/2014,256205,722.75,REDACTED PERSONAL INFORMATION,REVENUE,REDACTED PERSONAL INFORMATION
NORTH EAST LINCOLNSHIRE COUNCIL,http://statistics.data.gov.uk/id/local-authority/00FC,People,Childrens Services,Placement & Support,Other Agencies,Additional Cost,PJ114,8/29/2014,299937,360,LINKS TAXIS,REVENUE,100546
NORTH EAST LINCOLNSHIRE COUNCIL,http://statistics.data.gov.uk/id/local-authority/00FC,People,Childrens Services,Placement & Support,Other Agencies,Additional Cost,PJ114,8/7/2014,296582,797.5,AA RADIO CARS LTD,REVENUE,101222
NORTH EAST LINCOLNSHIRE COUNCIL,http://statistics.data.gov.uk/id/local-authority/00FC,People,Childrens Services,Placement & Support,Other Agencies,Additional Cost,PJ114,8/7/2014,294648,935,AA RADIO CARS LTD,REVENUE,101222
NORTH EAST LINCOLNSHIRE COUNCIL,http://statistics.data.gov.uk/id/local-authority/00FC,People,Childrens Services,Placement & Support,Other Agencies,Child Care Payments,PJ104,8/5/2014,252129,632,REDACTED PERSONAL INFORMATION,REVENUE,REDACTED PERSONAL INFORMATION
NORTH EAST LINCOLNSHIRE COUNCIL,http://statistics.data.gov.uk/id/local-authority/00FC,People,Childrens Services,Placement & Support,Other Agencies,Child Care Payments,PJ104,8/5/2014,252133,336,REDACTED PERSONAL INFORMATION,REVENUE,REDACTED PERSONAL INFORMATION
NORTH EAST LINCOLNSHIRE COUNCIL,http://statistics.data.gov.uk/id/local-authority/00FC,People,Childrens Services,Placement & Support,Other Agencies,Child Care Payments,PJ104,8/5/2014,252136,632,REDACTED PERSONAL INFORMATION,REVENUE,REDACTED PERSONAL INFORMATION
NORTH EAST LINCOLNSHIRE COUNCIL,http://statistics.data.gov.uk/id/local-authority/00FC,People,Childrens Services,Placement & Support,Other Agencies,Child Care Payments,PJ104,8/5/2014,252137,432,REDACTED PERSONAL INFORMATION,REVENUE,REDACTED PERSONAL INFORMATION
NORTH EAST LINCOLNSHIRE COUNCIL,http://statistics.data.gov.uk/id/local-authority/00FC,People,Childrens Services,Placement & Support,Other Agencies,Child Care Payments,PJ104,8/5/2014,252138,1013,REDACTED PERSONAL INFORMATION,REVENUE,REDACTED PERSONAL INFORMATION
NORTH EAST LINCOLNSHIRE COUNCIL,http://statistics.data.gov.uk/id/local-authority/00FC,People,Childrens Services,Placement & Support,Other Agencies,Child Care Payments,PJ104,8/5/2014,252140,336,REDACTED PERSONAL INFORMATION,REVENUE,REDACTED PERSONAL INFORMATION
NORTH EAST LINCOLNSHIRE COUNCIL,http://statistics.data.gov.uk/id/local-authority/00FC,People,Childrens Services,Placement & Support,Other Agencies,Child Care Payments,PJ104,8/5/2014,252141,316,REDACTED PERSONAL INFORMATION,REVENUE,REDACTED PERSONAL INFORMATION
NORTH EAST LINCOLNSHIRE COUNCIL,http://statistics.data.gov.uk/id/local-authority/00FC,People,Childrens Services,Placement & Support,Other Agencies,Child Care Payments,PJ104,8/5/2014,252147,968,REDACTED PERSONAL INFORMATION,REVENUE,REDACTED PERSONAL INFORMATION
NORTH EAST LINCOLNSHIRE COUNCIL,http://statistics.data.gov.uk/id/local-authority/00FC,People,Childrens Services,Placement & Support,Other Agencies,Child Care Payments,PJ104,8/5/2014,252149,1228,REDACTED PERSONAL INFORMATION,REVENUE,REDACTED PERSONAL INFORMATION
NORTH EAST LINCOLNSHIRE COUNCIL,http://statistics.data.gov.uk/id/local-authority/00FC,People,Childrens Services,Placement & Support,Other Agencies,Child Care Payments,PJ104,8/5/2014,252150,316,REDACTED PERSONAL INFORMATION,REVENUE,REDACTED PERSONAL INFORMATION
NORTH EAST LINCOLNSHIRE COUNCIL,http://statistics.data.gov.uk/id/local-authority/00FC,People,Childrens Services,Placement & Support,Other Agencies,Child Care Payments,PJ104,8/5/2014,252151,672,REDACTED PERSONAL INFORMATION,REVENUE,REDACTED PERSONAL INFORMATION
NORTH EAST LINCOLNSHIRE COUNCIL,http://statistics.data.gov.uk/id/local-authority/00FC,People,Childrens Services,Placement & Support,Other Agencies,Child Care Payments,PJ104,8/5/2014,252159,652,REDACTED PERSONAL INFORMATION,REVENUE,REDACTED PERSONAL INFORMATION
NORTH EAST LINCOLNSHIRE COUNCIL,http://statistics.data.gov.uk/id/local-authority/00FC,People,Childrens Services,Placement & Support,Other Agencies,Child Care Payments,PJ104,8/5/2014,252160,672,REDACTED PERSONAL INFORMATION,REVENUE,REDACTED PERSONAL INFORMATION
NORTH EAST LINCOLNSHIRE COUNCIL,http://statistics.data.gov.uk/id/local-authority/00FC,People,Childrens Services,Placement & Support,Other Agencies,Child Care Payments,PJ104,8/5/2014,252162,316,REDACTED PERSONAL INFORMATION,REVENUE,REDACTED PERSONAL INFORMATION
NORTH EAST LINCOLNSHIRE COUNCIL,http://statistics.data.gov.uk/id/local-authority/00FC,People,Childrens Services,Placement & Support,Other Agencies,Child Care Payments,PJ104,8/5/2014,252163,304,REDACTED PERSONAL INFORMATION,REVENUE,REDACTED PERSONAL INFORMATION
NORTH EAST LINCOLNSHIRE COUNCIL,http://statistics.data.gov.uk/id/local-authority/00FC,People,Childrens Services,Placement & Support,Other Agencies,Child Care Payments,PJ104,8/5/2014,252173,1013,REDACTED PERSONAL INFORMATION,REVENUE,REDACTED PERSONAL INFORMATION
NORTH EAST LINCOLNSHIRE COUNCIL,http://statistics.data.gov.uk/id/local-authority/00FC,People,Childrens Services,Placement & Support,Other Agencies,Child Care Payments,PJ104,8/5/2014,252177,936,REDACTED PERSONAL INFORMATION,REVENUE,REDACTED PERSONAL INFORMATION
NORTH EAST LINCOLNSHIRE COUNCIL,http://statistics.data.gov.uk/id/local-authority/00FC,People,Childrens Services,Placement & Support,Other Agencies,Child Care Payments,PJ104,8/5/2014,252180,632,REDACTED PERSONAL INFORMATION,REVENUE,REDACTED PERSONAL INFORMATION
NORTH EAST LINCOLNSHIRE COUNCIL,http://statistics.data.gov.uk/id/local-authority/00FC,People,Childrens Services,Placement & Support,Other Agencies,Child Care Payments,PJ104,8/5/2014,252181,912,REDACTED PERSONAL INFORMATION,REVENUE,REDACTED PERSONAL INFORMATION
NORTH EAST LINCOLNSHIRE COUNCIL,http://statistics.data.gov.uk/id/local-authority/00FC,People,Childrens Services,Placement & Support,Other Agencies,Child Care Payments,PJ104,8/5/2014,252183,1033,REDACTED PERSONAL INFORMATION,REVENUE,REDACTED PERSONAL INFORMATION
NORTH EAST LINCOLNSHIRE COUNCIL,http://statistics.data.gov.uk/id/local-authority/00FC,People,Childrens Services,Placement & Support,Other Agencies,Child Care Payments,PJ104,8/5/2014,252184,632,REDACTED PERSONAL INFORMATION,REVENUE,REDACTED PERSONAL INFORMATION
NORTH EAST LINCOLNSHIRE COUNCIL,http://statistics.data.gov.uk/id/local-authority/00FC,People,Childrens Services,Placement & Support,Other Agencies,Child Care Payments,PJ104,8/5/2014,252186,316,REDACTED PERSONAL INFORMATION,REVENUE,REDACTED PERSONAL INFORMATION
NORTH EAST LINCOLNSHIRE COUNCIL,http://statistics.data.gov.uk/id/local-authority/00FC,People,Childrens Services,Placement & Support,Other Agencies,Child Care Payments,PJ104,8/5/2014,252188,1033,REDACTED PERSONAL INFORMATION,REVENUE,REDACTED PERSONAL INFORMATION
NORTH EAST LINCOLNSHIRE COUNCIL,http://statistics.data.gov.uk/id/local-authority/00FC,People,Childrens Services,Placement & Support,Other Agencies,Child Care Payments,PJ104,8/5/2014,252193,936,REDACTED PERSONAL INFORMATION,REVENUE,REDACTED PERSONAL INFORMATION
NORTH EAST LINCOLNSHIRE COUNCIL,http://statistics.data.gov.uk/id/local-authority/00FC,People,Childrens Services,Placement & Support,Other Agencies,Child Care Payments,PJ104,8/5/2014,252196,361,REDACTED PERSONAL INFORMATION,REVENUE,REDACTED PERSONAL INFORMATION
NORTH EAST LINCOLNSHIRE COUNCIL,http://statistics.data.gov.uk/id/local-authority/00FC,People,Childrens Services,Placement & Support,Other Agencies,Child Care Payments,PJ104,8/5/2014,252210,620,REDACTED PERSONAL INFORMATION,REVENUE,REDACTED PERSONAL INFORMATION
NORTH EAST LINCOLNSHIRE COUNCIL,http://statistics.data.gov.uk/id/local-authority/00FC,People,Childrens Services,Placement & Support,Other Agencies,Child Care Payments,PJ104,8/5/2014,252219,672,REDACTED PERSONAL INFORMATION,REVENUE,REDACTED PERSONAL INFORMATION
NORTH EAST LINCOLNSHIRE COUNCIL,http://statistics.data.gov.uk/id/local-authority/00FC,People,Childrens Services,Placement & Support,Other Agencies,Child Care Payments,PJ104,8/5/2014,252222,361,REDACTED PERSONAL INFORMATION,REVENUE,REDACTED PERSONAL INFORMATION
NORTH EAST LINCOLNSHIRE COUNCIL,http://statistics.data.gov.uk/id/local-authority/00FC,People,Childrens Services,Placement & Support,Other Agencies,Child Care Payments,PJ104,8/5/2014,252224,646.29,REDACTED PERSONAL INFORMATION,REVENUE,REDACTED PERSONAL INFORMATION
NORTH EAST LINCOLNSHIRE COUNCIL,http://statistics.data.gov.uk/id/local-authority/00FC,People,Childrens Services,Placement & Support,Other Agencies,Child Care Payments,PJ104,8/5/2014,252227,640,REDACTED PERSONAL INFORMATION,REVENUE,REDACTED PERSONAL INFORMATION
NORTH EAST LINCOLNSHIRE COUNCIL,http://statistics.data.gov.uk/id/local-authority/00FC,People,Childrens Services,Placement & Support,Other Agencies,Child Care Payments,PJ104,8/5/2014,252231,944,REDACTED PERSONAL INFORMATION,REVENUE,REDACTED PERSONAL INFORMATION
NORTH EAST LINCOLNSHIRE COUNCIL,http://statistics.data.gov.uk/id/local-authority/00FC,People,Childrens Services,Placement & Support,Other Agencies,Child Care Payments,PJ104,8/5/2014,252234,446.29,REDACTED PERSONAL INFORMATION,REVENUE,REDACTED PERSONAL INFORMATION
NORTH EAST LINCOLNSHIRE COUNCIL,http://statistics.data.gov.uk/id/local-authority/00FC,People,Childrens Services,Placement & Support,Other Agencies,Child Care Payments,PJ104,8/5/2014,252240,608,REDACTED PERSONAL INFORMATION,REVENUE,REDACTED PERSONAL INFORMATION
NORTH EAST LINCOLNSHIRE COUNCIL,http://statistics.data.gov.uk/id/local-authority/00FC,People,Childrens Services,Placement & Support,Other Agencies,Child Care Payments,PJ104,8/5/2014,252245,672,REDACTED PERSONAL INFORMATION,REVENUE,REDACTED PERSONAL INFORMATION
NORTH EAST LINCOLNSHIRE COUNCIL,http://statistics.data.gov.uk/id/local-authority/00FC,People,Childrens Services,Placement & Support,Other Agencies,Child Care Payments,PJ104,8/5/2014,252249,632,REDACTED PERSONAL INFORMATION,REVENUE,REDACTED PERSONAL INFORMATION
NORTH EAST LINCOLNSHIRE COUNCIL,http://statistics.data.gov.uk/id/local-authority/00FC,People,Childrens Services,Placement & Support,Other Agencies,Child Care Payments,PJ104,8/5/2014,252258,620,REDACTED PERSONAL INFORMATION,REVENUE,REDACTED PERSONAL INFORMATION
NORTH EAST LINCOLNSHIRE COUNCIL,http://statistics.data.gov.uk/id/local-authority/00FC,People,Childrens Services,Placement & Support,Other Agencies,Child Care Payments,PJ104,8/5/2014,252269,620,REDACTED PERSONAL INFORMATION,REVENUE,REDACTED PERSONAL INFORMATION
NORTH EAST LINCOLNSHIRE COUNCIL,http://statistics.data.gov.uk/id/local-authority/00FC,People,Childrens Services,Placement & Support,Other Agencies,Child Care Payments,PJ104,8/5/2014,252275,936,REDACTED PERSONAL INFORMATION,REVENUE,REDACTED PERSONAL INFORMATION
NORTH EAST LINCOLNSHIRE COUNCIL,http://statistics.data.gov.uk/id/local-authority/00FC,People,Childrens Services,Placement & Support,Other Agencies,Child Care Payments,PJ104,8/5/2014,252281,620,REDACTED PERSONAL INFORMATION,REVENUE,REDACTED PERSONAL INFORMATION
NORTH EAST LINCOLNSHIRE COUNCIL,http://statistics.data.gov.uk/id/local-authority/00FC,People,Childrens Services,Placement & Support,Other Agencies,Child Care Payments,PJ104,8/5/2014,252297,316,REDACTED PERSONAL INFORMATION,REVENUE,REDACTED PERSONAL INFORMATION
NORTH EAST LINCOLNSHIRE COUNCIL,http://statistics.data.gov.uk/id/local-authority/00FC,People,Childrens Services,Placement & Support,Other Agencies,Child Care Payments,PJ104,8/5/2014,252331,640,REDACTED PERSONAL INFORMATION,REVENUE,REDACTED PERSONAL INFORMATION
NORTH EAST LINCOLNSHIRE COUNCIL,http://statistics.data.gov.uk/id/local-authority/00FC,People,Childrens Services,Placement & Support,Other Agencies,Child Care Payments,PJ104,8/5/2014,252334,968,REDACTED PERSONAL INFORMATION,REVENUE,REDACTED PERSONAL INFORMATION
NORTH EAST LINCOLNSHIRE COUNCIL,http://statistics.data.gov.uk/id/local-authority/00FC,People,Childrens Services,Placement & Support,Other Agencies,Child Care Payments,PJ104,8/5/2014,252335,336,REDACTED PERSONAL INFORMATION,REVENUE,REDACTED PERSONAL INFORMATION
NORTH EAST LINCOLNSHIRE COUNCIL,http://statistics.data.gov.uk/id/local-authority/00FC,People,Childrens Services,Placement & Support,Other Agencies,Child Care Payments,PJ104,8/5/2014,252345,608,REDACTED PERSONAL INFORMATION,REVENUE,REDACTED PERSONAL INFORMATION
NORTH EAST LINCOLNSHIRE COUNCIL,http://statistics.data.gov.uk/id/local-authority/00FC,People,Childrens Services,Placement & Support,Other Agencies,Child Care Payments,PJ104,8/5/2014,252351,936,REDACTED PERSONAL INFORMATION,REVENUE,REDACTED PERSONAL INFORMATION
NORTH EAST LINCOLNSHIRE COUNCIL,http://statistics.data.gov.uk/id/local-authority/00FC,People,Childrens Services,Placement & Support,Other Agencies,Child Care Payments,PJ104,8/5/2014,252360,608,REDACTED PERSONAL INFORMATION,REVENUE,REDACTED PERSONAL INFORMATION
NORTH EAST LINCOLNSHIRE COUNCIL,http://statistics.data.gov.uk/id/local-authority/00FC,People,Childrens Services,Placement & Support,Other Agencies,Child Care Payments,PJ104,8/12/2014,254854,640,REDACTED PERSONAL INFORMATION,REVENUE,REDACTED PERSONAL INFORMATION
NORTH EAST LINCOLNSHIRE COUNCIL,http://statistics.data.gov.uk/id/local-authority/00FC,People,Childrens Services,Placement & Support,Other Agencies,Child Care Payments,PJ104,8/12/2014,254858,944,REDACTED PERSONAL INFORMATION,REVENUE,REDACTED PERSONAL INFORMATION
NORTH EAST LINCOLNSHIRE COUNCIL,http://statistics.data.gov.uk/id/local-authority/00FC,People,Childrens Services,Placement & Support,Other Agencies,Child Care Payments,PJ104,8/12/2014,254861,316,REDACTED PERSONAL INFORMATION,REVENUE,REDACTED PERSONAL INFORMATION
NORTH EAST LINCOLNSHIRE COUNCIL,http://statistics.data.gov.uk/id/local-authority/00FC,People,Childrens Services,Placement & Support,Other Agencies,Child Care Payments,PJ104,8/12/2014,254867,608,REDACTED PERSONAL INFORMATION,REVENUE,REDACTED PERSONAL INFORMATION
NORTH EAST LINCOLNSHIRE COUNCIL,http://statistics.data.gov.uk/id/local-authority/00FC,People,Childrens Services,Placement & Support,Other Agencies,Child Care Payments,PJ104,8/12/2014,254872,672,REDACTED PERSONAL INFORMATION,REVENUE,REDACTED PERSONAL INFORMATION
NORTH EAST LINCOLNSHIRE COUNCIL,http://statistics.data.gov.uk/id/local-authority/00FC,People,Childrens Services,Placement & Support,Other Agencies,Child Care Payments,PJ104,8/12/2014,254876,632,REDACTED PERSONAL INFORMATION,REVENUE,REDACTED PERSONAL INFORMATION
NORTH EAST LINCOLNSHIRE COUNCIL,http://statistics.data.gov.uk/id/local-authority/00FC,People,Childrens Services,Placement & Support,Other Agencies,Child Care Payments,PJ104,8/12/2014,254886,620,REDACTED PERSONAL INFORMATION,REVENUE,REDACTED PERSONAL INFORMATION
NORTH EAST LINCOLNSHIRE COUNCIL,http://statistics.data.gov.uk/id/local-authority/00FC,People,Childrens Services,Placement & Support,Other Agencies,Child Care Payments,PJ104,8/12/2014,254898,620,REDACTED PERSONAL INFORMATION,REVENUE,REDACTED PERSONAL INFORMATION
NORTH EAST LINCOLNSHIRE COUNCIL,http://statistics.data.gov.uk/id/local-authority/00FC,People,Childrens Services,Placement & Support,Other Agencies,Child Care Payments,PJ104,8/12/2014,254904,936,REDACTED PERSONAL INFORMATION,REVENUE,REDACTED PERSONAL INFORMATION
NORTH EAST LINCOLNSHIRE COUNCIL,http://statistics.data.gov.uk/id/local-authority/00FC,People,Childrens Services,Placement & Support,Other Agencies,Child Care Payments,PJ104,8/12/2014,254910,620,REDACTED PERSONAL INFORMATION,REVENUE,REDACTED PERSONAL INFORMATION
NORTH EAST LINCOLNSHIRE COUNCIL,http://statistics.data.gov.uk/id/local-authority/00FC,People,Childrens Services,Placement & Support,Other Agencies,Child Care Payments,PJ104,8/12/2014,254927,316,REDACTED PERSONAL INFORMATION,REVENUE,REDACTED PERSONAL INFORMATION
NORTH EAST LINCOLNSHIRE COUNCIL,http://statistics.data.gov.uk/id/local-authority/00FC,People,Childrens Services,Placement & Support,Other Agencies,Child Care Payments,PJ104,8/12/2014,254959,640,REDACTED PERSONAL INFORMATION,REVENUE,REDACTED PERSONAL INFORMATION
NORTH EAST LINCOLNSHIRE COUNCIL,http://statistics.data.gov.uk/id/local-authority/00FC,People,Childrens Services,Placement & Support,Other Agencies,Child Care Payments,PJ104,8/12/2014,254963,968,REDACTED PERSONAL INFORMATION,REVENUE,REDACTED PERSONAL INFORMATION
NORTH EAST LINCOLNSHIRE COUNCIL,http://statistics.data.gov.uk/id/local-authority/00FC,People,Childrens Services,Placement & Support,Other Agencies,Child Care Payments,PJ104,8/12/2014,254964,336,REDACTED PERSONAL INFORMATION,REVENUE,REDACTED PERSONAL INFORMATION
NORTH EAST LINCOLNSHIRE COUNCIL,http://statistics.data.gov.uk/id/local-authority/00FC,People,Childrens Services,Placement & Support,Other Agencies,Child Care Payments,PJ104,8/12/2014,254974,608,REDACTED PERSONAL INFORMATION,REVENUE,REDACTED PERSONAL INFORMATION
NORTH EAST LINCOLNSHIRE COUNCIL,http://statistics.data.gov.uk/id/local-authority/00FC,People,Childrens Services,Placement & Support,Other Agencies,Child Care Payments,PJ104,8/12/2014,254980,936,REDACTED PERSONAL INFORMATION,REVENUE,REDACTED PERSONAL INFORMATION
NORTH EAST LINCOLNSHIRE COUNCIL,http://statistics.data.gov.uk/id/local-authority/00FC,People,Childrens Services,Placement & Support,Other Agencies,Child Care Payments,PJ104,8/12/2014,254989,608,REDACTED PERSONAL INFORMATION,REVENUE,REDACTED PERSONAL INFORMATION
NORTH EAST LINCOLNSHIRE COUNCIL,http://statistics.data.gov.uk/id/local-authority/00FC,People,Childrens Services,Placement & Support,Other Agencies,Child Care Payments,PJ104,8/12/2014,254758,406.29,REDACTED PERSONAL INFORMATION,REVENUE,REDACTED PERSONAL INFORMATION
NORTH EAST LINCOLNSHIRE COUNCIL,http://statistics.data.gov.uk/id/local-authority/00FC,People,Childrens Services,Placement & Support,Other Agencies,Child Care Payments,PJ104,8/12/2014,254762,336,REDACTED PERSONAL INFORMATION,REVENUE,REDACTED PERSONAL INFORMATION
NORTH EAST LINCOLNSHIRE COUNCIL,http://statistics.data.gov.uk/id/local-authority/00FC,People,Childrens Services,Placement & Support,Other Agencies,Child Care Payments,PJ104,8/12/2014,254765,632,REDACTED PERSONAL INFORMATION,REVENUE,REDACTED PERSONAL INFORMATION
NORTH EAST LINCOLNSHIRE COUNCIL,http://statistics.data.gov.uk/id/local-authority/00FC,People,Childrens Services,Placement & Support,Other Agencies,Child Care Payments,PJ104,8/12/2014,254766,336,REDACTED PERSONAL INFORMATION,REVENUE,REDACTED PERSONAL INFORMATION
NORTH EAST LINCOLNSHIRE COUNCIL,http://statistics.data.gov.uk/id/local-authority/00FC,People,Childrens Services,Placement & Support,Other Agencies,Child Care Payments,PJ104,8/12/2014,254767,1013,REDACTED PERSONAL INFORMATION,REVENUE,REDACTED PERSONAL INFORMATION
NORTH EAST LINCOLNSHIRE COUNCIL,http://statistics.data.gov.uk/id/local-authority/00FC,People,Childrens Services,Placement & Support,Other Agencies,Child Care Payments,PJ104,8/12/2014,254769,336,REDACTED PERSONAL INFORMATION,REVENUE,REDACTED PERSONAL INFORMATION
NORTH EAST LINCOLNSHIRE COUNCIL,http://statistics.data.gov.uk/id/local-authority/00FC,People,Childrens Services,Placement & Support,Other Agencies,Child Care Payments,PJ104,8/12/2014,254770,316,REDACTED PERSONAL INFORMATION,REVENUE,REDACTED PERSONAL INFORMATION
NORTH EAST LINCOLNSHIRE COUNCIL,http://statistics.data.gov.uk/id/local-authority/00FC,People,Childrens Services,Placement & Support,Other Agencies,Child Care Payments,PJ104,8/12/2014,254775,968,REDACTED PERSONAL INFORMATION,REVENUE,REDACTED PERSONAL INFORMATION
NORTH EAST LINCOLNSHIRE COUNCIL,http://statistics.data.gov.uk/id/local-authority/00FC,People,Childrens Services,Placement & Support,Other Agencies,Child Care Payments,PJ104,8/12/2014,254777,1228,REDACTED PERSONAL INFORMATION,REVENUE,REDACTED PERSONAL INFORMATION
NORTH EAST LINCOLNSHIRE COUNCIL,http://statistics.data.gov.uk/id/local-authority/00FC,People,Childrens Services,Placement & Support,Other Agencies,Child Care Payments,PJ104,8/12/2014,254778,316,REDACTED PERSONAL INFORMATION,REVENUE,REDACTED PERSONAL INFORMATION
NORTH EAST LINCOLNSHIRE COUNCIL,http://statistics.data.gov.uk/id/local-authority/00FC,People,Childrens Services,Placement & Support,Other Agencies,Child Care Payments,PJ104,8/12/2014,254779,672,REDACTED PERSONAL INFORMATION,REVENUE,REDACTED PERSONAL INFORMATION
NORTH EAST LINCOLNSHIRE COUNCIL,http://statistics.data.gov.uk/id/local-authority/00FC,People,Childrens Services,Placement & Support,Other Agencies,Child Care Payments,PJ104,8/12/2014,254786,652,REDACTED PERSONAL INFORMATION,REVENUE,REDACTED PERSONAL INFORMATION
NORTH EAST LINCOLNSHIRE COUNCIL,http://statistics.data.gov.uk/id/local-authority/00FC,People,Childrens Services,Placement & Support,Other Agencies,Child Care Payments,PJ104,8/12/2014,254787,686.29,REDACTED PERSONAL INFORMATION,REVENUE,REDACTED PERSONAL INFORMATION
NORTH EAST LINCOLNSHIRE COUNCIL,http://statistics.data.gov.uk/id/local-authority/00FC,People,Childrens Services,Placement & Support,Other Agencies,Child Care Payments,PJ104,8/12/2014,254789,316,REDACTED PERSONAL INFORMATION,REVENUE,REDACTED PERSONAL INFORMATION
NORTH EAST LINCOLNSHIRE COUNCIL,http://statistics.data.gov.uk/id/local-authority/00FC,People,Childrens Services,Placement & Support,Other Agencies,Child Care Payments,PJ104,8/12/2014,254790,304,REDACTED PERSONAL INFORMATION,REVENUE,REDACTED PERSONAL INFORMATION
NORTH EAST LINCOLNSHIRE COUNCIL,http://statistics.data.gov.uk/id/local-authority/00FC,People,Childrens Services,Placement & Support,Other Agencies,Child Care Payments,PJ104,8/12/2014,254800,1013,REDACTED PERSONAL INFORMATION,REVENUE,REDACTED PERSONAL INFORMATION
NORTH EAST LINCOLNSHIRE COUNCIL,http://statistics.data.gov.uk/id/local-authority/00FC,People,Childrens Services,Placement & Support,Other Agencies,Child Care Payments,PJ104,8/12/2014,254804,936,REDACTED PERSONAL INFORMATION,REVENUE,REDACTED PERSONAL INFORMATION
NORTH EAST LINCOLNSHIRE COUNCIL,http://statistics.data.gov.uk/id/local-authority/00FC,People,Childrens Services,Placement & Support,Other Agencies,Child Care Payments,PJ104,8/12/2014,254807,632,REDACTED PERSONAL INFORMATION,REVENUE,REDACTED PERSONAL INFORMATION
NORTH EAST LINCOLNSHIRE COUNCIL,http://statistics.data.gov.uk/id/local-authority/00FC,People,Childrens Services,Placement & Support,Other Agencies,Child Care Payments,PJ104,8/12/2014,254808,912,REDACTED PERSONAL INFORMATION,REVENUE,REDACTED PERSONAL INFORMATION
NORTH EAST LINCOLNSHIRE COUNCIL,http://statistics.data.gov.uk/id/local-authority/00FC,People,Childrens Services,Placement & Support,Other Agencies,Child Care Payments,PJ104,8/12/2014,254810,1033,REDACTED PERSONAL INFORMATION,REVENUE,REDACTED PERSONAL INFORMATION
NORTH EAST LINCOLNSHIRE COUNCIL,http://statistics.data.gov.uk/id/local-authority/00FC,People,Childrens Services,Placement & Support,Other Agencies,Child Care Payments,PJ104,8/12/2014,254811,632,REDACTED PERSONAL INFORMATION,REVENUE,REDACTED PERSONAL INFORMATION
NORTH EAST LINCOLNSHIRE COUNCIL,http://statistics.data.gov.uk/id/local-authority/00FC,People,Childrens Services,Placement & Support,Other Agencies,Child Care Payments,PJ104,8/12/2014,254813,316,REDACTED PERSONAL INFORMATION,REVENUE,REDACTED PERSONAL INFORMATION
NORTH EAST LINCOLNSHIRE COUNCIL,http://statistics.data.gov.uk/id/local-authority/00FC,People,Childrens Services,Placement & Support,Other Agencies,Child Care Payments,PJ104,8/12/2014,254815,1033,REDACTED PERSONAL INFORMATION,REVENUE,REDACTED PERSONAL INFORMATION
NORTH EAST LINCOLNSHIRE COUNCIL,http://statistics.data.gov.uk/id/local-authority/00FC,People,Childrens Services,Placement & Support,Other Agencies,Child Care Payments,PJ104,8/12/2014,254820,936,REDACTED PERSONAL INFORMATION,REVENUE,REDACTED PERSONAL INFORMATION
NORTH EAST LINCOLNSHIRE COUNCIL,http://statistics.data.gov.uk/id/local-authority/00FC,People,Childrens Services,Placement & Support,Other Agencies,Child Care Payments,PJ104,8/12/2014,254823,361,REDACTED PERSONAL INFORMATION,REVENUE,REDACTED PERSONAL INFORMATION
NORTH EAST LINCOLNSHIRE COUNCIL,http://statistics.data.gov.uk/id/local-authority/00FC,People,Childrens Services,Placement & Support,Other Agencies,Child Care Payments,PJ104,8/12/2014,254837,620,REDACTED PERSONAL INFORMATION,REVENUE,REDACTED PERSONAL INFORMATION
NORTH EAST LINCOLNSHIRE COUNCIL,http://statistics.data.gov.uk/id/local-authority/00FC,People,Childrens Services,Placement & Support,Other Agencies,Child Care Payments,PJ104,8/12/2014,254846,672,REDACTED PERSONAL INFORMATION,REVENUE,REDACTED PERSONAL INFORMATION
NORTH EAST LINCOLNSHIRE COUNCIL,http://statistics.data.gov.uk/id/local-authority/00FC,People,Childrens Services,Placement & Support,Other Agencies,Child Care Payments,PJ104,8/12/2014,254849,361,REDACTED PERSONAL INFORMATION,REVENUE,REDACTED PERSONAL INFORMATION
NORTH EAST LINCOLNSHIRE COUNCIL,http://statistics.data.gov.uk/id/local-authority/00FC,People,Childrens Services,Placement & Support,Other Agencies,Child Care Payments,PJ104,8/12/2014,254851,922.86,REDACTED PERSONAL INFORMATION,REVENUE,REDACTED PERSONAL INFORMATION
NORTH EAST LINCOLNSHIRE COUNCIL,http://statistics.data.gov.uk/id/local-authority/00FC,People,Childrens Services,Placement & Support,Other Agencies,Child Care Payments,PJ104,8/19/2014,255974,336,REDACTED PERSONAL INFORMATION,REVENUE,REDACTED PERSONAL INFORMATION
NORTH EAST LINCOLNSHIRE COUNCIL,http://statistics.data.gov.uk/id/local-authority/00FC,People,Childrens Services,Placement & Support,Other Agencies,Child Care Payments,PJ104,8/19/2014,255975,316,REDACTED PERSONAL INFORMATION,REVENUE,REDACTED PERSONAL INFORMATION
NORTH EAST LINCOLNSHIRE COUNCIL,http://statistics.data.gov.uk/id/local-authority/00FC,People,Childrens Services,Placement & Support,Other Agencies,Child Care Payments,PJ104,8/19/2014,255980,968,REDACTED PERSONAL INFORMATION,REVENUE,REDACTED PERSONAL INFORMATION
NORTH EAST LINCOLNSHIRE COUNCIL,http://statistics.data.gov.uk/id/local-authority/00FC,People,Childrens Services,Placement & Support,Other Agencies,Child Care Payments,PJ104,8/19/2014,255982,1228,REDACTED PERSONAL INFORMATION,REVENUE,REDACTED PERSONAL INFORMATION
NORTH EAST LINCOLNSHIRE COUNCIL,http://statistics.data.gov.uk/id/local-authority/00FC,People,Childrens Services,Placement & Support,Other Agencies,Child Care Payments,PJ104,8/19/2014,255983,316,REDACTED PERSONAL INFORMATION,REVENUE,REDACTED PERSONAL INFORMATION
NORTH EAST LINCOLNSHIRE COUNCIL,http://statistics.data.gov.uk/id/local-authority/00FC,People,Childrens Services,Placement & Support,Other Agencies,Child Care Payments,PJ104,8/19/2014,255984,672,REDACTED PERSONAL INFORMATION,REVENUE,REDACTED PERSONAL INFORMATION
NORTH EAST LINCOLNSHIRE COUNCIL,http://statistics.data.gov.uk/id/local-authority/00FC,People,Childrens Services,Placement & Support,Other Agencies,Child Care Payments,PJ104,8/19/2014,255992,669.14,REDACTED PERSONAL INFORMATION,REVENUE,REDACTED PERSONAL INFORMATION
NORTH EAST LINCOLNSHIRE COUNCIL,http://statistics.data.gov.uk/id/local-authority/00FC,People,Childrens Services,Placement & Support,Other Agencies,Child Care Payments,PJ104,8/19/2014,255993,697,REDACTED PERSONAL INFORMATION,REVENUE,REDACTED PERSONAL INFORMATION
NORTH EAST LINCOLNSHIRE COUNCIL,http://statistics.data.gov.uk/id/local-authority/00FC,People,Childrens Services,Placement & Support,Other Agencies,Child Care Payments,PJ104,8/19/2014,255995,316,REDACTED PERSONAL INFORMATION,REVENUE,REDACTED PERSONAL INFORMATION
NORTH EAST LINCOLNSHIRE COUNCIL,http://statistics.data.gov.uk/id/local-authority/00FC,People,Childrens Services,Placement & Support,Other Agencies,Child Care Payments,PJ104,8/19/2014,255996,304,REDACTED PERSONAL INFORMATION,REVENUE,REDACTED PERSONAL INFORMATION
NORTH EAST LINCOLNSHIRE COUNCIL,http://statistics.data.gov.uk/id/local-authority/00FC,People,Childrens Services,Placement & Support,Other Agencies,Child Care Payments,PJ104,8/19/2014,256156,640,REDACTED PERSONAL INFORMATION,REVENUE,REDACTED PERSONAL INFORMATION
NORTH EAST LINCOLNSHIRE COUNCIL,http://statistics.data.gov.uk/id/local-authority/00FC,People,Childrens Services,Placement & Support,Other Agencies,Child Care Payments,PJ104,8/19/2014,256159,968,REDACTED PERSONAL INFORMATION,REVENUE,REDACTED PERSONAL INFORMATION
NORTH EAST LINCOLNSHIRE COUNCIL,http://statistics.data.gov.uk/id/local-authority/00FC,People,Childrens Services,Placement & Support,Other Agencies,Child Care Payments,PJ104,8/19/2014,256160,336,REDACTED PERSONAL INFORMATION,REVENUE,REDACTED PERSONAL INFORMATION
NORTH EAST LINCOLNSHIRE COUNCIL,http://statistics.data.gov.uk/id/local-authority/00FC,People,Childrens Services,Placement & Support,Other Agencies,Child Care Payments,PJ104,8/19/2014,256167,608,REDACTED PERSONAL INFORMATION,REVENUE,REDACTED PERSONAL INFORMATION
NORTH EAST LINCOLNSHIRE COUNCIL,http://statistics.data.gov.uk/id/local-authority/00FC,People,Childrens Services,Placement & Support,Other Agencies,Child Care Payments,PJ104,8/19/2014,256004,1013,REDACTED PERSONAL INFORMATION,REVENUE,REDACTED PERSONAL INFORMATION
NORTH EAST LINCOLNSHIRE COUNCIL,http://statistics.data.gov.uk/id/local-authority/00FC,People,Childrens Services,Placement & Support,Other Agencies,Child Care Payments,PJ104,8/19/2014,256009,936,REDACTED PERSONAL INFORMATION,REVENUE,REDACTED PERSONAL INFORMATION
NORTH EAST LINCOLNSHIRE COUNCIL,http://statistics.data.gov.uk/id/local-authority/00FC,People,Childrens Services,Placement & Support,Other Agencies,Child Care Payments,PJ104,8/19/2014,256012,632,REDACTED PERSONAL INFORMATION,REVENUE,REDACTED PERSONAL INFORMATION
NORTH EAST LINCOLNSHIRE COUNCIL,http://statistics.data.gov.uk/id/local-authority/00FC,People,Childrens Services,Placement & Support,Other Agencies,Child Care Payments,PJ104,8/19/2014,256013,912,REDACTED PERSONAL INFORMATION,REVENUE,REDACTED PERSONAL INFORMATION
NORTH EAST LINCOLNSHIRE COUNCIL,http://statistics.data.gov.uk/id/local-authority/00FC,People,Childrens Services,Placement & Support,Other Agencies,Child Care Payments,PJ104,8/19/2014,256015,1033,REDACTED PERSONAL INFORMATION,REVENUE,REDACTED PERSONAL INFORMATION
NORTH EAST LINCOLNSHIRE COUNCIL,http://statistics.data.gov.uk/id/local-authority/00FC,People,Childrens Services,Placement & Support,Other Agencies,Child Care Payments,PJ104,8/19/2014,256016,632,REDACTED PERSONAL INFORMATION,REVENUE,REDACTED PERSONAL INFORMATION
NORTH EAST LINCOLNSHIRE COUNCIL,http://statistics.data.gov.uk/id/local-authority/00FC,People,Childrens Services,Placement & Support,Other Agencies,Child Care Payments,PJ104,8/19/2014,256018,316,REDACTED PERSONAL INFORMATION,REVENUE,REDACTED PERSONAL INFORMATION
NORTH EAST LINCOLNSHIRE COUNCIL,http://statistics.data.gov.uk/id/local-authority/00FC,People,Childrens Services,Placement & Support,Other Agencies,Child Care Payments,PJ104,8/19/2014,256020,1033,REDACTED PERSONAL INFORMATION,REVENUE,REDACTED PERSONAL INFORMATION
NORTH EAST LINCOLNSHIRE COUNCIL,http://statistics.data.gov.uk/id/local-authority/00FC,People,Childrens Services,Placement & Support,Other Agencies,Child Care Payments,PJ104,8/19/2014,256172,936,REDACTED PERSONAL INFORMATION,REVENUE,REDACTED PERSONAL INFORMATION
NORTH EAST LINCOLNSHIRE COUNCIL,http://statistics.data.gov.uk/id/local-authority/00FC,People,Childrens Services,Placement & Support,Other Agencies,Child Care Payments,PJ104,8/19/2014,256181,608,REDACTED PERSONAL INFORMATION,REVENUE,REDACTED PERSONAL INFORMATION
NORTH EAST LINCOLNSHIRE COUNCIL,http://statistics.data.gov.uk/id/local-authority/00FC,People,Childrens Services,Placement & Support,Other Agencies,Child Care Payments,PJ104,8/19/2014,256025,936,REDACTED PERSONAL INFORMATION,REVENUE,REDACTED PERSONAL INFORMATION
NORTH EAST LINCOLNSHIRE COUNCIL,http://statistics.data.gov.uk/id/local-authority/00FC,People,Childrens Services,Placement & Support,Other Agencies,Child Care Payments,PJ104,8/19/2014,256028,309.43,REDACTED PERSONAL INFORMATION,REVENUE,REDACTED PERSONAL INFORMATION
NORTH EAST LINCOLNSHIRE COUNCIL,http://statistics.data.gov.uk/id/local-authority/00FC,People,Childrens Services,Placement & Support,Other Agencies,Child Care Payments,PJ104,8/19/2014,256041,620,REDACTED PERSONAL INFORMATION,REVENUE,REDACTED PERSONAL INFORMATION
NORTH EAST LINCOLNSHIRE COUNCIL,http://statistics.data.gov.uk/id/local-authority/00FC,People,Childrens Services,Placement & Support,Other Agencies,Child Care Payments,PJ104,8/19/2014,256050,672,REDACTED PERSONAL INFORMATION,REVENUE,REDACTED PERSONAL INFORMATION
NORTH EAST LINCOLNSHIRE COUNCIL,http://statistics.data.gov.uk/id/local-authority/00FC,People,Childrens Services,Placement & Support,Other Agencies,Child Care Payments,PJ104,8/19/2014,256053,361,REDACTED PERSONAL INFORMATION,REVENUE,REDACTED PERSONAL INFORMATION
NORTH EAST LINCOLNSHIRE COUNCIL,http://statistics.data.gov.uk/id/local-authority/00FC,People,Childrens Services,Placement & Support,Other Agencies,Child Care Payments,PJ104,8/19/2014,256055,968,REDACTED PERSONAL INFORMATION,REVENUE,REDACTED PERSONAL INFORMATION
NORTH EAST LINCOLNSHIRE COUNCIL,http://statistics.data.gov.uk/id/local-authority/00FC,People,Childrens Services,Placement & Support,Other Agencies,Child Care Payments,PJ104,8/19/2014,256058,640,REDACTED PERSONAL INFORMATION,REVENUE,REDACTED PERSONAL INFORMATION
NORTH EAST LINCOLNSHIRE COUNCIL,http://statistics.data.gov.uk/id/local-authority/00FC,People,Childrens Services,Placement & Support,Other Agencies,Child Care Payments,PJ104,8/19/2014,256062,944,REDACTED PERSONAL INFORMATION,REVENUE,REDACTED PERSONAL INFORMATION
NORTH EAST LINCOLNSHIRE COUNCIL,http://statistics.data.gov.uk/id/local-authority/00FC,People,Childrens Services,Placement & Support,Other Agencies,Child Care Payments,PJ104,8/19/2014,256064,316,REDACTED PERSONAL INFORMATION,REVENUE,REDACTED PERSONAL INFORMATION
NORTH EAST LINCOLNSHIRE COUNCIL,http://statistics.data.gov.uk/id/local-authority/00FC,People,Childrens Services,Placement & Support,Other Agencies,Child Care Payments,PJ104,8/19/2014,256070,608,REDACTED PERSONAL INFORMATION,REVENUE,REDACTED PERSONAL INFORMATION
NORTH EAST LINCOLNSHIRE COUNCIL,http://statistics.data.gov.uk/id/local-authority/00FC,People,Childrens Services,Placement & Support,Other Agencies,Child Care Payments,PJ104,8/19/2014,256075,672,REDACTED PERSONAL INFORMATION,REVENUE,REDACTED PERSONAL INFORMATION
NORTH EAST LINCOLNSHIRE COUNCIL,http://statistics.data.gov.uk/id/local-authority/00FC,People,Childrens Services,Placement & Support,Other Agencies,Child Care Payments,PJ104,8/19/2014,256080,632,REDACTED PERSONAL INFORMATION,REVENUE,REDACTED PERSONAL INFORMATION
NORTH EAST LINCOLNSHIRE COUNCIL,http://statistics.data.gov.uk/id/local-authority/00FC,People,Childrens Services,Placement & Support,Other Agencies,Child Care Payments,PJ104,8/19/2014,256089,620,REDACTED PERSONAL INFORMATION,REVENUE,REDACTED PERSONAL INFORMATION
NORTH EAST LINCOLNSHIRE COUNCIL,http://statistics.data.gov.uk/id/local-authority/00FC,People,Childrens Services,Placement & Support,Other Agencies,Child Care Payments,PJ104,8/19/2014,256100,620,REDACTED PERSONAL INFORMATION,REVENUE,REDACTED PERSONAL INFORMATION
NORTH EAST LINCOLNSHIRE COUNCIL,http://statistics.data.gov.uk/id/local-authority/00FC,People,Childrens Services,Placement & Support,Other Agencies,Child Care Payments,PJ104,8/19/2014,256105,936,REDACTED PERSONAL INFORMATION,REVENUE,REDACTED PERSONAL INFORMATION
NORTH EAST LINCOLNSHIRE COUNCIL,http://statistics.data.gov.uk/id/local-authority/00FC,People,Childrens Services,Placement & Support,Other Agencies,Child Care Payments,PJ104,8/19/2014,256111,620,REDACTED PERSONAL INFORMATION,REVENUE,REDACTED PERSONAL INFORMATION
NORTH EAST LINCOLNSHIRE COUNCIL,http://statistics.data.gov.uk/id/local-authority/00FC,People,Childrens Services,Placement & Support,Other Agencies,Child Care Payments,PJ104,8/19/2014,255963,316,REDACTED PERSONAL INFORMATION,REVENUE,REDACTED PERSONAL INFORMATION
NORTH EAST LINCOLNSHIRE COUNCIL,http://statistics.data.gov.uk/id/local-authority/00FC,People,Childrens Services,Placement & Support,Other Agencies,Child Care Payments,PJ104,8/19/2014,255967,336,REDACTED PERSONAL INFORMATION,REVENUE,REDACTED PERSONAL INFORMATION
NORTH EAST LINCOLNSHIRE COUNCIL,http://statistics.data.gov.uk/id/local-authority/00FC,People,Childrens Services,Placement & Support,Other Agencies,Child Care Payments,PJ104,8/19/2014,255970,632,REDACTED PERSONAL INFORMATION,REVENUE,REDACTED PERSONAL INFORMATION
NORTH EAST LINCOLNSHIRE COUNCIL,http://statistics.data.gov.uk/id/local-authority/00FC,People,Childrens Services,Placement & Support,Other Agencies,Child Care Payments,PJ104,8/19/2014,255971,336,REDACTED PERSONAL INFORMATION,REVENUE,REDACTED PERSONAL INFORMATION
NORTH EAST LINCOLNSHIRE COUNCIL,http://statistics.data.gov.uk/id/local-authority/00FC,People,Childrens Services,Placement & Support,Other Agencies,Child Care Payments,PJ104,8/19/2014,255972,1013,REDACTED PERSONAL INFORMATION,REVENUE,REDACTED PERSONAL INFORMATION
NORTH EAST LINCOLNSHIRE COUNCIL,http://statistics.data.gov.uk/id/local-authority/00FC,People,Childrens Services,Placement & Support,Other Agencies,Child Care Payments,PJ104,8/19/2014,256125,316,REDACTED PERSONAL INFORMATION,REVENUE,REDACTED PERSONAL INFORMATION
NORTH EAST LINCOLNSHIRE COUNCIL,http://statistics.data.gov.uk/id/local-authority/00FC,People,Childrens Services,Placement & Support,Other Agencies,Child Care Payments,PJ104,8/22/2014,257311,936,REDACTED PERSONAL INFORMATION,REVENUE,REDACTED PERSONAL INFORMATION
NORTH EAST LINCOLNSHIRE COUNCIL,http://statistics.data.gov.uk/id/local-authority/00FC,People,Childrens Services,Placement & Support,Other Agencies,Child Care Payments,PJ104,8/22/2014,257318,620,REDACTED PERSONAL INFORMATION,REVENUE,REDACTED PERSONAL INFORMATION
NORTH EAST LINCOLNSHIRE COUNCIL,http://statistics.data.gov.uk/id/local-authority/00FC,People,Childrens Services,Placement & Support,Other Agencies,Child Care Payments,PJ104,8/22/2014,257334,316,REDACTED PERSONAL INFORMATION,REVENUE,REDACTED PERSONAL INFORMATION
NORTH EAST LINCOLNSHIRE COUNCIL,http://statistics.data.gov.uk/id/local-authority/00FC,People,Childrens Services,Placement & Support,Other Agencies,Child Care Payments,PJ104,8/22/2014,257367,640,REDACTED PERSONAL INFORMATION,REVENUE,REDACTED PERSONAL INFORMATION
NORTH EAST LINCOLNSHIRE COUNCIL,http://statistics.data.gov.uk/id/local-authority/00FC,People,Childrens Services,Placement & Support,Other Agencies,Child Care Payments,PJ104,8/22/2014,257370,968,REDACTED PERSONAL INFORMATION,REVENUE,REDACTED PERSONAL INFORMATION
NORTH EAST LINCOLNSHIRE COUNCIL,http://statistics.data.gov.uk/id/local-authority/00FC,People,Childrens Services,Placement & Support,Other Agencies,Child Care Payments,PJ104,8/22/2014,257371,336,REDACTED PERSONAL INFORMATION,REVENUE,REDACTED PERSONAL INFORMATION
NORTH EAST LINCOLNSHIRE COUNCIL,http://statistics.data.gov.uk/id/local-authority/00FC,People,Childrens Services,Placement & Support,Other Agencies,Child Care Payments,PJ104,8/22/2014,257381,304,REDACTED PERSONAL INFORMATION,REVENUE,REDACTED PERSONAL INFORMATION
NORTH EAST LINCOLNSHIRE COUNCIL,http://statistics.data.gov.uk/id/local-authority/00FC,People,Childrens Services,Placement & Support,Other Agencies,Child Care Payments,PJ104,8/22/2014,257381,304,REDACTED PERSONAL INFORMATION,REVENUE,REDACTED PERSONAL INFORMATION
NORTH EAST LINCOLNSHIRE COUNCIL,http://statistics.data.gov.uk/id/local-authority/00FC,People,Childrens Services,Placement & Support,Other Agencies,Child Care Payments,PJ104,8/22/2014,257386,936,REDACTED PERSONAL INFORMATION,REVENUE,REDACTED PERSONAL INFORMATION
NORTH EAST LINCOLNSHIRE COUNCIL,http://statistics.data.gov.uk/id/local-authority/00FC,People,Childrens Services,Placement & Support,Other Agencies,Child Care Payments,PJ104,8/22/2014,257396,608,REDACTED PERSONAL INFORMATION,REVENUE,REDACTED PERSONAL INFORMATION
NORTH EAST LINCOLNSHIRE COUNCIL,http://statistics.data.gov.uk/id/local-authority/00FC,People,Childrens Services,Placement & Support,Other Agencies,Child Care Payments,PJ104,8/22/2014,257166,316,REDACTED PERSONAL INFORMATION,REVENUE,REDACTED PERSONAL INFORMATION
NORTH EAST LINCOLNSHIRE COUNCIL,http://statistics.data.gov.uk/id/local-authority/00FC,People,Childrens Services,Placement & Support,Other Agencies,Child Care Payments,PJ104,8/22/2014,257170,336,REDACTED PERSONAL INFORMATION,REVENUE,REDACTED PERSONAL INFORMATION
NORTH EAST LINCOLNSHIRE COUNCIL,http://statistics.data.gov.uk/id/local-authority/00FC,People,Childrens Services,Placement & Support,Other Agencies,Child Care Payments,PJ104,8/22/2014,257173,632,REDACTED PERSONAL INFORMATION,REVENUE,REDACTED PERSONAL INFORMATION
NORTH EAST LINCOLNSHIRE COUNCIL,http://statistics.data.gov.uk/id/local-authority/00FC,People,Childrens Services,Placement & Support,Other Agencies,Child Care Payments,PJ104,8/22/2014,257174,1008,REDACTED PERSONAL INFORMATION,REVENUE,REDACTED PERSONAL INFORMATION
NORTH EAST LINCOLNSHIRE COUNCIL,http://statistics.data.gov.uk/id/local-authority/00FC,People,Childrens Services,Placement & Support,Other Agencies,Child Care Payments,PJ104,8/22/2014,257175,1013,REDACTED PERSONAL INFORMATION,REVENUE,REDACTED PERSONAL INFORMATION
NORTH EAST LINCOLNSHIRE COUNCIL,http://statistics.data.gov.uk/id/local-authority/00FC,People,Childrens Services,Placement & Support,Other Agencies,Child Care Payments,PJ104,8/22/2014,257177,336,REDACTED PERSONAL INFORMATION,REVENUE,REDACTED PERSONAL INFORMATION
NORTH EAST LINCOLNSHIRE COUNCIL,http://statistics.data.gov.uk/id/local-authority/00FC,People,Childrens Services,Placement & Support,Other Agencies,Child Care Payments,PJ104,8/22/2014,257178,316,REDACTED PERSONAL INFORMATION,REVENUE,REDACTED PERSONAL INFORMATION
NORTH EAST LINCOLNSHIRE COUNCIL,http://statistics.data.gov.uk/id/local-authority/00FC,People,Childrens Services,Placement & Support,Other Agencies,Child Care Payments,PJ104,8/22/2014,257182,270.86,REDACTED PERSONAL INFORMATION,REVENUE,REDACTED PERSONAL INFORMATION
NORTH EAST LINCOLNSHIRE COUNCIL,http://statistics.data.gov.uk/id/local-authority/00FC,People,Childrens Services,Placement & Support,Other Agencies,Child Care Payments,PJ104,8/22/2014,257183,968,REDACTED PERSONAL INFORMATION,REVENUE,REDACTED PERSONAL INFORMATION
NORTH EAST LINCOLNSHIRE COUNCIL,http://statistics.data.gov.uk/id/local-authority/00FC,People,Childrens Services,Placement & Support,Other Agencies,Child Care Payments,PJ104,8/22/2014,257185,924,REDACTED PERSONAL INFORMATION,REVENUE,REDACTED PERSONAL INFORMATION
NORTH EAST LINCOLNSHIRE COUNCIL,http://statistics.data.gov.uk/id/local-authority/00FC,People,Childrens Services,Placement & Support,Other Agencies,Child Care Payments,PJ104,8/22/2014,257186,316,REDACTED PERSONAL INFORMATION,REVENUE,REDACTED PERSONAL INFORMATION
NORTH EAST LINCOLNSHIRE COUNCIL,http://statistics.data.gov.uk/id/local-authority/00FC,People,Childrens Services,Placement & Support,Other Agencies,Child Care Payments,PJ104,8/22/2014,257187,672,REDACTED PERSONAL INFORMATION,REVENUE,REDACTED PERSONAL INFORMATION
NORTH EAST LINCOLNSHIRE COUNCIL,http://statistics.data.gov.uk/id/local-authority/00FC,People,Childrens Services,Placement & Support,Other Agencies,Child Care Payments,PJ104,8/22/2014,257195,672,REDACTED PERSONAL INFORMATION,REVENUE,REDACTED PERSONAL INFORMATION
NORTH EAST LINCOLNSHIRE COUNCIL,http://statistics.data.gov.uk/id/local-authority/00FC,People,Childrens Services,Placement & Support,Other Agencies,Child Care Payments,PJ104,8/22/2014,257196,697,REDACTED PERSONAL INFORMATION,REVENUE,REDACTED PERSONAL INFORMATION
NORTH EAST LINCOLNSHIRE COUNCIL,http://statistics.data.gov.uk/id/local-authority/00FC,People,Childrens Services,Placement & Support,Other Agencies,Child Care Payments,PJ104,8/22/2014,257198,316,REDACTED PERSONAL INFORMATION,REVENUE,REDACTED PERSONAL INFORMATION
NORTH EAST LINCOLNSHIRE COUNCIL,http://statistics.data.gov.uk/id/local-authority/00FC,People,Childrens Services,Placement & Support,Other Agencies,Child Care Payments,PJ104,8/22/2014,257199,304,REDACTED PERSONAL INFORMATION,REVENUE,REDACTED PERSONAL INFORMATION
NORTH EAST LINCOLNSHIRE COUNCIL,http://statistics.data.gov.uk/id/local-authority/00FC,People,Childrens Services,Placement & Support,Other Agencies,Child Care Payments,PJ104,8/22/2014,257208,1013,REDACTED PERSONAL INFORMATION,REVENUE,REDACTED PERSONAL INFORMATION
NORTH EAST LINCOLNSHIRE COUNCIL,http://statistics.data.gov.uk/id/local-authority/00FC,People,Childrens Services,Placement & Support,Other Agencies,Child Care Payments,PJ104,8/22/2014,257213,936,REDACTED PERSONAL INFORMATION,REVENUE,REDACTED PERSONAL INFORMATION
NORTH EAST LINCOLNSHIRE COUNCIL,http://statistics.data.gov.uk/id/local-authority/00FC,People,Childrens Services,Placement & Support,Other Agencies,Child Care Payments,PJ104,8/22/2014,257216,1934.86,REDACTED PERSONAL INFORMATION,REVENUE,REDACTED PERSONAL INFORMATION
NORTH EAST LINCOLNSHIRE COUNCIL,http://statistics.data.gov.uk/id/local-authority/00FC,People,Childrens Services,Placement & Support,Other Agencies,Child Care Payments,PJ104,8/22/2014,257217,912,REDACTED PERSONAL INFORMATION,REVENUE,REDACTED PERSONAL INFORMATION
NORTH EAST LINCOLNSHIRE COUNCIL,http://statistics.data.gov.uk/id/local-authority/00FC,People,Childrens Services,Placement & Support,Other Agencies,Child Care Payments,PJ104,8/22/2014,257219,1033,REDACTED PERSONAL INFORMATION,REVENUE,REDACTED PERSONAL INFORMATION
NORTH EAST LINCOLNSHIRE COUNCIL,http://statistics.data.gov.uk/id/local-authority/00FC,People,Childrens Services,Placement & Support,Other Agencies,Child Care Payments,PJ104,8/22/2014,257220,632,REDACTED PERSONAL INFORMATION,REVENUE,REDACTED PERSONAL INFORMATION
NORTH EAST LINCOLNSHIRE COUNCIL,http://statistics.data.gov.uk/id/local-authority/00FC,People,Childrens Services,Placement & Support,Other Agencies,Child Care Payments,PJ104,8/22/2014,257222,316,REDACTED PERSONAL INFORMATION,REVENUE,REDACTED PERSONAL INFORMATION
NORTH EAST LINCOLNSHIRE COUNCIL,http://statistics.data.gov.uk/id/local-authority/00FC,People,Childrens Services,Placement & Support,Other Agencies,Child Care Payments,PJ104,8/22/2014,257224,1033,REDACTED PERSONAL INFORMATION,REVENUE,REDACTED PERSONAL INFORMATION
NORTH EAST LINCOLNSHIRE COUNCIL,http://statistics.data.gov.uk/id/local-authority/00FC,People,Childrens Services,Placement & Support,Other Agencies,Child Care Payments,PJ104,8/22/2014,257229,936,REDACTED PERSONAL INFORMATION,REVENUE,REDACTED PERSONAL INFORMATION
NORTH EAST LINCOLNSHIRE COUNCIL,http://statistics.data.gov.uk/id/local-authority/00FC,People,Childrens Services,Placement & Support,Other Agencies,Child Care Payments,PJ104,8/22/2014,257232,390.85,REDACTED PERSONAL INFORMATION,REVENUE,REDACTED PERSONAL INFORMATION
NORTH EAST LINCOLNSHIRE COUNCIL,http://statistics.data.gov.uk/id/local-authority/00FC,People,Childrens Services,Placement & Support,Other Agencies,Child Care Payments,PJ104,8/22/2014,257244,620,REDACTED PERSONAL INFORMATION,REVENUE,REDACTED PERSONAL INFORMATION
NORTH EAST LINCOLNSHIRE COUNCIL,http://statistics.data.gov.uk/id/local-authority/00FC,People,Childrens Services,Placement & Support,Other Agencies,Child Care Payments,PJ104,8/22/2014,257253,672,REDACTED PERSONAL INFORMATION,REVENUE,REDACTED PERSONAL INFORMATION
NORTH EAST LINCOLNSHIRE COUNCIL,http://statistics.data.gov.uk/id/local-authority/00FC,People,Childrens Services,Placement & Support,Other Agencies,Child Care Payments,PJ104,8/22/2014,257256,361,REDACTED PERSONAL INFORMATION,REVENUE,REDACTED PERSONAL INFORMATION
NORTH EAST LINCOLNSHIRE COUNCIL,http://statistics.data.gov.uk/id/local-authority/00FC,People,Childrens Services,Placement & Support,Other Agencies,Child Care Payments,PJ104,8/22/2014,257258,968,REDACTED PERSONAL INFORMATION,REVENUE,REDACTED PERSONAL INFORMATION
NORTH EAST LINCOLNSHIRE COUNCIL,http://statistics.data.gov.uk/id/local-authority/00FC,People,Childrens Services,Placement & Support,Other Agencies,Child Care Payments,PJ104,8/22/2014,257261,640,REDACTED PERSONAL INFORMATION,REVENUE,REDACTED PERSONAL INFORMATION
NORTH EAST LINCOLNSHIRE COUNCIL,http://statistics.data.gov.uk/id/local-authority/00FC,People,Childrens Services,Placement & Support,Other Agencies,Child Care Payments,PJ104,8/22/2014,257265,944,REDACTED PERSONAL INFORMATION,REVENUE,REDACTED PERSONAL INFORMATION
NORTH EAST LINCOLNSHIRE COUNCIL,http://statistics.data.gov.uk/id/local-authority/00FC,People,Childrens Services,Placement & Support,Other Agencies,Child Care Payments,PJ104,8/22/2014,257268,316,REDACTED PERSONAL INFORMATION,REVENUE,REDACTED PERSONAL INFORMATION
NORTH EAST LINCOLNSHIRE COUNCIL,http://statistics.data.gov.uk/id/local-authority/00FC,People,Childrens Services,Placement & Support,Other Agencies,Child Care Payments,PJ104,8/22/2014,257274,608,REDACTED PERSONAL INFORMATION,REVENUE,REDACTED PERSONAL INFORMATION
NORTH EAST LINCOLNSHIRE COUNCIL,http://statistics.data.gov.uk/id/local-authority/00FC,People,Childrens Services,Placement & Support,Other Agencies,Child Care Payments,PJ104,8/22/2014,257279,672,REDACTED PERSONAL INFORMATION,REVENUE,REDACTED PERSONAL INFORMATION
NORTH EAST LINCOLNSHIRE COUNCIL,http://statistics.data.gov.uk/id/local-authority/00FC,People,Childrens Services,Placement & Support,Other Agencies,Child Care Payments,PJ104,8/22/2014,257284,632,REDACTED PERSONAL INFORMATION,REVENUE,REDACTED PERSONAL INFORMATION
NORTH EAST LINCOLNSHIRE COUNCIL,http://statistics.data.gov.uk/id/local-authority/00FC,People,Childrens Services,Placement & Support,Other Agencies,Child Care Payments,PJ104,8/22/2014,257294,620,REDACTED PERSONAL INFORMATION,REVENUE,REDACTED PERSONAL INFORMATION
NORTH EAST LINCOLNSHIRE COUNCIL,http://statistics.data.gov.uk/id/local-authority/00FC,People,Childrens Services,Placement & Support,Other Agencies,Child Care Payments,PJ104,8/22/2014,257305,620,REDACTED PERSONAL INFORMATION,REVENUE,REDACTED PERSONAL INFORMATION
NORTH EAST LINCOLNSHIRE COUNCIL,http://statistics.data.gov.uk/id/local-authority/00FC,People,Childrens Services,Placement & Support,Other Agencies,Child Care Payments,PJ104,8/5/2014,252366,256,REDACTED PERSONAL INFORMATION,REVENUE,REDACTED PERSONAL INFORMATION
NORTH EAST LINCOLNSHIRE COUNCIL,http://statistics.data.gov.uk/id/local-authority/00FC,People,Childrens Services,Placement & Support,Other Agencies,Child Care Payments,PJ104,8/5/2014,252370,2681.14,REDACTED PERSONAL INFORMATION,REVENUE,REDACTED PERSONAL INFORMATION
NORTH EAST LINCOLNSHIRE COUNCIL,http://statistics.data.gov.uk/id/local-authority/00FC,People,Childrens Services,Placement & Support,Other Agencies,Child Care Payments,PJ104,8/5/2014,252134,333,REDACTED PERSONAL INFORMATION,REVENUE,REDACTED PERSONAL INFORMATION
NORTH EAST LINCOLNSHIRE COUNCIL,http://statistics.data.gov.uk/id/local-authority/00FC,People,Childrens Services,Placement & Support,Other Agencies,Child Care Payments,PJ104,8/5/2014,252379,497.72,REDACTED PERSONAL INFORMATION,REVENUE,REDACTED PERSONAL INFORMATION
NORTH EAST LINCOLNSHIRE COUNCIL,http://statistics.data.gov.uk/id/local-authority/00FC,People,Childrens Services,Placement & Support,Other Agencies,Child Care Payments,PJ104,8/5/2014,252153,308,REDACTED PERSONAL INFORMATION,REVENUE,REDACTED PERSONAL INFORMATION
NORTH EAST LINCOLNSHIRE COUNCIL,http://statistics.data.gov.uk/id/local-authority/00FC,People,Childrens Services,Placement & Support,Other Agencies,Child Care Payments,PJ104,8/5/2014,252169,268,REDACTED PERSONAL INFORMATION,REVENUE,REDACTED PERSONAL INFORMATION
NORTH EAST LINCOLNSHIRE COUNCIL,http://statistics.data.gov.uk/id/local-authority/00FC,People,Childrens Services,Placement & Support,Other Agencies,Child Care Payments,PJ104,8/5/2014,252179,358,REDACTED PERSONAL INFORMATION,REVENUE,REDACTED PERSONAL INFORMATION
NORTH EAST LINCOLNSHIRE COUNCIL,http://statistics.data.gov.uk/id/local-authority/00FC,People,Childrens Services,Placement & Support,Other Agencies,Child Care Payments,PJ104,8/5/2014,252182,268,REDACTED PERSONAL INFORMATION,REVENUE,REDACTED PERSONAL INFORMATION
NORTH EAST LINCOLNSHIRE COUNCIL,http://statistics.data.gov.uk/id/local-authority/00FC,People,Childrens Services,Placement & Support,Other Agencies,Child Care Payments,PJ104,8/5/2014,252214,366,REDACTED PERSONAL INFORMATION,REVENUE,REDACTED PERSONAL INFORMATION
NORTH EAST LINCOLNSHIRE COUNCIL,http://statistics.data.gov.uk/id/local-authority/00FC,People,Childrens Services,Placement & Support,Other Agencies,Child Care Payments,PJ104,8/5/2014,252223,268,REDACTED PERSONAL INFORMATION,REVENUE,REDACTED PERSONAL INFORMATION
NORTH EAST LINCOLNSHIRE COUNCIL,http://statistics.data.gov.uk/id/local-authority/00FC,People,Childrens Services,Placement & Support,Other Agencies,Child Care Payments,PJ104,8/5/2014,252244,268,REDACTED PERSONAL INFORMATION,REVENUE,REDACTED PERSONAL INFORMATION
NORTH EAST LINCOLNSHIRE COUNCIL,http://statistics.data.gov.uk/id/local-authority/00FC,People,Childrens Services,Placement & Support,Other Agencies,Child Care Payments,PJ104,8/5/2014,252267,366,REDACTED PERSONAL INFORMATION,REVENUE,REDACTED PERSONAL INFORMATION
NORTH EAST LINCOLNSHIRE COUNCIL,http://statistics.data.gov.uk/id/local-authority/00FC,People,Childrens Services,Placement & Support,Other Agencies,Child Care Payments,PJ104,8/5/2014,252276,366,REDACTED PERSONAL INFORMATION,REVENUE,REDACTED PERSONAL INFORMATION
NORTH EAST LINCOLNSHIRE COUNCIL,http://statistics.data.gov.uk/id/local-authority/00FC,People,Childrens Services,Placement & Support,Other Agencies,Child Care Payments,PJ104,8/5/2014,252279,268,REDACTED PERSONAL INFORMATION,REVENUE,REDACTED PERSONAL INFORMATION
NORTH EAST LINCOLNSHIRE COUNCIL,http://statistics.data.gov.uk/id/local-authority/00FC,People,Childrens Services,Placement & Support,Other Agencies,Child Care Payments,PJ104,8/5/2014,252309,422,REDACTED PERSONAL INFORMATION,REVENUE,REDACTED PERSONAL INFORMATION
NORTH EAST LINCOLNSHIRE COUNCIL,http://statistics.data.gov.uk/id/local-authority/00FC,People,Childrens Services,Placement & Support,Other Agencies,Child Care Payments,PJ104,8/5/2014,252324,378,REDACTED PERSONAL INFORMATION,REVENUE,REDACTED PERSONAL INFORMATION
NORTH EAST LINCOLNSHIRE COUNCIL,http://statistics.data.gov.uk/id/local-authority/00FC,People,Childrens Services,Placement & Support,Other Agencies,Child Care Payments,PJ104,8/12/2014,254871,268,REDACTED PERSONAL INFORMATION,REVENUE,REDACTED PERSONAL INFORMATION
NORTH EAST LINCOLNSHIRE COUNCIL,http://statistics.data.gov.uk/id/local-authority/00FC,People,Childrens Services,Placement & Support,Other Agencies,Child Care Payments,PJ104,8/12/2014,254896,366,REDACTED PERSONAL INFORMATION,REVENUE,REDACTED PERSONAL INFORMATION
NORTH EAST LINCOLNSHIRE COUNCIL,http://statistics.data.gov.uk/id/local-authority/00FC,People,Childrens Services,Placement & Support,Other Agencies,Child Care Payments,PJ104,8/12/2014,254905,366,REDACTED PERSONAL INFORMATION,REVENUE,REDACTED PERSONAL INFORMATION
NORTH EAST LINCOLNSHIRE COUNCIL,http://statistics.data.gov.uk/id/local-authority/00FC,People,Childrens Services,Placement & Support,Other Agencies,Child Care Payments,PJ104,8/12/2014,254908,268,REDACTED PERSONAL INFORMATION,REVENUE,REDACTED PERSONAL INFORMATION
NORTH EAST LINCOLNSHIRE COUNCIL,http://statistics.data.gov.uk/id/local-authority/00FC,People,Childrens Services,Placement & Support,Other Agencies,Child Care Payments,PJ104,8/12/2014,254938,422,REDACTED PERSONAL INFORMATION,REVENUE,REDACTED PERSONAL INFORMATION
NORTH EAST LINCOLNSHIRE COUNCIL,http://statistics.data.gov.uk/id/local-authority/00FC,People,Childrens Services,Placement & Support,Other Agencies,Child Care Payments,PJ104,8/12/2014,254953,378,REDACTED PERSONAL INFORMATION,REVENUE,REDACTED PERSONAL INFORMATION
NORTH EAST LINCOLNSHIRE COUNCIL,http://statistics.data.gov.uk/id/local-authority/00FC,People,Childrens Services,Placement & Support,Other Agencies,Child Care Payments,PJ104,8/12/2014,254995,256,REDACTED PERSONAL INFORMATION,REVENUE,REDACTED PERSONAL INFORMATION
NORTH EAST LINCOLNSHIRE COUNCIL,http://statistics.data.gov.uk/id/local-authority/00FC,People,Childrens Services,Placement & Support,Other Agencies,Child Care Payments,PJ104,8/12/2014,254999,276,REDACTED PERSONAL INFORMATION,REVENUE,REDACTED PERSONAL INFORMATION
NORTH EAST LINCOLNSHIRE COUNCIL,http://statistics.data.gov.uk/id/local-authority/00FC,People,Childrens Services,Placement & Support,Other Agencies,Child Care Payments,PJ104,8/12/2014,254763,333,REDACTED PERSONAL INFORMATION,REVENUE,REDACTED PERSONAL INFORMATION
NORTH EAST LINCOLNSHIRE COUNCIL,http://statistics.data.gov.uk/id/local-authority/00FC,People,Childrens Services,Placement & Support,Other Agencies,Child Care Payments,PJ104,8/12/2014,254778,592.57,REDACTED PERSONAL INFORMATION,REVENUE,REDACTED PERSONAL INFORMATION
NORTH EAST LINCOLNSHIRE COUNCIL,http://statistics.data.gov.uk/id/local-authority/00FC,People,Childrens Services,Placement & Support,Other Agencies,Child Care Payments,PJ104,8/12/2014,254782,308,REDACTED PERSONAL INFORMATION,REVENUE,REDACTED PERSONAL INFORMATION
NORTH EAST LINCOLNSHIRE COUNCIL,http://statistics.data.gov.uk/id/local-authority/00FC,People,Childrens Services,Placement & Support,Other Agencies,Child Care Payments,PJ104,8/12/2014,255008,268,REDACTED PERSONAL INFORMATION,REVENUE,REDACTED PERSONAL INFORMATION
NORTH EAST LINCOLNSHIRE COUNCIL,http://statistics.data.gov.uk/id/local-authority/00FC,People,Childrens Services,Placement & Support,Other Agencies,Child Care Payments,PJ104,8/12/2014,254796,268,REDACTED PERSONAL INFORMATION,REVENUE,REDACTED PERSONAL INFORMATION
NORTH EAST LINCOLNSHIRE COUNCIL,http://statistics.data.gov.uk/id/local-authority/00FC,People,Childrens Services,Placement & Support,Other Agencies,Child Care Payments,PJ104,8/12/2014,254806,358,REDACTED PERSONAL INFORMATION,REVENUE,REDACTED PERSONAL INFORMATION
NORTH EAST LINCOLNSHIRE COUNCIL,http://statistics.data.gov.uk/id/local-authority/00FC,People,Childrens Services,Placement & Support,Other Agencies,Child Care Payments,PJ104,8/12/2014,254809,268,REDACTED PERSONAL INFORMATION,REVENUE,REDACTED PERSONAL INFORMATION
NORTH EAST LINCOLNSHIRE COUNCIL,http://statistics.data.gov.uk/id/local-authority/00FC,People,Childrens Services,Placement & Support,Other Agencies,Child Care Payments,PJ104,8/12/2014,254841,366,REDACTED PERSONAL INFORMATION,REVENUE,REDACTED PERSONAL INFORMATION
NORTH EAST LINCOLNSHIRE COUNCIL,http://statistics.data.gov.uk/id/local-authority/00FC,People,Childrens Services,Placement & Support,Other Agencies,Child Care Payments,PJ104,8/12/2014,254850,268,REDACTED PERSONAL INFORMATION,REVENUE,REDACTED PERSONAL INFORMATION
NORTH EAST LINCOLNSHIRE COUNCIL,http://statistics.data.gov.uk/id/local-authority/00FC,People,Childrens Services,Placement & Support,Other Agencies,Child Care Payments,PJ104,8/19/2014,255987,308,REDACTED PERSONAL INFORMATION,REVENUE,REDACTED PERSONAL INFORMATION
NORTH EAST LINCOLNSHIRE COUNCIL,http://statistics.data.gov.uk/id/local-authority/00FC,People,Childrens Services,Placement & Support,Other Agencies,Child Care Payments,PJ104,8/19/2014,256001,268,REDACTED PERSONAL INFORMATION,REVENUE,REDACTED PERSONAL INFORMATION
NORTH EAST LINCOLNSHIRE COUNCIL,http://statistics.data.gov.uk/id/local-authority/00FC,People,Childrens Services,Placement & Support,Other Agencies,Child Care Payments,PJ104,8/19/2014,256151,378,REDACTED PERSONAL INFORMATION,REVENUE,REDACTED PERSONAL INFORMATION
NORTH EAST LINCOLNSHIRE COUNCIL,http://statistics.data.gov.uk/id/local-authority/00FC,People,Childrens Services,Placement & Support,Other Agencies,Child Care Payments,PJ104,8/19/2014,256011,358,REDACTED PERSONAL INFORMATION,REVENUE,REDACTED PERSONAL INFORMATION
NORTH EAST LINCOLNSHIRE COUNCIL,http://statistics.data.gov.uk/id/local-authority/00FC,People,Childrens Services,Placement & Support,Other Agencies,Child Care Payments,PJ104,8/19/2014,256014,268,REDACTED PERSONAL INFORMATION,REVENUE,REDACTED PERSONAL INFORMATION
NORTH EAST LINCOLNSHIRE COUNCIL,http://statistics.data.gov.uk/id/local-authority/00FC,People,Childrens Services,Placement & Support,Other Agencies,Child Care Payments,PJ104,8/19/2014,256187,256,REDACTED PERSONAL INFORMATION,REVENUE,REDACTED PERSONAL INFORMATION
NORTH EAST LINCOLNSHIRE COUNCIL,http://statistics.data.gov.uk/id/local-authority/00FC,People,Childrens Services,Placement & Support,Other Agencies,Child Care Payments,PJ104,8/19/2014,256191,276,REDACTED PERSONAL INFORMATION,REVENUE,REDACTED PERSONAL INFORMATION
NORTH EAST LINCOLNSHIRE COUNCIL,http://statistics.data.gov.uk/id/local-authority/00FC,People,Childrens Services,Placement & Support,Other Agencies,Child Care Payments,PJ104,8/19/2014,256201,268,REDACTED PERSONAL INFORMATION,REVENUE,REDACTED PERSONAL INFORMATION
NORTH EAST LINCOLNSHIRE COUNCIL,http://statistics.data.gov.uk/id/local-authority/00FC,People,Childrens Services,Placement & Support,Other Agencies,Child Care Payments,PJ104,8/19/2014,256045,366,REDACTED PERSONAL INFORMATION,REVENUE,REDACTED PERSONAL INFORMATION
NORTH EAST LINCOLNSHIRE COUNCIL,http://statistics.data.gov.uk/id/local-authority/00FC,People,Childrens Services,Placement & Support,Other Agencies,Child Care Payments,PJ104,8/19/2014,256051,256,REDACTED PERSONAL INFORMATION,REVENUE,REDACTED PERSONAL INFORMATION
NORTH EAST LINCOLNSHIRE COUNCIL,http://statistics.data.gov.uk/id/local-authority/00FC,People,Childrens Services,Placement & Support,Other Agencies,Child Care Payments,PJ104,8/19/2014,256054,268,REDACTED PERSONAL INFORMATION,REVENUE,REDACTED PERSONAL INFORMATION
NORTH EAST LINCOLNSHIRE COUNCIL,http://statistics.data.gov.uk/id/local-authority/00FC,People,Childrens Services,Placement & Support,Other Agencies,Child Care Payments,PJ104,8/19/2014,256074,268,REDACTED PERSONAL INFORMATION,REVENUE,REDACTED PERSONAL INFORMATION
NORTH EAST LINCOLNSHIRE COUNCIL,http://statistics.data.gov.uk/id/local-authority/00FC,People,Childrens Services,Placement & Support,Other Agencies,Child Care Payments,PJ104,8/19/2014,256098,366,REDACTED PERSONAL INFORMATION,REVENUE,REDACTED PERSONAL INFORMATION
NORTH EAST LINCOLNSHIRE COUNCIL,http://statistics.data.gov.uk/id/local-authority/00FC,People,Childrens Services,Placement & Support,Other Agencies,Child Care Payments,PJ104,8/19/2014,256106,313.72,REDACTED PERSONAL INFORMATION,REVENUE,REDACTED PERSONAL INFORMATION
NORTH EAST LINCOLNSHIRE COUNCIL,http://statistics.data.gov.uk/id/local-authority/00FC,People,Childrens Services,Placement & Support,Other Agencies,Child Care Payments,PJ104,8/19/2014,256109,268,REDACTED PERSONAL INFORMATION,REVENUE,REDACTED PERSONAL INFORMATION
NORTH EAST LINCOLNSHIRE COUNCIL,http://statistics.data.gov.uk/id/local-authority/00FC,People,Childrens Services,Placement & Support,Other Agencies,Child Care Payments,PJ104,8/19/2014,255968,333,REDACTED PERSONAL INFORMATION,REVENUE,REDACTED PERSONAL INFORMATION
NORTH EAST LINCOLNSHIRE COUNCIL,http://statistics.data.gov.uk/id/local-authority/00FC,People,Childrens Services,Placement & Support,Other Agencies,Child Care Payments,PJ104,8/19/2014,256137,422,REDACTED PERSONAL INFORMATION,REVENUE,REDACTED PERSONAL INFORMATION
NORTH EAST LINCOLNSHIRE COUNCIL,http://statistics.data.gov.uk/id/local-authority/00FC,People,Childrens Services,Placement & Support,Other Agencies,Child Care Payments,PJ104,8/22/2014,257316,268,REDACTED PERSONAL INFORMATION,REVENUE,REDACTED PERSONAL INFORMATION
NORTH EAST LINCOLNSHIRE COUNCIL,http://statistics.data.gov.uk/id/local-authority/00FC,People,Childrens Services,Placement & Support,Other Agencies,Child Care Payments,PJ104,8/22/2014,257340,296.29,REDACTED PERSONAL INFORMATION,REVENUE,REDACTED PERSONAL INFORMATION
NORTH EAST LINCOLNSHIRE COUNCIL,http://statistics.data.gov.uk/id/local-authority/00FC,People,Childrens Services,Placement & Support,Other Agencies,Child Care Payments,PJ104,8/22/2014,257346,422,REDACTED PERSONAL INFORMATION,REVENUE,REDACTED PERSONAL INFORMATION
NORTH EAST LINCOLNSHIRE COUNCIL,http://statistics.data.gov.uk/id/local-authority/00FC,People,Childrens Services,Placement & Support,Other Agencies,Child Care Payments,PJ104,8/22/2014,257361,378,REDACTED PERSONAL INFORMATION,REVENUE,REDACTED PERSONAL INFORMATION
NORTH EAST LINCOLNSHIRE COUNCIL,http://statistics.data.gov.uk/id/local-authority/00FC,People,Childrens Services,Placement & Support,Other Agencies,Child Care Payments,PJ104,8/22/2014,257402,256,REDACTED PERSONAL INFORMATION,REVENUE,REDACTED PERSONAL INFORMATION
NORTH EAST LINCOLNSHIRE COUNCIL,http://statistics.data.gov.uk/id/local-authority/00FC,People,Childrens Services,Placement & Support,Other Agencies,Child Care Payments,PJ104,8/22/2014,257406,276,REDACTED PERSONAL INFORMATION,REVENUE,REDACTED PERSONAL INFORMATION
NORTH EAST LINCOLNSHIRE COUNCIL,http://statistics.data.gov.uk/id/local-authority/00FC,People,Childrens Services,Placement & Support,Other Agencies,Child Care Payments,PJ104,8/22/2014,257414,268,REDACTED PERSONAL INFORMATION,REVENUE,REDACTED PERSONAL INFORMATION
NORTH EAST LINCOLNSHIRE COUNCIL,http://statistics.data.gov.uk/id/local-authority/00FC,People,Childrens Services,Placement & Support,Other Agencies,Child Care Payments,PJ104,8/22/2014,257167,958.58,REDACTED PERSONAL INFORMATION,REVENUE,REDACTED PERSONAL INFORMATION
NORTH EAST LINCOLNSHIRE COUNCIL,http://statistics.data.gov.uk/id/local-authority/00FC,People,Childrens Services,Placement & Support,Other Agencies,Child Care Payments,PJ104,8/22/2014,257171,333,REDACTED PERSONAL INFORMATION,REVENUE,REDACTED PERSONAL INFORMATION
NORTH EAST LINCOLNSHIRE COUNCIL,http://statistics.data.gov.uk/id/local-authority/00FC,People,Childrens Services,Placement & Support,Other Agencies,Child Care Payments,PJ104,8/22/2014,257172,383.43,REDACTED PERSONAL INFORMATION,REVENUE,REDACTED PERSONAL INFORMATION
NORTH EAST LINCOLNSHIRE COUNCIL,http://statistics.data.gov.uk/id/local-authority/00FC,People,Childrens Services,Placement & Support,Other Agencies,Child Care Payments,PJ104,8/22/2014,257190,308,REDACTED PERSONAL INFORMATION,REVENUE,REDACTED PERSONAL INFORMATION
NORTH EAST LINCOLNSHIRE COUNCIL,http://statistics.data.gov.uk/id/local-authority/00FC,People,Childrens Services,Placement & Support,Other Agencies,Child Care Payments,PJ104,8/22/2014,257205,268,REDACTED PERSONAL INFORMATION,REVENUE,REDACTED PERSONAL INFORMATION
NORTH EAST LINCOLNSHIRE COUNCIL,http://statistics.data.gov.uk/id/local-authority/00FC,People,Childrens Services,Placement & Support,Other Agencies,Child Care Payments,PJ104,8/22/2014,257215,358,REDACTED PERSONAL INFORMATION,REVENUE,REDACTED PERSONAL INFORMATION
NORTH EAST LINCOLNSHIRE COUNCIL,http://statistics.data.gov.uk/id/local-authority/00FC,People,Childrens Services,Placement & Support,Other Agencies,Child Care Payments,PJ104,8/22/2014,257218,268,REDACTED PERSONAL INFORMATION,REVENUE,REDACTED PERSONAL INFORMATION
NORTH EAST LINCOLNSHIRE COUNCIL,http://statistics.data.gov.uk/id/local-authority/00FC,People,Childrens Services,Placement & Support,Other Agencies,Child Care Payments,PJ104,8/22/2014,257248,435.71,REDACTED PERSONAL INFORMATION,REVENUE,REDACTED PERSONAL INFORMATION
NORTH EAST LINCOLNSHIRE COUNCIL,http://statistics.data.gov.uk/id/local-authority/00FC,People,Childrens Services,Placement & Support,Other Agencies,Child Care Payments,PJ104,8/22/2014,257254,256,REDACTED PERSONAL INFORMATION,REVENUE,REDACTED PERSONAL INFORMATION
NORTH EAST LINCOLNSHIRE COUNCIL,http://statistics.data.gov.uk/id/local-authority/00FC,People,Childrens Services,Placement & Support,Other Agencies,Child Care Payments,PJ104,8/22/2014,257257,268,REDACTED PERSONAL INFORMATION,REVENUE,REDACTED PERSONAL INFORMATION
NORTH EAST LINCOLNSHIRE COUNCIL,http://statistics.data.gov.uk/id/local-authority/00FC,People,Childrens Services,Placement & Support,Other Agencies,Child Care Payments,PJ104,8/22/2014,257278,268,REDACTED PERSONAL INFORMATION,REVENUE,REDACTED PERSONAL INFORMATION
NORTH EAST LINCOLNSHIRE COUNCIL,http://statistics.data.gov.uk/id/local-authority/00FC,People,Childrens Services,Placement & Support,Other Agencies,Child Care Payments,PJ104,8/22/2014,257303,366,REDACTED PERSONAL INFORMATION,REVENUE,REDACTED PERSONAL INFORMATION
NORTH EAST LINCOLNSHIRE COUNCIL,http://statistics.data.gov.uk/id/local-authority/00FC,People,Childrens Services,Placement & Support,Other Agencies,Child Care Payments,PJ104,8/11/2014,298624,405,16+ SERVICES,REVENUE,100943
